{"text_format":"1","workbook":"xlsx","n_sheets":6,"sheets":["Tool overview","Part 1-Observation planning","Part 2-Observation log","Part 3a-Observation tracking","Part 3b-By EBP and Setting","Dropdown data"],"not_rendered":{"charts":0,"images":1,"macros":1,"external_links":0,"defined_names":5,"comments":1,"pivot_tables":6},"unopened":[],"bounds":{"document_bytes":16777216,"sheet_cells":100000,"rows_first":2000,"rows_last":500,"rows_between":2000,"halvings":0,"cell_chars":16384,"cell_head_chars":4096},"cells_cut":0,"cells_raw":0,"read":"whole","date_system":"1900"}

{"sheet":"Tool overview","index":0,"n_rows":6,"n_cols":1,"rows_kept":6,"cut":false,"hidden":false,"merged":[[0,0,0,6],[5,0,5,6],[4,0,4,6],[3,0,3,6],[1,0,1,6],[2,0,2,6]]}
[]
["TPP Tier 1 Grant: Observation Planning Tool"]
["Tool overview"]
["Welcome to the TPP Tier 1 Grant Observation Planning Tool! This tool is designed to help you plan, log, and track the evidence-based program (EBP) observations required by your TPP Tier 1 grant. The goal of this tool is to ensure you are planning to observe at least the minimum number of sessions per EBP and facilitator as required by the Office of Population Affairs (OPA). \n\nThis tool is optional, but it is designed to help you plan the number of observations required to meet your grant requirements."]
["For additional support or resources, please contact:"]
["- Your PO if you have questions about your grant's observation requirements.\n- The Mathematica Eval TA team at TPPEvalTA@mathematica-mpr.com if you have questions about using this tool.  "]

{"sheet":"Part 1-Observation planning","index":1,"n_rows":46,"n_cols":7,"rows_kept":46,"cut":false,"hidden":false,"merged":[[0,0,0,5],[2,0,2,5],[1,4,1,5]]}
["TPP Tier 1 Grant: Observation Planning Tool"]
["Part 1. Observation planning",null,null,"Time period:","2024-25 Grant Year (Year 2)"]
["User notes: \n- Double check and, if needed, update the time period for this template (Cell E2). We recommend creating a separate workbook for each grant period. \n- Enter data in white cells (entering data for the setting (column B) is optional). \n- Do not enter data in green cells. The data within those cells are automatically calculated for you. Column F reflects the # of sessions to observe for an EBP given the requirement to observe 5 percent of all implemented sessions of the EBP."]
["EBP name\nUse dropdown","Setting (optional)\nUse dropdown","# sessions to be completed","# sections/groups planned","Total # of sessions to be offered","# sessions required to observe"]
[null,null,null,null,{"$f":"IFERROR(C5*D5,\"\")","v":0},{"$f":"CEILING((E5*0.05),1)","v":0}]
[null,null,null,null,0,{"$f":"CEILING((E6*0.05),1)","v":0}]
[null,null,null,null,0,0]
[null,null,null,null,0,0]
[null,null,null,null,0,0]
[null,null,null,null,0,0]
[null,null,null,null,0,0]
[null,null,null,null,0,0]
[null,null,null,null,0,0]
[null,null,null,null,0,0]
[null,null,null,null,0,0]
[null,null,null,null,0,0]
[null,null,null,null,0,0]
[null,null,null,null,0,0]
[null,null,null,null,0,0]
[null,null,null,null,0,0]
[null,null,null,null,0,0]
[null,null,null,null,0,0]
[null,null,null,null,0,0]
[null,null,null,null,0,0]
[null,null,null,null,0,0]
[null,null,null,null,0,0]
[null,null,null,null,0,0]
[null,null,null,null,0,0]
[null,null,null,null,0,0]
[null,null,null,null,0,0]
[null,null,null,null,0,0]
[null,null,null,null,0,0]
[null,null,null,null,0,0]
[null,null,null,null,0,0]
[null,null,null,null,0,0]
[null,null,null,null,0,0]
[null,null,null,null,0,0]
[null,null,null,null,0,0]
[null,null,null,null,0,0]
[null,null,null,null,0,0]
[null,null,null,null,0,0]
[null,null,null,null,0,0]
[null,null,null,null,0,0]
[null,null,null,null,0,0]
[null,null,null,null,0,0]
[null,null,null,null,null,null," "]

{"sheet":"Part 2-Observation log","index":2,"n_rows":4998,"n_cols":13,"rows_kept":4998,"cut":false,"hidden":false,"merged":[[0,0,0,12],[2,0,2,12]]}
["TPP Tier 1 Grant: Observation Planning Tool"]
["Part 2. Observation log",null,null,null,null,null,null,"Time Period:",null,null,null,null,"2024-25 Grant Year (Year 2)"]
["User notes: \n- Double check and, if needed, update the time period for this template (Cell M2). We recommend creating a separate workbook for each grant period. \n- Manually enter data in Columns A-H and M, though F and G are optional.\n- Use the dropdowns in Columns E, F and H, though F is optional.\n- Feel free to increase the width of the observation notes column or use additional columns to track information about the observations, if that's useful for you.\n- You can sort each column by clicking on the arrow by the column header."]
[null,null,null,null,"Observation details"]
["Observation date","Observation time","Observer","Facilitator observed","EBP name\nUse dropdown","Setting (optional)\nUse dropdown","Location (optional)","Observation status","Observation complete - num","Observation overdue","Observation planned","Total observations","Observation notes"]
[null,null,null,null,null,null,null,null,{"$f":"IF(H6=\"Completed\",1,0)","v":0},{"$f":"AND(AND($H6<>\"Completed\",$A6<TODAY()),$H6<>\"\")","v":false},{"$f":"IF(AND(H6<>\"Completed\",H6<>\"Canceled\"), 1, 0)","v":1},{"$f":"SUM(I6,K6)","v":1}]
[null,null,null,null,null,null,null,null,{"$f":"IF(H7=\"Completed\",1,0)","v":0},false,{"$f":"IF(AND(H7<>\"Completed\",H7<>\"Canceled\"), 1, 0)","v":1},{"$f":"SUM(I7,K7)","v":1}]
[null,null,null,null,null,null,null,null,0,false,1,1]
[null,null,null,null,null,null,null,null,0,false,1,1]
[null,null,null,null,null,null,null,null,0,false,1,1]
[null,null,null,null,null,null,null,null,0,false,1,1]
[null,null,null,null,null,null,null,null,0,false,1,1]
[null,null,null,null,null,null,null,null,{"$f":"IF(H13=\"Completed\",1,0)","v":0},{"$f":"AND(AND($H13<>\"Completed\",$A13<TODAY()),$H13<>\"\")","v":false},1,{"$f":"SUM(I13,K13)","v":1}]
[null,null,null,null,null,null,null,null,0,false,1,1]
[null,null,null,null,null,null,null,null,0,false,1,1]
[null,null,null,null,null,null,null,null,0,false,1,1]
[null,null,null,null,null,null,null,null,0,false,1,1]
[null,null,null,null,null,null,null,null,0,false,1,1]
[null,null,null,null,null,null,null,null,0,false,1,1]
[null,null,null,null,null,null,null,null,0,false,1,1]
[null,null,null,null,null,null,null,null,0,false,1,1]
[null,null,null,null,null,null,null,null,0,false,1,1]
[null,null,null,null,null,null,null,null,0,false,1,1]
[null,null,null,null,null,null,null,null,0,false,1,1]
[null,null,null,null,null,null,null,null,0,false,1,1]
[null,null,null,null,null,null,null,null,0,false,1,1]
[null,null,null,null,null,null,null,null,0,false,1,1]
[null,null,null,null,null,null,null,null,0,false,1,1]
[null,null,null,null,null,null,null,null,0,false,1,1]
[null,null,null,null,null,null,null,null,0,false,1,1]
[null,null,null,null,null,null,null,null,0,false,1,1]
[null,null,null,null,null,null,null,null,0,false,1,1]
[null,null,null,null,null,null,null,null,0,false,1,1]
[null,null,null,null,null,null,null,null,0,false,1,1]
[null,null,null,null,null,null,null,null,0,false,1,1]
[null,null,null,null,null,null,null,null,0,false,1,1]
[null,null,null,null,null,null,null,null,0,false,1,1]
[null,null,null,null,null,null,null,null,0,false,1,1]
[null,null,null,null,null,null,null,null,0,false,1,1]
[null,null,null,null,null,null,null,null,0,false,1,1]
[null,null,null,null,null,null,null,null,0,false,1,1]
[null,null,null,null,null,null,null,null,0,false,1,1]
[null,null,null,null,null,null,null,null,0,false,1,1]
[null,null,null,null,null,null,null,null,0,false,1,1]
[null,null,null,null,null,null,null,null,0,false,1,1]
[null,null,null,null,null,null,null,null,0,false,1,1]
[null,null,null,null,null,null,null,null,0,false,1,1]
[null,null,null,null,null,null,null,null,0,false,1,1]
[null,null,null,null,null,null,null,null,0,false,1,1]
[null,null,null,null,null,null,null,null,0,false,1,1]
[null,null,null,null,null,null,null,null,0,false,1,1]
[null,null,null,null,null,null,null,null,0,false,1,1]
[null,null,null,null,null,null,null,null,0,false,1,1]
[null,null,null,null,null,null,null,null,0,false,1,1]
[null,null,null,null,null,null,null,null,0,false,1,1]
[null,null,null,null,null,null,null,null,0,false,1,1]
[null,null,null,null,null,null,null,null,0,false,1,1]
[null,null,null,null,null,null,null,null,0,false,1,1]
[null,null,null,null,null,null,null,null,0,false,1,1]
[null,null,null,null,null,null,null,null,0,false,1,1]
[null,null,null,null,null,null,null,null,0,false,1,1]
[null,null,null,null,null,null,null,null,0,false,1,1]
[null,null,null,null,null,null,null,null,{"$f":"IF(H63=\"Completed\",1,0)","v":0},{"$f":"AND(AND($H63<>\"Completed\",$A63<TODAY()),$H63<>\"\")","v":false},1,1]
[null,null,null,null,null,null,null,null,0,false,1,{"$f":"SUM(I64,K64)","v":1}]
[null,null,null,null,null,null,null,null,0,false,1,1]
[null,null,null,null,null,null,null,null,0,false,1,1]
[null,null,null,null,null,null,null,null,0,false,1,1]
[null,null,null,null,null,null,null,null,0,false,1,1]
[null,null,null,null,null,null,null,null,0,false,1,1]
[null,null,null,null,null,null,null,null,0,false,1,1]
[null,null,null,null,null,null,null,null,0,false,{"$f":"IF(AND(H71<>\"Completed\",H71<>\"Canceled\"), 1, 0)","v":1},1]
[null,null,null,null,null,null,null,null,0,false,1,1]
[null,null,null,null,null,null,null,null,0,false,1,1]
[null,null,null,null,null,null,null,null,0,false,1,1]
[null,null,null,null,null,null,null,null,0,false,1,1]
[null,null,null,null,null,null,null,null,0,false,1,1]
[null,null,null,null,null,null,null,null,0,false,1,1]
[null,null,null,null,null,null,null,null,0,false,1,1]
[null,null,null,null,null,null,null,null,0,false,1,1]
[null,null,null,null,null,null,null,null,0,false,1,1]
[null,null,null,null,null,null,null,null,0,false,1,1]
[null,null,null,null,null,null,null,null,0,false,1,1]
[null,null,null,null,null,null,null,null,0,false,1,1]
[null,null,null,null,null,null,null,null,0,false,1,1]
[null,null,null,null,null,null,null,null,0,false,1,1]
[null,null,null,null,null,null,null,null,0,false,1,1]
[null,null,null,null,null,null,null,null,0,false,1,1]
[null,null,null,null,null,null,null,null,0,false,1,1]
[null,null,null,null,null,null,null,null,0,false,1,1]
[null,null,null,null,null,null,null,null,0,false,1,1]
[null,null,null,null,null,null,null,null,0,false,1,1]
[null,null,null,null,null,null,null,null,0,false,1,1]
[null,null,null,null,null,null,null,null,0,false,1,1]
[null,null,null,null,null,null,null,null,0,false,1,1]
[null,null,null,null,null,null,null,null,0,false,1,1]
[null,null,null,null,null,null,null,null,0,false,1,1]
[null,null,null,null,null,null,null,null,0,false,1,1]
[null,null,null,null,null,null,null,null,0,false,1,1]
[null,null,null,null,null,null,null,null,0,false,1,1]
[null,null,null,null,null,null,null,null,0,false,1,1]
[null,null,null,null,null,null,null,null,0,false,1,1]
[null,null,null,null,null,null,null,null,0,false,1,1]
[null,null,null,null,null,null,null,null,0,false,1,1]
[null,null,null,null,null,null,null,null,0,false,1,1]
[null,null,null,null,null,null,null,null,0,false,1,1]
[null,null,null,null,null,null,null,null,0,false,1,1]
[null,null,null,null,null,null,null,null,0,false,1,1]
[null,null,null,null,null,null,null,null,0,false,1,1]
[null,null,null,null,null,null,null,null,0,false,1,1]
[null,null,null,null,null,null,null,null,0,false,1,1]
[null,null,null,null,null,null,null,null,0,false,1,1]
[null,null,null,null,null,null,null,null,0,false,1,1]
[null,null,null,null,null,null,null,null,0,false,1,1]
[null,null,null,null,null,null,null,null,0,false,1,1]
[null,null,null,null,null,null,null,null,0,false,1,1]
[null,null,null,null,null,null,null,null,0,false,1,1]
[null,null,null,null,null,null,null,null,0,false,1,1]
[null,null,null,null,null,null,null,null,0,false,1,1]
[null,null,null,null,null,null,null,null,0,false,1,1]
[null,null,null,null,null,null,null,null,0,false,1,1]
[null,null,null,null,null,null,null,null,0,false,1,1]
[null,null,null,null,null,null,null,null,0,false,1,1]
[null,null,null,null,null,null,null,null,0,false,1,1]
[null,null,null,null,null,null,null,null,0,false,1,1]
[null,null,null,null,null,null,null,null,0,false,1,1]
[null,null,null,null,null,null,null,null,0,false,1,1]
[null,null,null,null,null,null,null,null,{"$f":"IF(H127=\"Completed\",1,0)","v":0},{"$f":"AND(AND($H127<>\"Completed\",$A127<TODAY()),$H127<>\"\")","v":false},1,1]
[null,null,null,null,null,null,null,null,0,false,1,{"$f":"SUM(I128,K128)","v":1}]
[null,null,null,null,null,null,null,null,0,false,1,1]
[null,null,null,null,null,null,null,null,0,false,1,1]
[null,null,null,null,null,null,null,null,0,false,1,1]
[null,null,null,null,null,null,null,null,0,false,1,1]
[null,null,null,null,null,null,null,null,0,false,1,1]
[null,null,null,null,null,null,null,null,0,false,1,1]
[null,null,null,null,null,null,null,null,0,false,{"$f":"IF(AND(H135<>\"Completed\",H135<>\"Canceled\"), 1, 0)","v":1},1]
[null,null,null,null,null,null,null,null,0,false,1,1]
[null,null,null,null,null,null,null,null,0,false,1,1]
[null,null,null,null,null,null,null,null,0,false,1,1]
[null,null,null,null,null,null,null,null,0,false,1,1]
[null,null,null,null,null,null,null,null,0,false,1,1]
[null,null,null,null,null,null,null,null,0,false,1,1]
[null,null,null,null,null,null,null,null,0,false,1,1]
[null,null,null,null,null,null,null,null,0,false,1,1]
[null,null,null,null,null,null,null,null,0,false,1,1]
[null,null,null,null,null,null,null,null,0,false,1,1]
[null,null,null,null,null,null,null,null,0,false,1,1]
[null,null,null,null,null,null,null,null,0,false,1,1]
[null,null,null,null,null,null,null,null,0,false,1,1]
[null,null,null,null,null,null,null,null,0,false,1,1]
[null,null,null,null,null,null,null,null,0,false,1,1]
[null,null,null,null,null,null,null,null,0,false,1,1]
[null,null,null,null,null,null,null,null,0,false,1,1]
[null,null,null,null,null,null,null,null,0,false,1,1]
[null,null,null,null,null,null,null,null,0,false,1,1]
[null,null,null,null,null,null,null,null,0,false,1,1]
[null,null,null,null,null,null,null,null,0,false,1,1]
[null,null,null,null,null,null,null,null,0,false,1,1]
[null,null,null,null,null,null,null,null,0,false,1,1]
[null,null,null,null,null,null,null,null,0,false,1,1]
[null,null,null,null,null,null,null,null,0,false,1,1]
[null,null,null,null,null,null,null,null,0,false,1,1]
[null,null,null,null,null,null,null,null,0,false,1,1]
[null,null,null,null,null,null,null,null,0,false,1,1]
[null,null,null,null,null,null,null,null,0,false,1,1]
[null,null,null,null,null,null,null,null,0,false,1,1]
[null,null,null,null,null,null,null,null,0,false,1,1]
[null,null,null,null,null,null,null,null,0,false,1,1]
[null,null,null,null,null,null,null,null,0,false,1,1]
[null,null,null,null,null,null,null,null,0,false,1,1]
[null,null,null,null,null,null,null,null,0,false,1,1]
[null,null,null,null,null,null,null,null,0,false,1,1]
[null,null,null,null,null,null,null,null,0,false,1,1]
[null,null,null,null,null,null,null,null,0,false,1,1]
[null,null,null,null,null,null,null,null,0,false,1,1]
[null,null,null,null,null,null,null,null,0,false,1,1]
[null,null,null,null,null,null,null,null,0,false,1,1]
[null,null,null,null,null,null,null,null,0,false,1,1]
[null,null,null,null,null,null,null,null,0,false,1,1]
[null,null,null,null,null,null,null,null,0,false,1,1]
[null,null,null,null,null,null,null,null,0,false,1,1]
[null,null,null,null,null,null,null,null,0,false,1,1]
[null,null,null,null,null,null,null,null,0,false,1,1]
[null,null,null,null,null,null,null,null,0,false,1,1]
[null,null,null,null,null,null,null,null,0,false,1,1]
[null,null,null,null,null,null,null,null,0,false,1,1]
[null,null,null,null,null,null,null,null,0,false,1,1]
[null,null,null,null,null,null,null,null,0,false,1,1]
[null,null,null,null,null,null,null,null,0,false,1,1]
[null,null,null,null,null,null,null,null,0,false,1,1]
[null,null,null,null,null,null,null,null,0,false,1,1]
[null,null,null,null,null,null,null,null,{"$f":"IF(H191=\"Completed\",1,0)","v":0},{"$f":"AND(AND($H191<>\"Completed\",$A191<TODAY()),$H191<>\"\")","v":false},1,1]
[null,null,null,null,null,null,null,null,0,false,1,{"$f":"SUM(I192,K192)","v":1}]
[null,null,null,null,null,null,null,null,0,false,1,1]
[null,null,null,null,null,null,null,null,0,false,1,1]
[null,null,null,null,null,null,null,null,0,false,1,1]
[null,null,null,null,null,null,null,null,0,false,1,1]
[null,null,null,null,null,null,null,null,0,false,1,1]
[null,null,null,null,null,null,null,null,0,false,1,1]
[null,null,null,null,null,null,null,null,0,false,{"$f":"IF(AND(H199<>\"Completed\",H199<>\"Canceled\"), 1, 0)","v":1},1]
[null,null,null,null,null,null,null,null,0,false,1,1]
[null,null,null,null,null,null,null,null,0,false,1,1]
[null,null,null,null,null,null,null,null,0,false,1,1]
[null,null,null,null,null,null,null,null,0,false,1,1]
[null,null,null,null,null,null,null,null,0,false,1,1]
[null,null,null,null,null,null,null,null,0,false,1,1]
[null,null,null,null,null,null,null,null,0,false,1,1]
[null,null,null,null,null,null,null,null,0,false,1,1]
[null,null,null,null,null,null,null,null,0,false,1,1]
[null,null,null,null,null,null,null,null,0,false,1,1]
[null,null,null,null,null,null,null,null,0,false,1,1]
[null,null,null,null,null,null,null,null,0,false,1,1]
[null,null,null,null,null,null,null,null,0,false,1,1]
[null,null,null,null,null,null,null,null,0,false,1,1]
[null,null,null,null,null,null,null,null,0,false,1,1]
[null,null,null,null,null,null,null,null,0,false,1,1]
[null,null,null,null,null,null,null,null,0,false,1,1]
[null,null,null,null,null,null,null,null,0,false,1,1]
[null,null,null,null,null,null,null,null,0,false,1,1]
[null,null,null,null,null,null,null,null,0,false,1,1]
[null,null,null,null,null,null,null,null,0,false,1,1]
[null,null,null,null,null,null,null,null,0,false,1,1]
[null,null,null,null,null,null,null,null,0,false,1,1]
[null,null,null,null,null,null,null,null,0,false,1,1]
[null,null,null,null,null,null,null,null,0,false,1,1]
[null,null,null,null,null,null,null,null,0,false,1,1]
[null,null,null,null,null,null,null,null,0,false,1,1]
[null,null,null,null,null,null,null,null,0,false,1,1]
[null,null,null,null,null,null,null,null,0,false,1,1]
[null,null,null,null,null,null,null,null,0,false,1,1]
[null,null,null,null,null,null,null,null,0,false,1,1]
[null,null,null,null,null,null,null,null,0,false,1,1]
[null,null,null,null,null,null,null,null,0,false,1,1]
[null,null,null,null,null,null,null,null,0,false,1,1]
[null,null,null,null,null,null,null,null,0,false,1,1]
[null,null,null,null,null,null,null,null,0,false,1,1]
[null,null,null,null,null,null,null,null,0,false,1,1]
[null,null,null,null,null,null,null,null,0,false,1,1]
[null,null,null,null,null,null,null,null,0,false,1,1]
[null,null,null,null,null,null,null,null,0,false,1,1]
[null,null,null,null,null,null,null,null,0,false,1,1]
[null,null,null,null,null,null,null,null,0,false,1,1]
[null,null,null,null,null,null,null,null,0,false,1,1]
[null,null,null,null,null,null,null,null,0,false,1,1]
[null,null,null,null,null,null,null,null,0,false,1,1]
[null,null,null,null,null,null,null,null,0,false,1,1]
[null,null,null,null,null,null,null,null,0,false,1,1]
[null,null,null,null,null,null,null,null,0,false,1,1]
[null,null,null,null,null,null,null,null,0,false,1,1]
[null,null,null,null,null,null,null,null,0,false,1,1]
[null,null,null,null,null,null,null,null,0,false,1,1]
[null,null,null,null,null,null,null,null,0,false,1,1]
[null,null,null,null,null,null,null,null,0,false,1,1]
[null,null,null,null,null,null,null,null,0,false,1,1]
[null,null,null,null,null,null,null,null,0,false,1,1]
[null,null,null,null,null,null,null,null,{"$f":"IF(H255=\"Completed\",1,0)","v":0},{"$f":"AND(AND($H255<>\"Completed\",$A255<TODAY()),$H255<>\"\")","v":false},1,1]
[null,null,null,null,null,null,null,null,0,false,1,{"$f":"SUM(I256,K256)","v":1}]
[null,null,null,null,null,null,null,null,0,false,1,1]
[null,null,null,null,null,null,null,null,0,false,1,1]
[null,null,null,null,null,null,null,null,0,false,1,1]
[null,null,null,null,null,null,null,null,0,false,1,1]
[null,null,null,null,null,null,null,null,0,false,1,1]
[null,null,null,null,null,null,null,null,0,false,1,1]
[null,null,null,null,null,null,null,null,0,false,{"$f":"IF(AND(H263<>\"Completed\",H263<>\"Canceled\"), 1, 0)","v":1},1]
[null,null,null,null,null,null,null,null,0,false,1,1]
[null,null,null,null,null,null,null,null,0,false,1,1]
[null,null,null,null,null,null,null,null,0,false,1,1]
[null,null,null,null,null,null,null,null,0,false,1,1]
[null,null,null,null,null,null,null,null,0,false,1,1]
[null,null,null,null,null,null,null,null,0,false,1,1]
[null,null,null,null,null,null,null,null,0,false,1,1]
[null,null,null,null,null,null,null,null,0,false,1,1]
[null,null,null,null,null,null,null,null,0,false,1,1]
[null,null,null,null,null,null,null,null,0,false,1,1]
[null,null,null,null,null,null,null,null,0,false,1,1]
[null,null,null,null,null,null,null,null,0,false,1,1]
[null,null,null,null,null,null,null,null,0,false,1,1]
[null,null,null,null,null,null,null,null,0,false,1,1]
[null,null,null,null,null,null,null,null,0,false,1,1]
[null,null,null,null,null,null,null,null,0,false,1,1]
[null,null,null,null,null,null,null,null,0,false,1,1]
[null,null,null,null,null,null,null,null,0,false,1,1]
[null,null,null,null,null,null,null,null,0,false,1,1]
[null,null,null,null,null,null,null,null,0,false,1,1]
[null,null,null,null,null,null,null,null,0,false,1,1]
[null,null,null,null,null,null,null,null,0,false,1,1]
[null,null,null,null,null,null,null,null,0,false,1,1]
[null,null,null,null,null,null,null,null,0,false,1,1]
[null,null,null,null,null,null,null,null,0,false,1,1]
[null,null,null,null,null,null,null,null,0,false,1,1]
[null,null,null,null,null,null,null,null,0,false,1,1]
[null,null,null,null,null,null,null,null,0,false,1,1]
[null,null,null,null,null,null,null,null,0,false,1,1]
[null,null,null,null,null,null,null,null,0,false,1,1]
[null,null,null,null,null,null,null,null,0,false,1,1]
[null,null,null,null,null,null,null,null,0,false,1,1]
[null,null,null,null,null,null,null,null,0,false,1,1]
[null,null,null,null,null,null,null,null,0,false,1,1]
[null,null,null,null,null,null,null,null,0,false,1,1]
[null,null,null,null,null,null,null,null,0,false,1,1]
[null,null,null,null,null,null,null,null,0,false,1,1]
[null,null,null,null,null,null,null,null,0,false,1,1]
[null,null,null,null,null,null,null,null,0,false,1,1]
[null,null,null,null,null,null,null,null,0,false,1,1]
[null,null,null,null,null,null,null,null,0,false,1,1]
[null,null,null,null,null,null,null,null,0,false,1,1]
[null,null,null,null,null,null,null,null,0,false,1,1]
[null,null,null,null,null,null,null,null,0,false,1,1]
[null,null,null,null,null,null,null,null,0,false,1,1]
[null,null,null,null,null,null,null,null,0,false,1,1]
[null,null,null,null,null,null,null,null,0,false,1,1]
[null,null,null,null,null,null,null,null,0,false,1,1]
[null,null,null,null,null,null,null,null,0,false,1,1]
[null,null,null,null,null,null,null,null,0,false,1,1]
[null,null,null,null,null,null,null,null,0,false,1,1]
[null,null,null,null,null,null,null,null,0,false,1,1]
[null,null,null,null,null,null,null,null,0,false,1,1]
[null,null,null,null,null,null,null,null,0,false,1,1]
[null,null,null,null,null,null,null,null,0,false,1,1]
[null,null,null,null,null,null,null,null,{"$f":"IF(H319=\"Completed\",1,0)","v":0},{"$f":"AND(AND($H319<>\"Completed\",$A319<TODAY()),$H319<>\"\")","v":false},1,1]
[null,null,null,null,null,null,null,null,0,false,1,{"$f":"SUM(I320,K320)","v":1}]
[null,null,null,null,null,null,null,null,0,false,1,1]
[null,null,null,null,null,null,null,null,0,false,1,1]
[null,null,null,null,null,null,null,null,0,false,1,1]
[null,null,null,null,null,null,null,null,0,false,1,1]
[null,null,null,null,null,null,null,null,0,false,1,1]
[null,null,null,null,null,null,null,null,0,false,1,1]
[null,null,null,null,null,null,null,null,0,false,{"$f":"IF(AND(H327<>\"Completed\",H327<>\"Canceled\"), 1, 0)","v":1},1]
[null,null,null,null,null,null,null,null,0,false,1,1]
[null,null,null,null,null,null,null,null,0,false,1,1]
[null,null,null,null,null,null,null,null,0,false,1,1]
[null,null,null,null,null,null,null,null,0,false,1,1]
[null,null,null,null,null,null,null,null,0,false,1,1]
[null,null,null,null,null,null,null,null,0,false,1,1]
[null,null,null,null,null,null,null,null,0,false,1,1]
[null,null,null,null,null,null,null,null,0,false,1,1]
[null,null,null,null,null,null,null,null,0,false,1,1]
[null,null,null,null,null,null,null,null,0,false,1,1]
[null,null,null,null,null,null,null,null,0,false,1,1]
[null,null,null,null,null,null,null,null,0,false,1,1]
[null,null,null,null,null,null,null,null,0,false,1,1]
[null,null,null,null,null,null,null,null,0,false,1,1]
[null,null,null,null,null,null,null,null,0,false,1,1]
[null,null,null,null,null,null,null,null,0,false,1,1]
[null,null,null,null,null,null,null,null,0,false,1,1]
[null,null,null,null,null,null,null,null,0,false,1,1]
[null,null,null,null,null,null,null,null,0,false,1,1]
[null,null,null,null,null,null,null,null,0,false,1,1]
[null,null,null,null,null,null,null,null,0,false,1,1]
[null,null,null,null,null,null,null,null,0,false,1,1]
[null,null,null,null,null,null,null,null,0,false,1,1]
[null,null,null,null,null,null,null,null,0,false,1,1]
[null,null,null,null,null,null,null,null,0,false,1,1]
[null,null,null,null,null,null,null,null,0,false,1,1]
[null,null,null,null,null,null,null,null,0,false,1,1]
[null,null,null,null,null,null,null,null,0,false,1,1]
[null,null,null,null,null,null,null,null,0,false,1,1]
[null,null,null,null,null,null,null,null,0,false,1,1]
[null,null,null,null,null,null,null,null,0,false,1,1]
[null,null,null,null,null,null,null,null,0,false,1,1]
[null,null,null,null,null,null,null,null,0,false,1,1]
[null,null,null,null,null,null,null,null,0,false,1,1]
[null,null,null,null,null,null,null,null,0,false,1,1]
[null,null,null,null,null,null,null,null,0,false,1,1]
[null,null,null,null,null,null,null,null,0,false,1,1]
[null,null,null,null,null,null,null,null,0,false,1,1]
[null,null,null,null,null,null,null,null,0,false,1,1]
[null,null,null,null,null,null,null,null,0,false,1,1]
[null,null,null,null,null,null,null,null,0,false,1,1]
[null,null,null,null,null,null,null,null,0,false,1,1]
[null,null,null,null,null,null,null,null,0,false,1,1]
[null,null,null,null,null,null,null,null,0,false,1,1]
[null,null,null,null,null,null,null,null,0,false,1,1]
[null,null,null,null,null,null,null,null,0,false,1,1]
[null,null,null,null,null,null,null,null,0,false,1,1]
[null,null,null,null,null,null,null,null,0,false,1,1]
[null,null,null,null,null,null,null,null,0,false,1,1]
[null,null,null,null,null,null,null,null,0,false,1,1]
[null,null,null,null,null,null,null,null,0,false,1,1]
[null,null,null,null,null,null,null,null,0,false,1,1]
[null,null,null,null,null,null,null,null,0,false,1,1]
[null,null,null,null,null,null,null,null,0,false,1,1]
[null,null,null,null,null,null,null,null,0,false,1,1]
[null,null,null,null,null,null,null,null,{"$f":"IF(H383=\"Completed\",1,0)","v":0},{"$f":"AND(AND($H383<>\"Completed\",$A383<TODAY()),$H383<>\"\")","v":false},1,1]
[null,null,null,null,null,null,null,null,0,false,1,{"$f":"SUM(I384,K384)","v":1}]
[null,null,null,null,null,null,null,null,0,false,1,1]
[null,null,null,null,null,null,null,null,0,false,1,1]
[null,null,null,null,null,null,null,null,0,false,1,1]
[null,null,null,null,null,null,null,null,0,false,1,1]
[null,null,null,null,null,null,null,null,0,false,1,1]
[null,null,null,null,null,null,null,null,0,false,1,1]
[null,null,null,null,null,null,null,null,0,false,{"$f":"IF(AND(H391<>\"Completed\",H391<>\"Canceled\"), 1, 0)","v":1},1]
[null,null,null,null,null,null,null,null,0,false,1,1]
[null,null,null,null,null,null,null,null,0,false,1,1]
[null,null,null,null,null,null,null,null,0,false,1,1]
[null,null,null,null,null,null,null,null,0,false,1,1]
[null,null,null,null,null,null,null,null,0,false,1,1]
[null,null,null,null,null,null,null,null,0,false,1,1]
[null,null,null,null,null,null,null,null,0,false,1,1]
[null,null,null,null,null,null,null,null,0,false,1,1]
[null,null,null,null,null,null,null,null,0,false,1,1]
[null,null,null,null,null,null,null,null,0,false,1,1]
[null,null,null,null,null,null,null,null,0,false,1,1]
[null,null,null,null,null,null,null,null,0,false,1,1]
[null,null,null,null,null,null,null,null,0,false,1,1]
[null,null,null,null,null,null,null,null,0,false,1,1]
[null,null,null,null,null,null,null,null,0,false,1,1]
[null,null,null,null,null,null,null,null,0,false,1,1]
[null,null,null,null,null,null,null,null,0,false,1,1]
[null,null,null,null,null,null,null,null,0,false,1,1]
[null,null,null,null,null,null,null,null,0,false,1,1]
[null,null,null,null,null,null,null,null,0,false,1,1]
[null,null,null,null,null,null,null,null,0,false,1,1]
[null,null,null,null,null,null,null,null,0,false,1,1]
[null,null,null,null,null,null,null,null,0,false,1,1]
[null,null,null,null,null,null,null,null,0,false,1,1]
[null,null,null,null,null,null,null,null,0,false,1,1]
[null,null,null,null,null,null,null,null,0,false,1,1]
[null,null,null,null,null,null,null,null,0,false,1,1]
[null,null,null,null,null,null,null,null,0,false,1,1]
[null,null,null,null,null,null,null,null,0,false,1,1]
[null,null,null,null,null,null,null,null,0,false,1,1]
[null,null,null,null,null,null,null,null,0,false,1,1]
[null,null,null,null,null,null,null,null,0,false,1,1]
[null,null,null,null,null,null,null,null,0,false,1,1]
[null,null,null,null,null,null,null,null,0,false,1,1]
[null,null,null,null,null,null,null,null,0,false,1,1]
[null,null,null,null,null,null,null,null,0,false,1,1]
[null,null,null,null,null,null,null,null,0,false,1,1]
[null,null,null,null,null,null,null,null,0,false,1,1]
[null,null,null,null,null,null,null,null,0,false,1,1]
[null,null,null,null,null,null,null,null,0,false,1,1]
[null,null,null,null,null,null,null,null,0,false,1,1]
[null,null,null,null,null,null,null,null,0,false,1,1]
[null,null,null,null,null,null,null,null,0,false,1,1]
[null,null,null,null,null,null,null,null,0,false,1,1]
[null,null,null,null,null,null,null,null,0,false,1,1]
[null,null,null,null,null,null,null,null,0,false,1,1]
[null,null,null,null,null,null,null,null,0,false,1,1]
[null,null,null,null,null,null,null,null,0,false,1,1]
[null,null,null,null,null,null,null,null,0,false,1,1]
[null,null,null,null,null,null,null,null,0,false,1,1]
[null,null,null,null,null,null,null,null,0,false,1,1]
[null,null,null,null,null,null,null,null,0,false,1,1]
[null,null,null,null,null,null,null,null,0,false,1,1]
[null,null,null,null,null,null,null,null,0,false,1,1]
[null,null,null,null,null,null,null,null,0,false,1,1]
[null,null,null,null,null,null,null,null,{"$f":"IF(H447=\"Completed\",1,0)","v":0},{"$f":"AND(AND($H447<>\"Completed\",$A447<TODAY()),$H447<>\"\")","v":false},1,1]
[null,null,null,null,null,null,null,null,0,false,1,{"$f":"SUM(I448,K448)","v":1}]
[null,null,null,null,null,null,null,null,0,false,1,1]
[null,null,null,null,null,null,null,null,0,false,1,1]
[null,null,null,null,null,null,null,null,0,false,1,1]
[null,null,null,null,null,null,null,null,0,false,1,1]
[null,null,null,null,null,null,null,null,0,false,1,1]
[null,null,null,null,null,null,null,null,0,false,1,1]
[null,null,null,null,null,null,null,null,0,false,{"$f":"IF(AND(H455<>\"Completed\",H455<>\"Canceled\"), 1, 0)","v":1},1]
[null,null,null,null,null,null,null,null,0,false,1,1]
[null,null,null,null,null,null,null,null,0,false,1,1]
[null,null,null,null,null,null,null,null,0,false,1,1]
[null,null,null,null,null,null,null,null,0,false,1,1]
[null,null,null,null,null,null,null,null,0,false,1,1]
[null,null,null,null,null,null,null,null,0,false,1,1]
[null,null,null,null,null,null,null,null,0,false,1,1]
[null,null,null,null,null,null,null,null,0,false,1,1]
[null,null,null,null,null,null,null,null,0,false,1,1]
[null,null,null,null,null,null,null,null,0,false,1,1]
[null,null,null,null,null,null,null,null,0,false,1,1]
[null,null,null,null,null,null,null,null,0,false,1,1]
[null,null,null,null,null,null,null,null,0,false,1,1]
[null,null,null,null,null,null,null,null,0,false,1,1]
[null,null,null,null,null,null,null,null,0,false,1,1]
[null,null,null,null,null,null,null,null,0,false,1,1]
[null,null,null,null,null,null,null,null,0,false,1,1]
[null,null,null,null,null,null,null,null,0,false,1,1]
[null,null,null,null,null,null,null,null,0,false,1,1]
[null,null,null,null,null,null,null,null,0,false,1,1]
[null,null,null,null,null,null,null,null,0,false,1,1]
[null,null,null,null,null,null,null,null,0,false,1,1]
[null,null,null,null,null,null,null,null,0,false,1,1]
[null,null,null,null,null,null,null,null,0,false,1,1]
[null,null,null,null,null,null,null,null,0,false,1,1]
[null,null,null,null,null,null,null,null,0,false,1,1]
[null,null,null,null,null,null,null,null,0,false,1,1]
[null,null,null,null,null,null,null,null,0,false,1,1]
[null,null,null,null,null,null,null,null,0,false,1,1]
[null,null,null,null,null,null,null,null,0,false,1,1]
[null,null,null,null,null,null,null,null,0,false,1,1]
[null,null,null,null,null,null,null,null,0,false,1,1]
[null,null,null,null,null,null,null,null,0,false,1,1]
[null,null,null,null,null,null,null,null,0,false,1,1]
[null,null,null,null,null,null,null,null,0,false,1,1]
[null,null,null,null,null,null,null,null,0,false,1,1]
[null,null,null,null,null,null,null,null,0,false,1,1]
[null,null,null,null,null,null,null,null,0,false,1,1]
[null,null,null,null,null,null,null,null,0,false,1,1]
[null,null,null,null,null,null,null,null,0,false,1,1]
[null,null,null,null,null,null,null,null,0,false,1,1]
[null,null,null,null,null,null,null,null,0,false,1,1]
[null,null,null,null,null,null,null,null,0,false,1,1]
[null,null,null,null,null,null,null,null,0,false,1,1]
[null,null,null,null,null,null,null,null,0,false,1,1]
[null,null,null,null,null,null,null,null,0,false,1,1]
[null,null,null,null,null,null,null,null,0,false,1,1]
[null,null,null,null,null,null,null,null,0,false,1,1]
[null,null,null,null,null,null,null,null,0,false,1,1]
[null,null,null,null,null,null,null,null,0,false,1,1]
[null,null,null,null,null,null,null,null,0,false,1,1]
[null,null,null,null,null,null,null,null,0,false,1,1]
[null,null,null,null,null,null,null,null,0,false,1,1]
[null,null,null,null,null,null,null,null,0,false,1,1]
[null,null,null,null,null,null,null,null,0,false,1,1]
[null,null,null,null,null,null,null,null,{"$f":"IF(H511=\"Completed\",1,0)","v":0},{"$f":"AND(AND($H511<>\"Completed\",$A511<TODAY()),$H511<>\"\")","v":false},1,1]
[null,null,null,null,null,null,null,null,0,false,1,{"$f":"SUM(I512,K512)","v":1}]
[null,null,null,null,null,null,null,null,0,false,1,1]
[null,null,null,null,null,null,null,null,0,false,1,1]
[null,null,null,null,null,null,null,null,0,false,1,1]
[null,null,null,null,null,null,null,null,0,false,1,1]
[null,null,null,null,null,null,null,null,0,false,1,1]
[null,null,null,null,null,null,null,null,0,false,1,1]
[null,null,null,null,null,null,null,null,0,false,{"$f":"IF(AND(H519<>\"Completed\",H519<>\"Canceled\"), 1, 0)","v":1},1]
[null,null,null,null,null,null,null,null,0,false,1,1]
[null,null,null,null,null,null,null,null,0,false,1,1]
[null,null,null,null,null,null,null,null,0,false,1,1]
[null,null,null,null,null,null,null,null,0,false,1,1]
[null,null,null,null,null,null,null,null,0,false,1,1]
[null,null,null,null,null,null,null,null,0,false,1,1]
[null,null,null,null,null,null,null,null,0,false,1,1]
[null,null,null,null,null,null,null,null,0,false,1,1]
[null,null,null,null,null,null,null,null,0,false,1,1]
[null,null,null,null,null,null,null,null,0,false,1,1]
[null,null,null,null,null,null,null,null,0,false,1,1]
[null,null,null,null,null,null,null,null,0,false,1,1]
[null,null,null,null,null,null,null,null,0,false,1,1]
[null,null,null,null,null,null,null,null,0,false,1,1]
[null,null,null,null,null,null,null,null,0,false,1,1]
[null,null,null,null,null,null,null,null,0,false,1,1]
[null,null,null,null,null,null,null,null,0,false,1,1]
[null,null,null,null,null,null,null,null,0,false,1,1]
[null,null,null,null,null,null,null,null,0,false,1,1]
[null,null,null,null,null,null,null,null,0,false,1,1]
[null,null,null,null,null,null,null,null,0,false,1,1]
[null,null,null,null,null,null,null,null,0,false,1,1]
[null,null,null,null,null,null,null,null,0,false,1,1]
[null,null,null,null,null,null,null,null,0,false,1,1]
[null,null,null,null,null,null,null,null,0,false,1,1]
[null,null,null,null,null,null,null,null,0,false,1,1]
[null,null,null,null,null,null,null,null,0,false,1,1]
[null,null,null,null,null,null,null,null,0,false,1,1]
[null,null,null,null,null,null,null,null,0,false,1,1]
[null,null,null,null,null,null,null,null,0,false,1,1]
[null,null,null,null,null,null,null,null,0,false,1,1]
[null,null,null,null,null,null,null,null,0,false,1,1]
[null,null,null,null,null,null,null,null,0,false,1,1]
[null,null,null,null,null,null,null,null,0,false,1,1]
[null,null,null,null,null,null,null,null,0,false,1,1]
[null,null,null,null,null,null,null,null,0,false,1,1]
[null,null,null,null,null,null,null,null,0,false,1,1]
[null,null,null,null,null,null,null,null,0,false,1,1]
[null,null,null,null,null,null,null,null,0,false,1,1]
[null,null,null,null,null,null,null,null,0,false,1,1]
[null,null,null,null,null,null,null,null,0,false,1,1]
[null,null,null,null,null,null,null,null,0,false,1,1]
[null,null,null,null,null,null,null,null,0,false,1,1]
[null,null,null,null,null,null,null,null,0,false,1,1]
[null,null,null,null,null,null,null,null,0,false,1,1]
[null,null,null,null,null,null,null,null,0,false,1,1]
[null,null,null,null,null,null,null,null,0,false,1,1]
[null,null,null,null,null,null,null,null,0,false,1,1]
[null,null,null,null,null,null,null,null,0,false,1,1]
[null,null,null,null,null,null,null,null,0,false,1,1]
[null,null,null,null,null,null,null,null,0,false,1,1]
[null,null,null,null,null,null,null,null,0,false,1,1]
[null,null,null,null,null,null,null,null,0,false,1,1]
[null,null,null,null,null,null,null,null,0,false,1,1]
[null,null,null,null,null,null,null,null,0,false,1,1]
[null,null,null,null,null,null,null,null,{"$f":"IF(H575=\"Completed\",1,0)","v":0},{"$f":"AND(AND($H575<>\"Completed\",$A575<TODAY()),$H575<>\"\")","v":false},1,1]
[null,null,null,null,null,null,null,null,0,false,1,{"$f":"SUM(I576,K576)","v":1}]
[null,null,null,null,null,null,null,null,0,false,1,1]
[null,null,null,null,null,null,null,null,0,false,1,1]
[null,null,null,null,null,null,null,null,0,false,1,1]
[null,null,null,null,null,null,null,null,0,false,1,1]
[null,null,null,null,null,null,null,null,0,false,1,1]
[null,null,null,null,null,null,null,null,0,false,1,1]
[null,null,null,null,null,null,null,null,0,false,{"$f":"IF(AND(H583<>\"Completed\",H583<>\"Canceled\"), 1, 0)","v":1},1]
[null,null,null,null,null,null,null,null,{"$f":"IF(H584=\"Completed\",1,0)","v":0},false,1,{"$f":"SUM(I584,K584)","v":1}]
[null,null,null,null,null,null,null,null,0,false,1,1]
[null,null,null,null,null,null,null,null,0,false,1,1]
[null,null,null,null,null,null,null,null,0,false,1,1]
[null,null,null,null,null,null,null,null,0,false,1,1]
[null,null,null,null,null,null,null,null,0,false,1,1]
[null,null,null,null,null,null,null,null,0,false,1,1]
[null,null,null,null,null,null,null,null,0,false,1,1]
[null,null,null,null,null,null,null,null,0,false,1,1]
[null,null,null,null,null,null,null,null,0,false,1,1]
[null,null,null,null,null,null,null,null,0,false,1,1]
[null,null,null,null,null,null,null,null,0,false,1,1]
[null,null,null,null,null,null,null,null,0,false,1,1]
[null,null,null,null,null,null,null,null,0,false,1,1]
[null,null,null,null,null,null,null,null,0,false,1,1]
[null,null,null,null,null,null,null,null,0,false,1,1]
[null,null,null,null,null,null,null,null,0,false,1,1]
[null,null,null,null,null,null,null,null,0,false,1,1]
[null,null,null,null,null,null,null,null,0,false,1,1]
[null,null,null,null,null,null,null,null,0,false,1,1]
[null,null,null,null,null,null,null,null,0,false,1,1]
[null,null,null,null,null,null,null,null,0,false,1,1]
[null,null,null,null,null,null,null,null,0,false,1,1]
[null,null,null,null,null,null,null,null,0,false,1,1]
[null,null,null,null,null,null,null,null,0,false,1,1]
[null,null,null,null,null,null,null,null,0,false,1,1]
[null,null,null,null,null,null,null,null,0,false,1,1]
[null,null,null,null,null,null,null,null,0,false,1,1]
[null,null,null,null,null,null,null,null,0,false,1,1]
[null,null,null,null,null,null,null,null,0,false,1,1]
[null,null,null,null,null,null,null,null,0,false,1,1]
[null,null,null,null,null,null,null,null,0,false,1,1]
[null,null,null,null,null,null,null,null,0,false,1,1]
[null,null,null,null,null,null,null,null,0,false,1,1]
[null,null,null,null,null,null,null,null,0,false,1,1]
[null,null,null,null,null,null,null,null,0,false,1,1]
[null,null,null,null,null,null,null,null,0,false,1,1]
[null,null,null,null,null,null,null,null,0,false,1,1]
[null,null,null,null,null,null,null,null,0,false,1,1]
[null,null,null,null,null,null,null,null,0,false,1,1]
[null,null,null,null,null,null,null,null,0,false,1,1]
[null,null,null,null,null,null,null,null,0,false,1,1]
[null,null,null,null,null,null,null,null,0,false,1,1]
[null,null,null,null,null,null,null,null,0,false,1,1]
[null,null,null,null,null,null,null,null,0,false,1,1]
[null,null,null,null,null,null,null,null,0,false,1,1]
[null,null,null,null,null,null,null,null,0,false,1,1]
[null,null,null,null,null,null,null,null,0,false,1,1]
[null,null,null,null,null,null,null,null,0,false,1,1]
[null,null,null,null,null,null,null,null,0,false,1,1]
[null,null,null,null,null,null,null,null,0,false,1,1]
[null,null,null,null,null,null,null,null,0,false,1,1]
[null,null,null,null,null,null,null,null,0,false,1,1]
[null,null,null,null,null,null,null,null,0,false,1,1]
[null,null,null,null,null,null,null,null,0,false,1,1]
[null,null,null,null,null,null,null,null,0,{"$f":"AND(AND($H639<>\"Completed\",$A639<TODAY()),$H639<>\"\")","v":false},1,1]
[null,null,null,null,null,null,null,null,0,false,1,1]
[null,null,null,null,null,null,null,null,0,false,1,1]
[null,null,null,null,null,null,null,null,0,false,1,1]
[null,null,null,null,null,null,null,null,0,false,1,1]
[null,null,null,null,null,null,null,null,0,false,1,1]
[null,null,null,null,null,null,null,null,0,false,1,1]
[null,null,null,null,null,null,null,null,0,false,1,1]
[null,null,null,null,null,null,null,null,0,false,{"$f":"IF(AND(H647<>\"Completed\",H647<>\"Canceled\"), 1, 0)","v":1},1]
[null,null,null,null,null,null,null,null,{"$f":"IF(H648=\"Completed\",1,0)","v":0},false,1,{"$f":"SUM(I648,K648)","v":1}]
[null,null,null,null,null,null,null,null,0,false,1,1]
[null,null,null,null,null,null,null,null,0,false,1,1]
[null,null,null,null,null,null,null,null,0,false,1,1]
[null,null,null,null,null,null,null,null,0,false,1,1]
[null,null,null,null,null,null,null,null,0,false,1,1]
[null,null,null,null,null,null,null,null,0,false,1,1]
[null,null,null,null,null,null,null,null,0,false,1,1]
[null,null,null,null,null,null,null,null,0,false,1,1]
[null,null,null,null,null,null,null,null,0,false,1,1]
[null,null,null,null,null,null,null,null,0,false,1,1]
[null,null,null,null,null,null,null,null,0,false,1,1]
[null,null,null,null,null,null,null,null,0,false,1,1]
[null,null,null,null,null,null,null,null,0,false,1,1]
[null,null,null,null,null,null,null,null,0,false,1,1]
[null,null,null,null,null,null,null,null,0,false,1,1]
[null,null,null,null,null,null,null,null,0,false,1,1]
[null,null,null,null,null,null,null,null,0,false,1,1]
[null,null,null,null,null,null,null,null,0,false,1,1]
[null,null,null,null,null,null,null,null,0,false,1,1]
[null,null,null,null,null,null,null,null,0,false,1,1]
[null,null,null,null,null,null,null,null,0,false,1,1]
[null,null,null,null,null,null,null,null,0,false,1,1]
[null,null,null,null,null,null,null,null,0,false,1,1]
[null,null,null,null,null,null,null,null,0,false,1,1]
[null,null,null,null,null,null,null,null,0,false,1,1]
[null,null,null,null,null,null,null,null,0,false,1,1]
[null,null,null,null,null,null,null,null,0,false,1,1]
[null,null,null,null,null,null,null,null,0,false,1,1]
[null,null,null,null,null,null,null,null,0,false,1,1]
[null,null,null,null,null,null,null,null,0,false,1,1]
[null,null,null,null,null,null,null,null,0,false,1,1]
[null,null,null,null,null,null,null,null,0,false,1,1]
[null,null,null,null,null,null,null,null,0,false,1,1]
[null,null,null,null,null,null,null,null,0,false,1,1]
[null,null,null,null,null,null,null,null,0,false,1,1]
[null,null,null,null,null,null,null,null,0,false,1,1]
[null,null,null,null,null,null,null,null,0,false,1,1]
[null,null,null,null,null,null,null,null,0,false,1,1]
[null,null,null,null,null,null,null,null,0,false,1,1]
[null,null,null,null,null,null,null,null,0,false,1,1]
[null,null,null,null,null,null,null,null,0,false,1,1]
[null,null,null,null,null,null,null,null,0,false,1,1]
[null,null,null,null,null,null,null,null,0,false,1,1]
[null,null,null,null,null,null,null,null,0,false,1,1]
[null,null,null,null,null,null,null,null,0,false,1,1]
[null,null,null,null,null,null,null,null,0,false,1,1]
[null,null,null,null,null,null,null,null,0,false,1,1]
[null,null,null,null,null,null,null,null,0,false,1,1]
[null,null,null,null,null,null,null,null,0,false,1,1]
[null,null,null,null,null,null,null,null,0,false,1,1]
[null,null,null,null,null,null,null,null,0,false,1,1]
[null,null,null,null,null,null,null,null,0,false,1,1]
[null,null,null,null,null,null,null,null,0,false,1,1]
[null,null,null,null,null,null,null,null,0,false,1,1]
[null,null,null,null,null,null,null,null,0,{"$f":"AND(AND($H703<>\"Completed\",$A703<TODAY()),$H703<>\"\")","v":false},1,1]
[null,null,null,null,null,null,null,null,0,false,1,1]
[null,null,null,null,null,null,null,null,0,false,1,1]
[null,null,null,null,null,null,null,null,0,false,1,1]
[null,null,null,null,null,null,null,null,0,false,1,1]
[null,null,null,null,null,null,null,null,0,false,1,1]
[null,null,null,null,null,null,null,null,0,false,1,1]
[null,null,null,null,null,null,null,null,0,false,1,1]
[null,null,null,null,null,null,null,null,0,false,{"$f":"IF(AND(H711<>\"Completed\",H711<>\"Canceled\"), 1, 0)","v":1},1]
[null,null,null,null,null,null,null,null,{"$f":"IF(H712=\"Completed\",1,0)","v":0},false,1,{"$f":"SUM(I712,K712)","v":1}]
[null,null,null,null,null,null,null,null,0,false,1,1]
[null,null,null,null,null,null,null,null,0,false,1,1]
[null,null,null,null,null,null,null,null,0,false,1,1]
[null,null,null,null,null,null,null,null,0,false,1,1]
[null,null,null,null,null,null,null,null,0,false,1,1]
[null,null,null,null,null,null,null,null,0,false,1,1]
[null,null,null,null,null,null,null,null,0,false,1,1]
[null,null,null,null,null,null,null,null,0,false,1,1]
[null,null,null,null,null,null,null,null,0,false,1,1]
[null,null,null,null,null,null,null,null,0,false,1,1]
[null,null,null,null,null,null,null,null,0,false,1,1]
[null,null,null,null,null,null,null,null,0,false,1,1]
[null,null,null,null,null,null,null,null,0,false,1,1]
[null,null,null,null,null,null,null,null,0,false,1,1]
[null,null,null,null,null,null,null,null,0,false,1,1]
[null,null,null,null,null,null,null,null,0,false,1,1]
[null,null,null,null,null,null,null,null,0,false,1,1]
[null,null,null,null,null,null,null,null,0,false,1,1]
[null,null,null,null,null,null,null,null,0,false,1,1]
[null,null,null,null,null,null,null,null,0,false,1,1]
[null,null,null,null,null,null,null,null,0,false,1,1]
[null,null,null,null,null,null,null,null,0,false,1,1]
[null,null,null,null,null,null,null,null,0,false,1,1]
[null,null,null,null,null,null,null,null,0,false,1,1]
[null,null,null,null,null,null,null,null,0,false,1,1]
[null,null,null,null,null,null,null,null,0,false,1,1]
[null,null,null,null,null,null,null,null,0,false,1,1]
[null,null,null,null,null,null,null,null,0,false,1,1]
[null,null,null,null,null,null,null,null,0,false,1,1]
[null,null,null,null,null,null,null,null,0,false,1,1]
[null,null,null,null,null,null,null,null,0,false,1,1]
[null,null,null,null,null,null,null,null,0,false,1,1]
[null,null,null,null,null,null,null,null,0,false,1,1]
[null,null,null,null,null,null,null,null,0,false,1,1]
[null,null,null,null,null,null,null,null,0,false,1,1]
[null,null,null,null,null,null,null,null,0,false,1,1]
[null,null,null,null,null,null,null,null,0,false,1,1]
[null,null,null,null,null,null,null,null,0,false,1,1]
[null,null,null,null,null,null,null,null,0,false,1,1]
[null,null,null,null,null,null,null,null,0,false,1,1]
[null,null,null,null,null,null,null,null,0,false,1,1]
[null,null,null,null,null,null,null,null,0,false,1,1]
[null,null,null,null,null,null,null,null,0,false,1,1]
[null,null,null,null,null,null,null,null,0,false,1,1]
[null,null,null,null,null,null,null,null,0,false,1,1]
[null,null,null,null,null,null,null,null,0,false,1,1]
[null,null,null,null,null,null,null,null,0,false,1,1]
[null,null,null,null,null,null,null,null,0,false,1,1]
[null,null,null,null,null,null,null,null,0,false,1,1]
[null,null,null,null,null,null,null,null,0,false,1,1]
[null,null,null,null,null,null,null,null,0,false,1,1]
[null,null,null,null,null,null,null,null,0,false,1,1]
[null,null,null,null,null,null,null,null,0,false,1,1]
[null,null,null,null,null,null,null,null,0,false,1,1]
[null,null,null,null,null,null,null,null,0,{"$f":"AND(AND($H767<>\"Completed\",$A767<TODAY()),$H767<>\"\")","v":false},1,1]
[null,null,null,null,null,null,null,null,0,false,1,1]
[null,null,null,null,null,null,null,null,0,false,1,1]
[null,null,null,null,null,null,null,null,0,false,1,1]
[null,null,null,null,null,null,null,null,0,false,1,1]
[null,null,null,null,null,null,null,null,0,false,1,1]
[null,null,null,null,null,null,null,null,0,false,1,1]
[null,null,null,null,null,null,null,null,0,false,1,1]
[null,null,null,null,null,null,null,null,0,false,{"$f":"IF(AND(H775<>\"Completed\",H775<>\"Canceled\"), 1, 0)","v":1},1]
[null,null,null,null,null,null,null,null,{"$f":"IF(H776=\"Completed\",1,0)","v":0},false,1,{"$f":"SUM(I776,K776)","v":1}]
[null,null,null,null,null,null,null,null,0,false,1,1]
[null,null,null,null,null,null,null,null,0,false,1,1]
[null,null,null,null,null,null,null,null,0,false,1,1]
[null,null,null,null,null,null,null,null,0,false,1,1]
[null,null,null,null,null,null,null,null,0,false,1,1]
[null,null,null,null,null,null,null,null,0,false,1,1]
[null,null,null,null,null,null,null,null,0,false,1,1]
[null,null,null,null,null,null,null,null,0,false,1,1]
[null,null,null,null,null,null,null,null,0,false,1,1]
[null,null,null,null,null,null,null,null,0,false,1,1]
[null,null,null,null,null,null,null,null,0,false,1,1]
[null,null,null,null,null,null,null,null,0,false,1,1]
[null,null,null,null,null,null,null,null,0,false,1,1]
[null,null,null,null,null,null,null,null,0,false,1,1]
[null,null,null,null,null,null,null,null,0,false,1,1]
[null,null,null,null,null,null,null,null,0,false,1,1]
[null,null,null,null,null,null,null,null,0,false,1,1]
[null,null,null,null,null,null,null,null,0,false,1,1]
[null,null,null,null,null,null,null,null,0,false,1,1]
[null,null,null,null,null,null,null,null,0,false,1,1]
[null,null,null,null,null,null,null,null,0,false,1,1]
[null,null,null,null,null,null,null,null,0,false,1,1]
[null,null,null,null,null,null,null,null,0,false,1,1]
[null,null,null,null,null,null,null,null,0,false,1,1]
[null,null,null,null,null,null,null,null,0,false,1,1]
[null,null,null,null,null,null,null,null,0,false,1,1]
[null,null,null,null,null,null,null,null,0,false,1,1]
[null,null,null,null,null,null,null,null,0,false,1,1]
[null,null,null,null,null,null,null,null,0,false,1,1]
[null,null,null,null,null,null,null,null,0,false,1,1]
[null,null,null,null,null,null,null,null,0,false,1,1]
[null,null,null,null,null,null,null,null,0,false,1,1]
[null,null,null,null,null,null,null,null,0,false,1,1]
[null,null,null,null,null,null,null,null,0,false,1,1]
[null,null,null,null,null,null,null,null,0,false,1,1]
[null,null,null,null,null,null,null,null,0,false,1,1]
[null,null,null,null,null,null,null,null,0,false,1,1]
[null,null,null,null,null,null,null,null,0,false,1,1]
[null,null,null,null,null,null,null,null,0,false,1,1]
[null,null,null,null,null,null,null,null,0,false,1,1]
[null,null,null,null,null,null,null,null,0,false,1,1]
[null,null,null,null,null,null,null,null,0,false,1,1]
[null,null,null,null,null,null,null,null,0,false,1,1]
[null,null,null,null,null,null,null,null,0,false,1,1]
[null,null,null,null,null,null,null,null,0,false,1,1]
[null,null,null,null,null,null,null,null,0,false,1,1]
[null,null,null,null,null,null,null,null,0,false,1,1]
[null,null,null,null,null,null,null,null,0,false,1,1]
[null,null,null,null,null,null,null,null,0,false,1,1]
[null,null,null,null,null,null,null,null,0,false,1,1]
[null,null,null,null,null,null,null,null,0,false,1,1]
[null,null,null,null,null,null,null,null,0,false,1,1]
[null,null,null,null,null,null,null,null,0,false,1,1]
[null,null,null,null,null,null,null,null,0,false,1,1]
[null,null,null,null,null,null,null,null,0,{"$f":"AND(AND($H831<>\"Completed\",$A831<TODAY()),$H831<>\"\")","v":false},1,1]
[null,null,null,null,null,null,null,null,0,false,1,1]
[null,null,null,null,null,null,null,null,0,false,1,1]
[null,null,null,null,null,null,null,null,0,false,1,1]
[null,null,null,null,null,null,null,null,0,false,1,1]
[null,null,null,null,null,null,null,null,0,false,1,1]
[null,null,null,null,null,null,null,null,0,false,1,1]
[null,null,null,null,null,null,null,null,0,false,1,1]
[null,null,null,null,null,null,null,null,0,false,{"$f":"IF(AND(H839<>\"Completed\",H839<>\"Canceled\"), 1, 0)","v":1},1]
[null,null,null,null,null,null,null,null,{"$f":"IF(H840=\"Completed\",1,0)","v":0},false,1,{"$f":"SUM(I840,K840)","v":1}]
[null,null,null,null,null,null,null,null,0,false,1,1]
[null,null,null,null,null,null,null,null,0,false,1,1]
[null,null,null,null,null,null,null,null,0,false,1,1]
[null,null,null,null,null,null,null,null,0,false,1,1]
[null,null,null,null,null,null,null,null,0,false,1,1]
[null,null,null,null,null,null,null,null,0,false,1,1]
[null,null,null,null,null,null,null,null,0,false,1,1]
[null,null,null,null,null,null,null,null,0,false,1,1]
[null,null,null,null,null,null,null,null,0,false,1,1]
[null,null,null,null,null,null,null,null,0,false,1,1]
[null,null,null,null,null,null,null,null,0,false,1,1]
[null,null,null,null,null,null,null,null,0,false,1,1]
[null,null,null,null,null,null,null,null,0,false,1,1]
[null,null,null,null,null,null,null,null,0,false,1,1]
[null,null,null,null,null,null,null,null,0,false,1,1]
[null,null,null,null,null,null,null,null,0,false,1,1]
[null,null,null,null,null,null,null,null,0,false,1,1]
[null,null,null,null,null,null,null,null,0,false,1,1]
[null,null,null,null,null,null,null,null,0,false,1,1]
[null,null,null,null,null,null,null,null,0,false,1,1]
[null,null,null,null,null,null,null,null,0,false,1,1]
[null,null,null,null,null,null,null,null,0,false,1,1]
[null,null,null,null,null,null,null,null,0,false,1,1]
[null,null,null,null,null,null,null,null,0,false,1,1]
[null,null,null,null,null,null,null,null,0,false,1,1]
[null,null,null,null,null,null,null,null,0,false,1,1]
[null,null,null,null,null,null,null,null,0,false,1,1]
[null,null,null,null,null,null,null,null,0,false,1,1]
[null,null,null,null,null,null,null,null,0,false,1,1]
[null,null,null,null,null,null,null,null,0,false,1,1]
[null,null,null,null,null,null,null,null,0,false,1,1]
[null,null,null,null,null,null,null,null,0,false,1,1]
[null,null,null,null,null,null,null,null,0,false,1,1]
[null,null,null,null,null,null,null,null,0,false,1,1]
[null,null,null,null,null,null,null,null,0,false,1,1]
[null,null,null,null,null,null,null,null,0,false,1,1]
[null,null,null,null,null,null,null,null,0,false,1,1]
[null,null,null,null,null,null,null,null,0,false,1,1]
[null,null,null,null,null,null,null,null,0,false,1,1]
[null,null,null,null,null,null,null,null,0,false,1,1]
[null,null,null,null,null,null,null,null,0,false,1,1]
[null,null,null,null,null,null,null,null,0,false,1,1]
[null,null,null,null,null,null,null,null,0,false,1,1]
[null,null,null,null,null,null,null,null,0,false,1,1]
[null,null,null,null,null,null,null,null,0,false,1,1]
[null,null,null,null,null,null,null,null,0,false,1,1]
[null,null,null,null,null,null,null,null,0,false,1,1]
[null,null,null,null,null,null,null,null,0,false,1,1]
[null,null,null,null,null,null,null,null,0,false,1,1]
[null,null,null,null,null,null,null,null,0,false,1,1]
[null,null,null,null,null,null,null,null,0,false,1,1]
[null,null,null,null,null,null,null,null,0,false,1,1]
[null,null,null,null,null,null,null,null,0,false,1,1]
[null,null,null,null,null,null,null,null,0,false,1,1]
[null,null,null,null,null,null,null,null,0,{"$f":"AND(AND($H895<>\"Completed\",$A895<TODAY()),$H895<>\"\")","v":false},1,1]
[null,null,null,null,null,null,null,null,0,false,1,1]
[null,null,null,null,null,null,null,null,0,false,1,1]
[null,null,null,null,null,null,null,null,0,false,1,1]
[null,null,null,null,null,null,null,null,0,false,1,1]
[null,null,null,null,null,null,null,null,0,false,1,1]
[null,null,null,null,null,null,null,null,0,false,1,1]
[null,null,null,null,null,null,null,null,0,false,1,1]
[null,null,null,null,null,null,null,null,0,false,{"$f":"IF(AND(H903<>\"Completed\",H903<>\"Canceled\"), 1, 0)","v":1},1]
[null,null,null,null,null,null,null,null,{"$f":"IF(H904=\"Completed\",1,0)","v":0},false,1,{"$f":"SUM(I904,K904)","v":1}]
[null,null,null,null,null,null,null,null,0,false,1,1]
[null,null,null,null,null,null,null,null,0,false,1,1]
[null,null,null,null,null,null,null,null,0,false,1,1]
[null,null,null,null,null,null,null,null,0,false,1,1]
[null,null,null,null,null,null,null,null,0,false,1,1]
[null,null,null,null,null,null,null,null,0,false,1,1]
[null,null,null,null,null,null,null,null,0,false,1,1]
[null,null,null,null,null,null,null,null,0,false,1,1]
[null,null,null,null,null,null,null,null,0,false,1,1]
[null,null,null,null,null,null,null,null,0,false,1,1]
[null,null,null,null,null,null,null,null,0,false,1,1]
[null,null,null,null,null,null,null,null,0,false,1,1]
[null,null,null,null,null,null,null,null,0,false,1,1]
[null,null,null,null,null,null,null,null,0,false,1,1]
[null,null,null,null,null,null,null,null,0,false,1,1]
[null,null,null,null,null,null,null,null,0,false,1,1]
[null,null,null,null,null,null,null,null,0,false,1,1]
[null,null,null,null,null,null,null,null,0,false,1,1]
[null,null,null,null,null,null,null,null,0,false,1,1]
[null,null,null,null,null,null,null,null,0,false,1,1]
[null,null,null,null,null,null,null,null,0,false,1,1]
[null,null,null,null,null,null,null,null,0,false,1,1]
[null,null,null,null,null,null,null,null,0,false,1,1]
[null,null,null,null,null,null,null,null,0,false,1,1]
[null,null,null,null,null,null,null,null,0,false,1,1]
[null,null,null,null,null,null,null,null,0,false,1,1]
[null,null,null,null,null,null,null,null,0,false,1,1]
[null,null,null,null,null,null,null,null,0,false,1,1]
[null,null,null,null,null,null,null,null,0,false,1,1]
[null,null,null,null,null,null,null,null,0,false,1,1]
[null,null,null,null,null,null,null,null,0,false,1,1]
[null,null,null,null,null,null,null,null,0,false,1,1]
[null,null,null,null,null,null,null,null,0,false,1,1]
[null,null,null,null,null,null,null,null,0,false,1,1]
[null,null,null,null,null,null,null,null,0,false,1,1]
[null,null,null,null,null,null,null,null,0,false,1,1]
[null,null,null,null,null,null,null,null,0,false,1,1]
[null,null,null,null,null,null,null,null,0,false,1,1]
[null,null,null,null,null,null,null,null,0,false,1,1]
[null,null,null,null,null,null,null,null,0,false,1,1]
[null,null,null,null,null,null,null,null,0,false,1,1]
[null,null,null,null,null,null,null,null,0,false,1,1]
[null,null,null,null,null,null,null,null,0,false,1,1]
[null,null,null,null,null,null,null,null,0,false,1,1]
[null,null,null,null,null,null,null,null,0,false,1,1]
[null,null,null,null,null,null,null,null,0,false,1,1]
[null,null,null,null,null,null,null,null,0,false,1,1]
[null,null,null,null,null,null,null,null,0,false,1,1]
[null,null,null,null,null,null,null,null,0,false,1,1]
[null,null,null,null,null,null,null,null,0,false,1,1]
[null,null,null,null,null,null,null,null,0,false,1,1]
[null,null,null,null,null,null,null,null,0,false,1,1]
[null,null,null,null,null,null,null,null,0,false,1,1]
[null,null,null,null,null,null,null,null,0,false,1,1]
[null,null,null,null,null,null,null,null,0,{"$f":"AND(AND($H959<>\"Completed\",$A959<TODAY()),$H959<>\"\")","v":false},1,1]
[null,null,null,null,null,null,null,null,0,false,1,1]
[null,null,null,null,null,null,null,null,0,false,1,1]
[null,null,null,null,null,null,null,null,0,false,1,1]
[null,null,null,null,null,null,null,null,0,false,1,1]
[null,null,null,null,null,null,null,null,0,false,1,1]
[null,null,null,null,null,null,null,null,0,false,1,1]
[null,null,null,null,null,null,null,null,0,false,1,1]
[null,null,null,null,null,null,null,null,0,false,{"$f":"IF(AND(H967<>\"Completed\",H967<>\"Canceled\"), 1, 0)","v":1},1]
[null,null,null,null,null,null,null,null,{"$f":"IF(H968=\"Completed\",1,0)","v":0},false,1,{"$f":"SUM(I968,K968)","v":1}]
[null,null,null,null,null,null,null,null,0,false,1,1]
[null,null,null,null,null,null,null,null,0,false,1,1]
[null,null,null,null,null,null,null,null,0,false,1,1]
[null,null,null,null,null,null,null,null,0,false,1,1]
[null,null,null,null,null,null,null,null,0,false,1,1]
[null,null,null,null,null,null,null,null,0,false,1,1]
[null,null,null,null,null,null,null,null,0,false,1,1]
[null,null,null,null,null,null,null,null,0,false,1,1]
[null,null,null,null,null,null,null,null,0,false,1,1]
[null,null,null,null,null,null,null,null,0,false,1,1]
[null,null,null,null,null,null,null,null,0,false,1,1]
[null,null,null,null,null,null,null,null,0,false,1,1]
[null,null,null,null,null,null,null,null,0,false,1,1]
[null,null,null,null,null,null,null,null,0,false,1,1]
[null,null,null,null,null,null,null,null,0,false,1,1]
[null,null,null,null,null,null,null,null,0,false,1,1]
[null,null,null,null,null,null,null,null,0,false,1,1]
[null,null,null,null,null,null,null,null,0,false,1,1]
[null,null,null,null,null,null,null,null,0,false,1,1]
[null,null,null,null,null,null,null,null,0,false,1,1]
[null,null,null,null,null,null,null,null,0,false,1,1]
[null,null,null,null,null,null,null,null,0,false,1,1]
[null,null,null,null,null,null,null,null,0,false,1,1]
[null,null,null,null,null,null,null,null,0,false,1,1]
[null,null,null,null,null,null,null,null,0,false,1,1]
[null,null,null,null,null,null,null,null,0,false,1,1]
[null,null,null,null,null,null,null,null,0,false,1,1]
[null,null,null,null,null,null,null,null,0,false,1,1]
[null,null,null,null,null,null,null,null,0,false,1,1]
[null,null,null,null,null,null,null,null,0,false,1,1]
[null,null,null,null,null,null,null,null,0,false,1,1]
[null,null,null,null,null,null,null,null,0,false,1,1]
[null,null,null,null,null,null,null,null,0,false,1,1]
[null,null,null,null,null,null,null,null,0,false,1,1]
[null,null,null,null,null,null,null,null,0,false,1,1]
[null,null,null,null,null,null,null,null,0,false,1,1]
[null,null,null,null,null,null,null,null,0,false,1,1]
[null,null,null,null,null,null,null,null,0,false,1,1]
[null,null,null,null,null,null,null,null,0,false,1,1]
[null,null,null,null,null,null,null,null,0,false,1,1]
[null,null,null,null,null,null,null,null,0,false,1,1]
[null,null,null,null,null,null,null,null,0,false,1,1]
[null,null,null,null,null,null,null,null,0,false,1,1]
[null,null,null,null,null,null,null,null,0,false,1,1]
[null,null,null,null,null,null,null,null,0,false,1,1]
[null,null,null,null,null,null,null,null,0,false,1,1]
[null,null,null,null,null,null,null,null,0,false,1,1]
[null,null,null,null,null,null,null,null,0,false,1,1]
[null,null,null,null,null,null,null,null,0,false,1,1]
[null,null,null,null,null,null,null,null,0,false,1,1]
[null,null,null,null,null,null,null,null,0,false,1,1]
[null,null,null,null,null,null,null,null,0,false,1,1]
[null,null,null,null,null,null,null,null,0,false,1,1]
[null,null,null,null,null,null,null,null,0,false,1,1]
[null,null,null,null,null,null,null,null,0,{"$f":"AND(AND($H1023<>\"Completed\",$A1023<TODAY()),$H1023<>\"\")","v":false},1,1]
[null,null,null,null,null,null,null,null,0,false,1,1]
[null,null,null,null,null,null,null,null,0,false,1,1]
[null,null,null,null,null,null,null,null,0,false,1,1]
[null,null,null,null,null,null,null,null,0,false,1,1]
[null,null,null,null,null,null,null,null,0,false,1,1]
[null,null,null,null,null,null,null,null,0,false,1,1]
[null,null,null,null,null,null,null,null,0,false,1,1]
[null,null,null,null,null,null,null,null,0,false,{"$f":"IF(AND(H1031<>\"Completed\",H1031<>\"Canceled\"), 1, 0)","v":1},1]
[null,null,null,null,null,null,null,null,{"$f":"IF(H1032=\"Completed\",1,0)","v":0},false,1,{"$f":"SUM(I1032,K1032)","v":1}]
[null,null,null,null,null,null,null,null,0,false,1,1]
[null,null,null,null,null,null,null,null,0,false,1,1]
[null,null,null,null,null,null,null,null,0,false,1,1]
[null,null,null,null,null,null,null,null,0,false,1,1]
[null,null,null,null,null,null,null,null,0,false,1,1]
[null,null,null,null,null,null,null,null,0,false,1,1]
[null,null,null,null,null,null,null,null,0,false,1,1]
[null,null,null,null,null,null,null,null,0,false,1,1]
[null,null,null,null,null,null,null,null,0,false,1,1]
[null,null,null,null,null,null,null,null,0,false,1,1]
[null,null,null,null,null,null,null,null,0,false,1,1]
[null,null,null,null,null,null,null,null,0,false,1,1]
[null,null,null,null,null,null,null,null,0,false,1,1]
[null,null,null,null,null,null,null,null,0,false,1,1]
[null,null,null,null,null,null,null,null,0,false,1,1]
[null,null,null,null,null,null,null,null,0,false,1,1]
[null,null,null,null,null,null,null,null,0,false,1,1]
[null,null,null,null,null,null,null,null,0,false,1,1]
[null,null,null,null,null,null,null,null,0,false,1,1]
[null,null,null,null,null,null,null,null,0,false,1,1]
[null,null,null,null,null,null,null,null,0,false,1,1]
[null,null,null,null,null,null,null,null,0,false,1,1]
[null,null,null,null,null,null,null,null,0,false,1,1]
[null,null,null,null,null,null,null,null,0,false,1,1]
[null,null,null,null,null,null,null,null,0,false,1,1]
[null,null,null,null,null,null,null,null,0,false,1,1]
[null,null,null,null,null,null,null,null,0,false,1,1]
[null,null,null,null,null,null,null,null,0,false,1,1]
[null,null,null,null,null,null,null,null,0,false,1,1]
[null,null,null,null,null,null,null,null,0,false,1,1]
[null,null,null,null,null,null,null,null,0,false,1,1]
[null,null,null,null,null,null,null,null,0,false,1,1]
[null,null,null,null,null,null,null,null,0,false,1,1]
[null,null,null,null,null,null,null,null,0,false,1,1]
[null,null,null,null,null,null,null,null,0,false,1,1]
[null,null,null,null,null,null,null,null,0,false,1,1]
[null,null,null,null,null,null,null,null,0,false,1,1]
[null,null,null,null,null,null,null,null,0,false,1,1]
[null,null,null,null,null,null,null,null,0,false,1,1]
[null,null,null,null,null,null,null,null,0,false,1,1]
[null,null,null,null,null,null,null,null,0,false,1,1]
[null,null,null,null,null,null,null,null,0,false,1,1]
[null,null,null,null,null,null,null,null,0,false,1,1]
[null,null,null,null,null,null,null,null,0,false,1,1]
[null,null,null,null,null,null,null,null,0,false,1,1]
[null,null,null,null,null,null,null,null,0,false,1,1]
[null,null,null,null,null,null,null,null,0,false,1,1]
[null,null,null,null,null,null,null,null,0,false,1,1]
[null,null,null,null,null,null,null,null,0,false,1,1]
[null,null,null,null,null,null,null,null,0,false,1,1]
[null,null,null,null,null,null,null,null,0,false,1,1]
[null,null,null,null,null,null,null,null,0,false,1,1]
[null,null,null,null,null,null,null,null,0,false,1,1]
[null,null,null,null,null,null,null,null,0,false,1,1]
[null,null,null,null,null,null,null,null,0,{"$f":"AND(AND($H1087<>\"Completed\",$A1087<TODAY()),$H1087<>\"\")","v":false},1,1]
[null,null,null,null,null,null,null,null,0,false,1,1]
[null,null,null,null,null,null,null,null,0,false,1,1]
[null,null,null,null,null,null,null,null,0,false,1,1]
[null,null,null,null,null,null,null,null,0,false,1,1]
[null,null,null,null,null,null,null,null,0,false,1,1]
[null,null,null,null,null,null,null,null,0,false,1,1]
[null,null,null,null,null,null,null,null,0,false,1,1]
[null,null,null,null,null,null,null,null,0,false,{"$f":"IF(AND(H1095<>\"Completed\",H1095<>\"Canceled\"), 1, 0)","v":1},1]
[null,null,null,null,null,null,null,null,{"$f":"IF(H1096=\"Completed\",1,0)","v":0},false,1,{"$f":"SUM(I1096,K1096)","v":1}]
[null,null,null,null,null,null,null,null,0,false,1,1]
[null,null,null,null,null,null,null,null,0,false,1,1]
[null,null,null,null,null,null,null,null,0,false,1,1]
[null,null,null,null,null,null,null,null,0,false,1,1]
[null,null,null,null,null,null,null,null,0,false,1,1]
[null,null,null,null,null,null,null,null,0,false,1,1]
[null,null,null,null,null,null,null,null,0,false,1,1]
[null,null,null,null,null,null,null,null,0,false,1,1]
[null,null,null,null,null,null,null,null,0,false,1,1]
[null,null,null,null,null,null,null,null,0,false,1,1]
[null,null,null,null,null,null,null,null,0,false,1,1]
[null,null,null,null,null,null,null,null,0,false,1,1]
[null,null,null,null,null,null,null,null,0,false,1,1]
[null,null,null,null,null,null,null,null,0,false,1,1]
[null,null,null,null,null,null,null,null,0,false,1,1]
[null,null,null,null,null,null,null,null,0,false,1,1]
[null,null,null,null,null,null,null,null,0,false,1,1]
[null,null,null,null,null,null,null,null,0,false,1,1]
[null,null,null,null,null,null,null,null,0,false,1,1]
[null,null,null,null,null,null,null,null,0,false,1,1]
[null,null,null,null,null,null,null,null,0,false,1,1]
[null,null,null,null,null,null,null,null,0,false,1,1]
[null,null,null,null,null,null,null,null,0,false,1,1]
[null,null,null,null,null,null,null,null,0,false,1,1]
[null,null,null,null,null,null,null,null,0,false,1,1]
[null,null,null,null,null,null,null,null,0,false,1,1]
[null,null,null,null,null,null,null,null,0,false,1,1]
[null,null,null,null,null,null,null,null,0,false,1,1]
[null,null,null,null,null,null,null,null,0,false,1,1]
[null,null,null,null,null,null,null,null,0,false,1,1]
[null,null,null,null,null,null,null,null,0,false,1,1]
[null,null,null,null,null,null,null,null,0,false,1,1]
[null,null,null,null,null,null,null,null,0,false,1,1]
[null,null,null,null,null,null,null,null,0,false,1,1]
[null,null,null,null,null,null,null,null,0,false,1,1]
[null,null,null,null,null,null,null,null,0,false,1,1]
[null,null,null,null,null,null,null,null,0,false,1,1]
[null,null,null,null,null,null,null,null,0,false,1,1]
[null,null,null,null,null,null,null,null,0,false,1,1]
[null,null,null,null,null,null,null,null,0,false,1,1]
[null,null,null,null,null,null,null,null,0,false,1,1]
[null,null,null,null,null,null,null,null,0,false,1,1]
[null,null,null,null,null,null,null,null,0,false,1,1]
[null,null,null,null,null,null,null,null,0,false,1,1]
[null,null,null,null,null,null,null,null,0,false,1,1]
[null,null,null,null,null,null,null,null,0,false,1,1]
[null,null,null,null,null,null,null,null,0,false,1,1]
[null,null,null,null,null,null,null,null,0,false,1,1]
[null,null,null,null,null,null,null,null,0,false,1,1]
[null,null,null,null,null,null,null,null,0,false,1,1]
[null,null,null,null,null,null,null,null,0,false,1,1]
[null,null,null,null,null,null,null,null,0,false,1,1]
[null,null,null,null,null,null,null,null,0,false,1,1]
[null,null,null,null,null,null,null,null,0,false,1,1]
[null,null,null,null,null,null,null,null,0,{"$f":"AND(AND($H1151<>\"Completed\",$A1151<TODAY()),$H1151<>\"\")","v":false},1,1]
[null,null,null,null,null,null,null,null,0,false,1,1]
[null,null,null,null,null,null,null,null,0,false,1,1]
[null,null,null,null,null,null,null,null,0,false,1,1]
[null,null,null,null,null,null,null,null,0,false,1,1]
[null,null,null,null,null,null,null,null,0,false,1,1]
[null,null,null,null,null,null,null,null,0,false,1,1]
[null,null,null,null,null,null,null,null,0,false,1,1]
[null,null,null,null,null,null,null,null,0,false,{"$f":"IF(AND(H1159<>\"Completed\",H1159<>\"Canceled\"), 1, 0)","v":1},1]
[null,null,null,null,null,null,null,null,{"$f":"IF(H1160=\"Completed\",1,0)","v":0},false,1,{"$f":"SUM(I1160,K1160)","v":1}]
[null,null,null,null,null,null,null,null,0,false,1,1]
[null,null,null,null,null,null,null,null,0,false,1,1]
[null,null,null,null,null,null,null,null,0,false,1,1]
[null,null,null,null,null,null,null,null,0,false,1,1]
[null,null,null,null,null,null,null,null,0,false,1,1]
[null,null,null,null,null,null,null,null,0,false,1,1]
[null,null,null,null,null,null,null,null,0,false,1,1]
[null,null,null,null,null,null,null,null,0,false,1,1]
[null,null,null,null,null,null,null,null,0,false,1,1]
[null,null,null,null,null,null,null,null,0,false,1,1]
[null,null,null,null,null,null,null,null,0,false,1,1]
[null,null,null,null,null,null,null,null,0,false,1,1]
[null,null,null,null,null,null,null,null,0,false,1,1]
[null,null,null,null,null,null,null,null,0,false,1,1]
[null,null,null,null,null,null,null,null,0,false,1,1]
[null,null,null,null,null,null,null,null,0,false,1,1]
[null,null,null,null,null,null,null,null,0,false,1,1]
[null,null,null,null,null,null,null,null,0,false,1,1]
[null,null,null,null,null,null,null,null,0,false,1,1]
[null,null,null,null,null,null,null,null,0,false,1,1]
[null,null,null,null,null,null,null,null,0,false,1,1]
[null,null,null,null,null,null,null,null,0,false,1,1]
[null,null,null,null,null,null,null,null,0,false,1,1]
[null,null,null,null,null,null,null,null,0,false,1,1]
[null,null,null,null,null,null,null,null,0,false,1,1]
[null,null,null,null,null,null,null,null,0,false,1,1]
[null,null,null,null,null,null,null,null,0,false,1,1]
[null,null,null,null,null,null,null,null,0,false,1,1]
[null,null,null,null,null,null,null,null,0,false,1,1]
[null,null,null,null,null,null,null,null,0,false,1,1]
[null,null,null,null,null,null,null,null,0,false,1,1]
[null,null,null,null,null,null,null,null,0,false,1,1]
[null,null,null,null,null,null,null,null,0,false,1,1]
[null,null,null,null,null,null,null,null,0,false,1,1]
[null,null,null,null,null,null,null,null,0,false,1,1]
[null,null,null,null,null,null,null,null,0,false,1,1]
[null,null,null,null,null,null,null,null,0,false,1,1]
[null,null,null,null,null,null,null,null,0,false,1,1]
[null,null,null,null,null,null,null,null,0,false,1,1]
[null,null,null,null,null,null,null,null,0,false,1,1]
[null,null,null,null,null,null,null,null,0,false,1,1]
[null,null,null,null,null,null,null,null,0,false,1,1]
[null,null,null,null,null,null,null,null,0,false,1,1]
[null,null,null,null,null,null,null,null,0,false,1,1]
[null,null,null,null,null,null,null,null,0,false,1,1]
[null,null,null,null,null,null,null,null,0,false,1,1]
[null,null,null,null,null,null,null,null,0,false,1,1]
[null,null,null,null,null,null,null,null,0,false,1,1]
[null,null,null,null,null,null,null,null,0,false,1,1]
[null,null,null,null,null,null,null,null,0,false,1,1]
[null,null,null,null,null,null,null,null,0,false,1,1]
[null,null,null,null,null,null,null,null,0,false,1,1]
[null,null,null,null,null,null,null,null,0,false,1,1]
[null,null,null,null,null,null,null,null,0,false,1,1]
[null,null,null,null,null,null,null,null,0,{"$f":"AND(AND($H1215<>\"Completed\",$A1215<TODAY()),$H1215<>\"\")","v":false},1,1]
[null,null,null,null,null,null,null,null,0,false,1,1]
[null,null,null,null,null,null,null,null,0,false,1,1]
[null,null,null,null,null,null,null,null,0,false,1,1]
[null,null,null,null,null,null,null,null,0,false,1,1]
[null,null,null,null,null,null,null,null,0,false,1,1]
[null,null,null,null,null,null,null,null,0,false,1,1]
[null,null,null,null,null,null,null,null,0,false,1,1]
[null,null,null,null,null,null,null,null,0,false,{"$f":"IF(AND(H1223<>\"Completed\",H1223<>\"Canceled\"), 1, 0)","v":1},1]
[null,null,null,null,null,null,null,null,{"$f":"IF(H1224=\"Completed\",1,0)","v":0},false,1,{"$f":"SUM(I1224,K1224)","v":1}]
[null,null,null,null,null,null,null,null,0,false,1,1]
[null,null,null,null,null,null,null,null,0,false,1,1]
[null,null,null,null,null,null,null,null,0,false,1,1]
[null,null,null,null,null,null,null,null,0,false,1,1]
[null,null,null,null,null,null,null,null,0,false,1,1]
[null,null,null,null,null,null,null,null,0,false,1,1]
[null,null,null,null,null,null,null,null,0,false,1,1]
[null,null,null,null,null,null,null,null,0,false,1,1]
[null,null,null,null,null,null,null,null,0,false,1,1]
[null,null,null,null,null,null,null,null,0,false,1,1]
[null,null,null,null,null,null,null,null,0,false,1,1]
[null,null,null,null,null,null,null,null,0,false,1,1]
[null,null,null,null,null,null,null,null,0,false,1,1]
[null,null,null,null,null,null,null,null,0,false,1,1]
[null,null,null,null,null,null,null,null,0,false,1,1]
[null,null,null,null,null,null,null,null,0,false,1,1]
[null,null,null,null,null,null,null,null,0,false,1,1]
[null,null,null,null,null,null,null,null,0,false,1,1]
[null,null,null,null,null,null,null,null,0,false,1,1]
[null,null,null,null,null,null,null,null,0,false,1,1]
[null,null,null,null,null,null,null,null,0,false,1,1]
[null,null,null,null,null,null,null,null,0,false,1,1]
[null,null,null,null,null,null,null,null,0,false,1,1]
[null,null,null,null,null,null,null,null,0,false,1,1]
[null,null,null,null,null,null,null,null,0,false,1,1]
[null,null,null,null,null,null,null,null,0,false,1,1]
[null,null,null,null,null,null,null,null,0,false,1,1]
[null,null,null,null,null,null,null,null,0,false,1,1]
[null,null,null,null,null,null,null,null,0,false,1,1]
[null,null,null,null,null,null,null,null,0,false,1,1]
[null,null,null,null,null,null,null,null,0,false,1,1]
[null,null,null,null,null,null,null,null,0,false,1,1]
[null,null,null,null,null,null,null,null,0,false,1,1]
[null,null,null,null,null,null,null,null,0,false,1,1]
[null,null,null,null,null,null,null,null,0,false,1,1]
[null,null,null,null,null,null,null,null,0,false,1,1]
[null,null,null,null,null,null,null,null,0,false,1,1]
[null,null,null,null,null,null,null,null,0,false,1,1]
[null,null,null,null,null,null,null,null,0,false,1,1]
[null,null,null,null,null,null,null,null,0,false,1,1]
[null,null,null,null,null,null,null,null,0,false,1,1]
[null,null,null,null,null,null,null,null,0,false,1,1]
[null,null,null,null,null,null,null,null,0,false,1,1]
[null,null,null,null,null,null,null,null,0,false,1,1]
[null,null,null,null,null,null,null,null,0,false,1,1]
[null,null,null,null,null,null,null,null,0,false,1,1]
[null,null,null,null,null,null,null,null,0,false,1,1]
[null,null,null,null,null,null,null,null,0,false,1,1]
[null,null,null,null,null,null,null,null,0,false,1,1]
[null,null,null,null,null,null,null,null,0,false,1,1]
[null,null,null,null,null,null,null,null,0,false,1,1]
[null,null,null,null,null,null,null,null,0,false,1,1]
[null,null,null,null,null,null,null,null,0,false,1,1]
[null,null,null,null,null,null,null,null,0,false,1,1]
[null,null,null,null,null,null,null,null,0,{"$f":"AND(AND($H1279<>\"Completed\",$A1279<TODAY()),$H1279<>\"\")","v":false},1,1]
[null,null,null,null,null,null,null,null,0,false,1,1]
[null,null,null,null,null,null,null,null,0,false,1,1]
[null,null,null,null,null,null,null,null,0,false,1,1]
[null,null,null,null,null,null,null,null,0,false,1,1]
[null,null,null,null,null,null,null,null,0,false,1,1]
[null,null,null,null,null,null,null,null,0,false,1,1]
[null,null,null,null,null,null,null,null,0,false,1,1]
[null,null,null,null,null,null,null,null,0,false,{"$f":"IF(AND(H1287<>\"Completed\",H1287<>\"Canceled\"), 1, 0)","v":1},1]
[null,null,null,null,null,null,null,null,{"$f":"IF(H1288=\"Completed\",1,0)","v":0},false,1,{"$f":"SUM(I1288,K1288)","v":1}]
[null,null,null,null,null,null,null,null,0,false,1,1]
[null,null,null,null,null,null,null,null,0,false,1,1]
[null,null,null,null,null,null,null,null,0,false,1,1]
[null,null,null,null,null,null,null,null,0,false,1,1]
[null,null,null,null,null,null,null,null,0,false,1,1]
[null,null,null,null,null,null,null,null,0,false,1,1]
[null,null,null,null,null,null,null,null,0,false,1,1]
[null,null,null,null,null,null,null,null,0,false,1,1]
[null,null,null,null,null,null,null,null,0,false,1,1]
[null,null,null,null,null,null,null,null,0,false,1,1]
[null,null,null,null,null,null,null,null,0,false,1,1]
[null,null,null,null,null,null,null,null,0,false,1,1]
[null,null,null,null,null,null,null,null,0,false,1,1]
[null,null,null,null,null,null,null,null,0,false,1,1]
[null,null,null,null,null,null,null,null,0,false,1,1]
[null,null,null,null,null,null,null,null,0,false,1,1]
[null,null,null,null,null,null,null,null,0,false,1,1]
[null,null,null,null,null,null,null,null,0,false,1,1]
[null,null,null,null,null,null,null,null,0,false,1,1]
[null,null,null,null,null,null,null,null,0,false,1,1]
[null,null,null,null,null,null,null,null,0,false,1,1]
[null,null,null,null,null,null,null,null,0,false,1,1]
[null,null,null,null,null,null,null,null,0,false,1,1]
[null,null,null,null,null,null,null,null,0,false,1,1]
[null,null,null,null,null,null,null,null,0,false,1,1]
[null,null,null,null,null,null,null,null,0,false,1,1]
[null,null,null,null,null,null,null,null,0,false,1,1]
[null,null,null,null,null,null,null,null,0,false,1,1]
[null,null,null,null,null,null,null,null,0,false,1,1]
[null,null,null,null,null,null,null,null,0,false,1,1]
[null,null,null,null,null,null,null,null,0,false,1,1]
[null,null,null,null,null,null,null,null,0,false,1,1]
[null,null,null,null,null,null,null,null,0,false,1,1]
[null,null,null,null,null,null,null,null,0,false,1,1]
[null,null,null,null,null,null,null,null,0,false,1,1]
[null,null,null,null,null,null,null,null,0,false,1,1]
[null,null,null,null,null,null,null,null,0,false,1,1]
[null,null,null,null,null,null,null,null,0,false,1,1]
[null,null,null,null,null,null,null,null,0,false,1,1]
[null,null,null,null,null,null,null,null,0,false,1,1]
[null,null,null,null,null,null,null,null,0,false,1,1]
[null,null,null,null,null,null,null,null,0,false,1,1]
[null,null,null,null,null,null,null,null,0,false,1,1]
[null,null,null,null,null,null,null,null,0,false,1,1]
[null,null,null,null,null,null,null,null,0,false,1,1]
[null,null,null,null,null,null,null,null,0,false,1,1]
[null,null,null,null,null,null,null,null,0,false,1,1]
[null,null,null,null,null,null,null,null,0,false,1,1]
[null,null,null,null,null,null,null,null,0,false,1,1]
[null,null,null,null,null,null,null,null,0,false,1,1]
[null,null,null,null,null,null,null,null,0,false,1,1]
[null,null,null,null,null,null,null,null,0,false,1,1]
[null,null,null,null,null,null,null,null,0,false,1,1]
[null,null,null,null,null,null,null,null,0,false,1,1]
[null,null,null,null,null,null,null,null,0,{"$f":"AND(AND($H1343<>\"Completed\",$A1343<TODAY()),$H1343<>\"\")","v":false},1,1]
[null,null,null,null,null,null,null,null,0,false,1,1]
[null,null,null,null,null,null,null,null,0,false,1,1]
[null,null,null,null,null,null,null,null,0,false,1,1]
[null,null,null,null,null,null,null,null,0,false,1,1]
[null,null,null,null,null,null,null,null,0,false,1,1]
[null,null,null,null,null,null,null,null,0,false,1,1]
[null,null,null,null,null,null,null,null,0,false,1,1]
[null,null,null,null,null,null,null,null,0,false,{"$f":"IF(AND(H1351<>\"Completed\",H1351<>\"Canceled\"), 1, 0)","v":1},1]
[null,null,null,null,null,null,null,null,{"$f":"IF(H1352=\"Completed\",1,0)","v":0},false,1,{"$f":"SUM(I1352,K1352)","v":1}]
[null,null,null,null,null,null,null,null,0,false,1,1]
[null,null,null,null,null,null,null,null,0,false,1,1]
[null,null,null,null,null,null,null,null,0,false,1,1]
[null,null,null,null,null,null,null,null,0,false,1,1]
[null,null,null,null,null,null,null,null,0,false,1,1]
[null,null,null,null,null,null,null,null,0,false,1,1]
[null,null,null,null,null,null,null,null,0,false,1,1]
[null,null,null,null,null,null,null,null,0,false,1,1]
[null,null,null,null,null,null,null,null,0,false,1,1]
[null,null,null,null,null,null,null,null,0,false,1,1]
[null,null,null,null,null,null,null,null,0,false,1,1]
[null,null,null,null,null,null,null,null,0,false,1,1]
[null,null,null,null,null,null,null,null,0,false,1,1]
[null,null,null,null,null,null,null,null,0,false,1,1]
[null,null,null,null,null,null,null,null,0,false,1,1]
[null,null,null,null,null,null,null,null,0,false,1,1]
[null,null,null,null,null,null,null,null,0,false,1,1]
[null,null,null,null,null,null,null,null,0,false,1,1]
[null,null,null,null,null,null,null,null,0,false,1,1]
[null,null,null,null,null,null,null,null,0,false,1,1]
[null,null,null,null,null,null,null,null,0,false,1,1]
[null,null,null,null,null,null,null,null,0,false,1,1]
[null,null,null,null,null,null,null,null,0,false,1,1]
[null,null,null,null,null,null,null,null,0,false,1,1]
[null,null,null,null,null,null,null,null,0,false,1,1]
[null,null,null,null,null,null,null,null,0,false,1,1]
[null,null,null,null,null,null,null,null,0,false,1,1]
[null,null,null,null,null,null,null,null,0,false,1,1]
[null,null,null,null,null,null,null,null,0,false,1,1]
[null,null,null,null,null,null,null,null,0,false,1,1]
[null,null,null,null,null,null,null,null,0,false,1,1]
[null,null,null,null,null,null,null,null,0,false,1,1]
[null,null,null,null,null,null,null,null,0,false,1,1]
[null,null,null,null,null,null,null,null,0,false,1,1]
[null,null,null,null,null,null,null,null,0,false,1,1]
[null,null,null,null,null,null,null,null,0,false,1,1]
[null,null,null,null,null,null,null,null,0,false,1,1]
[null,null,null,null,null,null,null,null,0,false,1,1]
[null,null,null,null,null,null,null,null,0,false,1,1]
[null,null,null,null,null,null,null,null,0,false,1,1]
[null,null,null,null,null,null,null,null,0,false,1,1]
[null,null,null,null,null,null,null,null,0,false,1,1]
[null,null,null,null,null,null,null,null,0,false,1,1]
[null,null,null,null,null,null,null,null,0,false,1,1]
[null,null,null,null,null,null,null,null,0,false,1,1]
[null,null,null,null,null,null,null,null,0,false,1,1]
[null,null,null,null,null,null,null,null,0,false,1,1]
[null,null,null,null,null,null,null,null,0,false,1,1]
[null,null,null,null,null,null,null,null,0,false,1,1]
[null,null,null,null,null,null,null,null,0,false,1,1]
[null,null,null,null,null,null,null,null,0,false,1,1]
[null,null,null,null,null,null,null,null,0,false,1,1]
[null,null,null,null,null,null,null,null,0,false,1,1]
[null,null,null,null,null,null,null,null,0,false,1,1]
[null,null,null,null,null,null,null,null,0,{"$f":"AND(AND($H1407<>\"Completed\",$A1407<TODAY()),$H1407<>\"\")","v":false},1,1]
[null,null,null,null,null,null,null,null,0,false,1,1]
[null,null,null,null,null,null,null,null,0,false,1,1]
[null,null,null,null,null,null,null,null,0,false,1,1]
[null,null,null,null,null,null,null,null,0,false,1,1]
[null,null,null,null,null,null,null,null,0,false,1,1]
[null,null,null,null,null,null,null,null,0,false,1,1]
[null,null,null,null,null,null,null,null,0,false,1,1]
[null,null,null,null,null,null,null,null,0,false,{"$f":"IF(AND(H1415<>\"Completed\",H1415<>\"Canceled\"), 1, 0)","v":1},1]
[null,null,null,null,null,null,null,null,{"$f":"IF(H1416=\"Completed\",1,0)","v":0},false,1,{"$f":"SUM(I1416,K1416)","v":1}]
[null,null,null,null,null,null,null,null,0,false,1,1]
[null,null,null,null,null,null,null,null,0,false,1,1]
[null,null,null,null,null,null,null,null,0,false,1,1]
[null,null,null,null,null,null,null,null,0,false,1,1]
[null,null,null,null,null,null,null,null,0,false,1,1]
[null,null,null,null,null,null,null,null,0,false,1,1]
[null,null,null,null,null,null,null,null,0,false,1,1]
[null,null,null,null,null,null,null,null,0,false,1,1]
[null,null,null,null,null,null,null,null,0,false,1,1]
[null,null,null,null,null,null,null,null,0,false,1,1]
[null,null,null,null,null,null,null,null,0,false,1,1]
[null,null,null,null,null,null,null,null,0,false,1,1]
[null,null,null,null,null,null,null,null,0,false,1,1]
[null,null,null,null,null,null,null,null,0,false,1,1]
[null,null,null,null,null,null,null,null,0,false,1,1]
[null,null,null,null,null,null,null,null,0,false,1,1]
[null,null,null,null,null,null,null,null,0,false,1,1]
[null,null,null,null,null,null,null,null,0,false,1,1]
[null,null,null,null,null,null,null,null,0,false,1,1]
[null,null,null,null,null,null,null,null,0,false,1,1]
[null,null,null,null,null,null,null,null,0,false,1,1]
[null,null,null,null,null,null,null,null,0,false,1,1]
[null,null,null,null,null,null,null,null,0,false,1,1]
[null,null,null,null,null,null,null,null,0,false,1,1]
[null,null,null,null,null,null,null,null,0,false,1,1]
[null,null,null,null,null,null,null,null,0,false,1,1]
[null,null,null,null,null,null,null,null,0,false,1,1]
[null,null,null,null,null,null,null,null,0,false,1,1]
[null,null,null,null,null,null,null,null,0,false,1,1]
[null,null,null,null,null,null,null,null,0,false,1,1]
[null,null,null,null,null,null,null,null,0,false,1,1]
[null,null,null,null,null,null,null,null,0,false,1,1]
[null,null,null,null,null,null,null,null,0,false,1,1]
[null,null,null,null,null,null,null,null,0,false,1,1]
[null,null,null,null,null,null,null,null,0,false,1,1]
[null,null,null,null,null,null,null,null,0,false,1,1]
[null,null,null,null,null,null,null,null,0,false,1,1]
[null,null,null,null,null,null,null,null,0,false,1,1]
[null,null,null,null,null,null,null,null,0,false,1,1]
[null,null,null,null,null,null,null,null,0,false,1,1]
[null,null,null,null,null,null,null,null,0,false,1,1]
[null,null,null,null,null,null,null,null,0,false,1,1]
[null,null,null,null,null,null,null,null,0,false,1,1]
[null,null,null,null,null,null,null,null,0,false,1,1]
[null,null,null,null,null,null,null,null,0,false,1,1]
[null,null,null,null,null,null,null,null,0,false,1,1]
[null,null,null,null,null,null,null,null,0,false,1,1]
[null,null,null,null,null,null,null,null,0,false,1,1]
[null,null,null,null,null,null,null,null,0,false,1,1]
[null,null,null,null,null,null,null,null,0,false,1,1]
[null,null,null,null,null,null,null,null,0,false,1,1]
[null,null,null,null,null,null,null,null,0,false,1,1]
[null,null,null,null,null,null,null,null,0,false,1,1]
[null,null,null,null,null,null,null,null,0,false,1,1]
[null,null,null,null,null,null,null,null,0,{"$f":"AND(AND($H1471<>\"Completed\",$A1471<TODAY()),$H1471<>\"\")","v":false},1,1]
[null,null,null,null,null,null,null,null,0,false,1,1]
[null,null,null,null,null,null,null,null,0,false,1,1]
[null,null,null,null,null,null,null,null,0,false,1,1]
[null,null,null,null,null,null,null,null,0,false,1,1]
[null,null,null,null,null,null,null,null,0,false,1,1]
[null,null,null,null,null,null,null,null,0,false,1,1]
[null,null,null,null,null,null,null,null,0,false,1,1]
[null,null,null,null,null,null,null,null,0,false,{"$f":"IF(AND(H1479<>\"Completed\",H1479<>\"Canceled\"), 1, 0)","v":1},1]
[null,null,null,null,null,null,null,null,{"$f":"IF(H1480=\"Completed\",1,0)","v":0},false,1,{"$f":"SUM(I1480,K1480)","v":1}]
[null,null,null,null,null,null,null,null,0,false,1,1]
[null,null,null,null,null,null,null,null,0,false,1,1]
[null,null,null,null,null,null,null,null,0,false,1,1]
[null,null,null,null,null,null,null,null,0,false,1,1]
[null,null,null,null,null,null,null,null,0,false,1,1]
[null,null,null,null,null,null,null,null,0,false,1,1]
[null,null,null,null,null,null,null,null,0,false,1,1]
[null,null,null,null,null,null,null,null,0,false,1,1]
[null,null,null,null,null,null,null,null,0,false,1,1]
[null,null,null,null,null,null,null,null,0,false,1,1]
[null,null,null,null,null,null,null,null,0,false,1,1]
[null,null,null,null,null,null,null,null,0,false,1,1]
[null,null,null,null,null,null,null,null,0,false,1,1]
[null,null,null,null,null,null,null,null,0,false,1,1]
[null,null,null,null,null,null,null,null,0,false,1,1]
[null,null,null,null,null,null,null,null,0,false,1,1]
[null,null,null,null,null,null,null,null,0,false,1,1]
[null,null,null,null,null,null,null,null,0,false,1,1]
[null,null,null,null,null,null,null,null,0,false,1,1]
[null,null,null,null,null,null,null,null,0,false,1,1]
[null,null,null,null,null,null,null,null,0,false,1,1]
[null,null,null,null,null,null,null,null,0,false,1,1]
[null,null,null,null,null,null,null,null,0,false,1,1]
[null,null,null,null,null,null,null,null,0,false,1,1]
[null,null,null,null,null,null,null,null,0,false,1,1]
[null,null,null,null,null,null,null,null,0,false,1,1]
[null,null,null,null,null,null,null,null,0,false,1,1]
[null,null,null,null,null,null,null,null,0,false,1,1]
[null,null,null,null,null,null,null,null,0,false,1,1]
[null,null,null,null,null,null,null,null,0,false,1,1]
[null,null,null,null,null,null,null,null,0,false,1,1]
[null,null,null,null,null,null,null,null,0,false,1,1]
[null,null,null,null,null,null,null,null,0,false,1,1]
[null,null,null,null,null,null,null,null,0,false,1,1]
[null,null,null,null,null,null,null,null,0,false,1,1]
[null,null,null,null,null,null,null,null,0,false,1,1]
[null,null,null,null,null,null,null,null,0,false,1,1]
[null,null,null,null,null,null,null,null,0,false,1,1]
[null,null,null,null,null,null,null,null,0,false,1,1]
[null,null,null,null,null,null,null,null,0,false,1,1]
[null,null,null,null,null,null,null,null,0,false,1,1]
[null,null,null,null,null,null,null,null,0,false,1,1]
[null,null,null,null,null,null,null,null,0,false,1,1]
[null,null,null,null,null,null,null,null,0,false,1,1]
[null,null,null,null,null,null,null,null,0,false,1,1]
[null,null,null,null,null,null,null,null,0,false,1,1]
[null,null,null,null,null,null,null,null,0,false,1,1]
[null,null,null,null,null,null,null,null,0,false,1,1]
[null,null,null,null,null,null,null,null,0,false,1,1]
[null,null,null,null,null,null,null,null,0,false,1,1]
[null,null,null,null,null,null,null,null,0,false,1,1]
[null,null,null,null,null,null,null,null,0,false,1,1]
[null,null,null,null,null,null,null,null,0,false,1,1]
[null,null,null,null,null,null,null,null,0,false,1,1]
[null,null,null,null,null,null,null,null,0,{"$f":"AND(AND($H1535<>\"Completed\",$A1535<TODAY()),$H1535<>\"\")","v":false},1,1]
[null,null,null,null,null,null,null,null,0,false,1,1]
[null,null,null,null,null,null,null,null,0,false,1,1]
[null,null,null,null,null,null,null,null,0,false,1,1]
[null,null,null,null,null,null,null,null,0,false,1,1]
[null,null,null,null,null,null,null,null,0,false,1,1]
[null,null,null,null,null,null,null,null,0,false,1,1]
[null,null,null,null,null,null,null,null,0,false,1,1]
[null,null,null,null,null,null,null,null,0,false,{"$f":"IF(AND(H1543<>\"Completed\",H1543<>\"Canceled\"), 1, 0)","v":1},1]
[null,null,null,null,null,null,null,null,{"$f":"IF(H1544=\"Completed\",1,0)","v":0},false,1,{"$f":"SUM(I1544,K1544)","v":1}]
[null,null,null,null,null,null,null,null,0,false,1,1]
[null,null,null,null,null,null,null,null,0,false,1,1]
[null,null,null,null,null,null,null,null,0,false,1,1]
[null,null,null,null,null,null,null,null,0,false,1,1]
[null,null,null,null,null,null,null,null,0,false,1,1]
[null,null,null,null,null,null,null,null,0,false,1,1]
[null,null,null,null,null,null,null,null,0,false,1,1]
[null,null,null,null,null,null,null,null,0,false,1,1]
[null,null,null,null,null,null,null,null,0,false,1,1]
[null,null,null,null,null,null,null,null,0,false,1,1]
[null,null,null,null,null,null,null,null,0,false,1,1]
[null,null,null,null,null,null,null,null,0,false,1,1]
[null,null,null,null,null,null,null,null,0,false,1,1]
[null,null,null,null,null,null,null,null,0,false,1,1]
[null,null,null,null,null,null,null,null,0,false,1,1]
[null,null,null,null,null,null,null,null,0,false,1,1]
[null,null,null,null,null,null,null,null,0,false,1,1]
[null,null,null,null,null,null,null,null,0,false,1,1]
[null,null,null,null,null,null,null,null,0,false,1,1]
[null,null,null,null,null,null,null,null,0,false,1,1]
[null,null,null,null,null,null,null,null,0,false,1,1]
[null,null,null,null,null,null,null,null,0,false,1,1]
[null,null,null,null,null,null,null,null,0,false,1,1]
[null,null,null,null,null,null,null,null,0,false,1,1]
[null,null,null,null,null,null,null,null,0,false,1,1]
[null,null,null,null,null,null,null,null,0,false,1,1]
[null,null,null,null,null,null,null,null,0,false,1,1]
[null,null,null,null,null,null,null,null,0,false,1,1]
[null,null,null,null,null,null,null,null,0,false,1,1]
[null,null,null,null,null,null,null,null,0,false,1,1]
[null,null,null,null,null,null,null,null,0,false,1,1]
[null,null,null,null,null,null,null,null,0,false,1,1]
[null,null,null,null,null,null,null,null,0,false,1,1]
[null,null,null,null,null,null,null,null,0,false,1,1]
[null,null,null,null,null,null,null,null,0,false,1,1]
[null,null,null,null,null,null,null,null,0,false,1,1]
[null,null,null,null,null,null,null,null,0,false,1,1]
[null,null,null,null,null,null,null,null,0,false,1,1]
[null,null,null,null,null,null,null,null,0,false,1,1]
[null,null,null,null,null,null,null,null,0,false,1,1]
[null,null,null,null,null,null,null,null,0,false,1,1]
[null,null,null,null,null,null,null,null,0,false,1,1]
[null,null,null,null,null,null,null,null,0,false,1,1]
[null,null,null,null,null,null,null,null,0,false,1,1]
[null,null,null,null,null,null,null,null,0,false,1,1]
[null,null,null,null,null,null,null,null,0,false,1,1]
[null,null,null,null,null,null,null,null,0,false,1,1]
[null,null,null,null,null,null,null,null,0,false,1,1]
[null,null,null,null,null,null,null,null,0,false,1,1]
[null,null,null,null,null,null,null,null,0,false,1,1]
[null,null,null,null,null,null,null,null,0,false,1,1]
[null,null,null,null,null,null,null,null,0,false,1,1]
[null,null,null,null,null,null,null,null,0,false,1,1]
[null,null,null,null,null,null,null,null,0,false,1,1]
[null,null,null,null,null,null,null,null,0,{"$f":"AND(AND($H1599<>\"Completed\",$A1599<TODAY()),$H1599<>\"\")","v":false},1,1]
[null,null,null,null,null,null,null,null,0,false,1,1]
[null,null,null,null,null,null,null,null,0,false,1,1]
[null,null,null,null,null,null,null,null,0,false,1,1]
[null,null,null,null,null,null,null,null,0,false,1,1]
[null,null,null,null,null,null,null,null,0,false,1,1]
[null,null,null,null,null,null,null,null,0,false,1,1]
[null,null,null,null,null,null,null,null,0,false,1,1]
[null,null,null,null,null,null,null,null,0,false,{"$f":"IF(AND(H1607<>\"Completed\",H1607<>\"Canceled\"), 1, 0)","v":1},1]
[null,null,null,null,null,null,null,null,{"$f":"IF(H1608=\"Completed\",1,0)","v":0},false,1,{"$f":"SUM(I1608,K1608)","v":1}]
[null,null,null,null,null,null,null,null,0,false,1,1]
[null,null,null,null,null,null,null,null,0,false,1,1]
[null,null,null,null,null,null,null,null,0,false,1,1]
[null,null,null,null,null,null,null,null,0,false,1,1]
[null,null,null,null,null,null,null,null,0,false,1,1]
[null,null,null,null,null,null,null,null,0,false,1,1]
[null,null,null,null,null,null,null,null,0,false,1,1]
[null,null,null,null,null,null,null,null,0,false,1,1]
[null,null,null,null,null,null,null,null,0,false,1,1]
[null,null,null,null,null,null,null,null,0,false,1,1]
[null,null,null,null,null,null,null,null,0,false,1,1]
[null,null,null,null,null,null,null,null,0,false,1,1]
[null,null,null,null,null,null,null,null,0,false,1,1]
[null,null,null,null,null,null,null,null,0,false,1,1]
[null,null,null,null,null,null,null,null,0,false,1,1]
[null,null,null,null,null,null,null,null,0,false,1,1]
[null,null,null,null,null,null,null,null,0,false,1,1]
[null,null,null,null,null,null,null,null,0,false,1,1]
[null,null,null,null,null,null,null,null,0,false,1,1]
[null,null,null,null,null,null,null,null,0,false,1,1]
[null,null,null,null,null,null,null,null,0,false,1,1]
[null,null,null,null,null,null,null,null,0,false,1,1]
[null,null,null,null,null,null,null,null,0,false,1,1]
[null,null,null,null,null,null,null,null,0,false,1,1]
[null,null,null,null,null,null,null,null,0,false,1,1]
[null,null,null,null,null,null,null,null,0,false,1,1]
[null,null,null,null,null,null,null,null,0,false,1,1]
[null,null,null,null,null,null,null,null,0,false,1,1]
[null,null,null,null,null,null,null,null,0,false,1,1]
[null,null,null,null,null,null,null,null,0,false,1,1]
[null,null,null,null,null,null,null,null,0,false,1,1]
[null,null,null,null,null,null,null,null,0,false,1,1]
[null,null,null,null,null,null,null,null,0,false,1,1]
[null,null,null,null,null,null,null,null,0,false,1,1]
[null,null,null,null,null,null,null,null,0,false,1,1]
[null,null,null,null,null,null,null,null,0,false,1,1]
[null,null,null,null,null,null,null,null,0,false,1,1]
[null,null,null,null,null,null,null,null,0,false,1,1]
[null,null,null,null,null,null,null,null,0,false,1,1]
[null,null,null,null,null,null,null,null,0,false,1,1]
[null,null,null,null,null,null,null,null,0,false,1,1]
[null,null,null,null,null,null,null,null,0,false,1,1]
[null,null,null,null,null,null,null,null,0,false,1,1]
[null,null,null,null,null,null,null,null,0,false,1,1]
[null,null,null,null,null,null,null,null,0,false,1,1]
[null,null,null,null,null,null,null,null,0,false,1,1]
[null,null,null,null,null,null,null,null,0,false,1,1]
[null,null,null,null,null,null,null,null,0,false,1,1]
[null,null,null,null,null,null,null,null,0,false,1,1]
[null,null,null,null,null,null,null,null,0,false,1,1]
[null,null,null,null,null,null,null,null,0,false,1,1]
[null,null,null,null,null,null,null,null,0,false,1,1]
[null,null,null,null,null,null,null,null,0,false,1,1]
[null,null,null,null,null,null,null,null,0,false,1,1]
[null,null,null,null,null,null,null,null,0,{"$f":"AND(AND($H1663<>\"Completed\",$A1663<TODAY()),$H1663<>\"\")","v":false},1,1]
[null,null,null,null,null,null,null,null,0,false,1,1]
[null,null,null,null,null,null,null,null,0,false,1,1]
[null,null,null,null,null,null,null,null,0,false,1,1]
[null,null,null,null,null,null,null,null,0,false,1,1]
[null,null,null,null,null,null,null,null,0,false,1,1]
[null,null,null,null,null,null,null,null,0,false,1,1]
[null,null,null,null,null,null,null,null,0,false,1,1]
[null,null,null,null,null,null,null,null,0,false,{"$f":"IF(AND(H1671<>\"Completed\",H1671<>\"Canceled\"), 1, 0)","v":1},1]
[null,null,null,null,null,null,null,null,{"$f":"IF(H1672=\"Completed\",1,0)","v":0},false,1,{"$f":"SUM(I1672,K1672)","v":1}]
[null,null,null,null,null,null,null,null,0,false,1,1]
[null,null,null,null,null,null,null,null,0,false,1,1]
[null,null,null,null,null,null,null,null,0,false,1,1]
[null,null,null,null,null,null,null,null,0,false,1,1]
[null,null,null,null,null,null,null,null,0,false,1,1]
[null,null,null,null,null,null,null,null,0,false,1,1]
[null,null,null,null,null,null,null,null,0,false,1,1]
[null,null,null,null,null,null,null,null,0,false,1,1]
[null,null,null,null,null,null,null,null,0,false,1,1]
[null,null,null,null,null,null,null,null,0,false,1,1]
[null,null,null,null,null,null,null,null,0,false,1,1]
[null,null,null,null,null,null,null,null,0,false,1,1]
[null,null,null,null,null,null,null,null,0,false,1,1]
[null,null,null,null,null,null,null,null,0,false,1,1]
[null,null,null,null,null,null,null,null,0,false,1,1]
[null,null,null,null,null,null,null,null,0,false,1,1]
[null,null,null,null,null,null,null,null,0,false,1,1]
[null,null,null,null,null,null,null,null,0,false,1,1]
[null,null,null,null,null,null,null,null,0,false,1,1]
[null,null,null,null,null,null,null,null,0,false,1,1]
[null,null,null,null,null,null,null,null,0,false,1,1]
[null,null,null,null,null,null,null,null,0,false,1,1]
[null,null,null,null,null,null,null,null,0,false,1,1]
[null,null,null,null,null,null,null,null,0,false,1,1]
[null,null,null,null,null,null,null,null,0,false,1,1]
[null,null,null,null,null,null,null,null,0,false,1,1]
[null,null,null,null,null,null,null,null,0,false,1,1]
[null,null,null,null,null,null,null,null,0,false,1,1]
[null,null,null,null,null,null,null,null,0,false,1,1]
[null,null,null,null,null,null,null,null,0,false,1,1]
[null,null,null,null,null,null,null,null,0,false,1,1]
[null,null,null,null,null,null,null,null,0,false,1,1]
[null,null,null,null,null,null,null,null,0,false,1,1]
[null,null,null,null,null,null,null,null,0,false,1,1]
[null,null,null,null,null,null,null,null,0,false,1,1]
[null,null,null,null,null,null,null,null,0,false,1,1]
[null,null,null,null,null,null,null,null,0,false,1,1]
[null,null,null,null,null,null,null,null,0,false,1,1]
[null,null,null,null,null,null,null,null,0,false,1,1]
[null,null,null,null,null,null,null,null,0,false,1,1]
[null,null,null,null,null,null,null,null,0,false,1,1]
[null,null,null,null,null,null,null,null,0,false,1,1]
[null,null,null,null,null,null,null,null,0,false,1,1]
[null,null,null,null,null,null,null,null,0,false,1,1]
[null,null,null,null,null,null,null,null,0,false,1,1]
[null,null,null,null,null,null,null,null,0,false,1,1]
[null,null,null,null,null,null,null,null,0,false,1,1]
[null,null,null,null,null,null,null,null,0,false,1,1]
[null,null,null,null,null,null,null,null,0,false,1,1]
[null,null,null,null,null,null,null,null,0,false,1,1]
[null,null,null,null,null,null,null,null,0,false,1,1]
[null,null,null,null,null,null,null,null,0,false,1,1]
[null,null,null,null,null,null,null,null,0,false,1,1]
[null,null,null,null,null,null,null,null,0,false,1,1]
[null,null,null,null,null,null,null,null,0,{"$f":"AND(AND($H1727<>\"Completed\",$A1727<TODAY()),$H1727<>\"\")","v":false},1,1]
[null,null,null,null,null,null,null,null,0,false,1,1]
[null,null,null,null,null,null,null,null,0,false,1,1]
[null,null,null,null,null,null,null,null,0,false,1,1]
[null,null,null,null,null,null,null,null,0,false,1,1]
[null,null,null,null,null,null,null,null,0,false,1,1]
[null,null,null,null,null,null,null,null,0,false,1,1]
[null,null,null,null,null,null,null,null,0,false,1,1]
[null,null,null,null,null,null,null,null,0,false,{"$f":"IF(AND(H1735<>\"Completed\",H1735<>\"Canceled\"), 1, 0)","v":1},1]
[null,null,null,null,null,null,null,null,{"$f":"IF(H1736=\"Completed\",1,0)","v":0},false,1,{"$f":"SUM(I1736,K1736)","v":1}]
[null,null,null,null,null,null,null,null,0,false,1,1]
[null,null,null,null,null,null,null,null,0,false,1,1]
[null,null,null,null,null,null,null,null,0,false,1,1]
[null,null,null,null,null,null,null,null,0,false,1,1]
[null,null,null,null,null,null,null,null,0,false,1,1]
[null,null,null,null,null,null,null,null,0,false,1,1]
[null,null,null,null,null,null,null,null,0,false,1,1]
[null,null,null,null,null,null,null,null,0,false,1,1]
[null,null,null,null,null,null,null,null,0,false,1,1]
[null,null,null,null,null,null,null,null,0,false,1,1]
[null,null,null,null,null,null,null,null,0,false,1,1]
[null,null,null,null,null,null,null,null,0,false,1,1]
[null,null,null,null,null,null,null,null,0,false,1,1]
[null,null,null,null,null,null,null,null,0,false,1,1]
[null,null,null,null,null,null,null,null,0,false,1,1]
[null,null,null,null,null,null,null,null,0,false,1,1]
[null,null,null,null,null,null,null,null,0,false,1,1]
[null,null,null,null,null,null,null,null,0,false,1,1]
[null,null,null,null,null,null,null,null,0,false,1,1]
[null,null,null,null,null,null,null,null,0,false,1,1]
[null,null,null,null,null,null,null,null,0,false,1,1]
[null,null,null,null,null,null,null,null,0,false,1,1]
[null,null,null,null,null,null,null,null,0,false,1,1]
[null,null,null,null,null,null,null,null,0,false,1,1]
[null,null,null,null,null,null,null,null,0,false,1,1]
[null,null,null,null,null,null,null,null,0,false,1,1]
[null,null,null,null,null,null,null,null,0,false,1,1]
[null,null,null,null,null,null,null,null,0,false,1,1]
[null,null,null,null,null,null,null,null,0,false,1,1]
[null,null,null,null,null,null,null,null,0,false,1,1]
[null,null,null,null,null,null,null,null,0,false,1,1]
[null,null,null,null,null,null,null,null,0,false,1,1]
[null,null,null,null,null,null,null,null,0,false,1,1]
[null,null,null,null,null,null,null,null,0,false,1,1]
[null,null,null,null,null,null,null,null,0,false,1,1]
[null,null,null,null,null,null,null,null,0,false,1,1]
[null,null,null,null,null,null,null,null,0,false,1,1]
[null,null,null,null,null,null,null,null,0,false,1,1]
[null,null,null,null,null,null,null,null,0,false,1,1]
[null,null,null,null,null,null,null,null,0,false,1,1]
[null,null,null,null,null,null,null,null,0,false,1,1]
[null,null,null,null,null,null,null,null,0,false,1,1]
[null,null,null,null,null,null,null,null,0,false,1,1]
[null,null,null,null,null,null,null,null,0,false,1,1]
[null,null,null,null,null,null,null,null,0,false,1,1]
[null,null,null,null,null,null,null,null,0,false,1,1]
[null,null,null,null,null,null,null,null,0,false,1,1]
[null,null,null,null,null,null,null,null,0,false,1,1]
[null,null,null,null,null,null,null,null,0,false,1,1]
[null,null,null,null,null,null,null,null,0,false,1,1]
[null,null,null,null,null,null,null,null,0,false,1,1]
[null,null,null,null,null,null,null,null,0,false,1,1]
[null,null,null,null,null,null,null,null,0,false,1,1]
[null,null,null,null,null,null,null,null,0,false,1,1]
[null,null,null,null,null,null,null,null,0,{"$f":"AND(AND($H1791<>\"Completed\",$A1791<TODAY()),$H1791<>\"\")","v":false},1,1]
[null,null,null,null,null,null,null,null,0,false,1,1]
[null,null,null,null,null,null,null,null,0,false,1,1]
[null,null,null,null,null,null,null,null,0,false,1,1]
[null,null,null,null,null,null,null,null,0,false,1,1]
[null,null,null,null,null,null,null,null,0,false,1,1]
[null,null,null,null,null,null,null,null,0,false,1,1]
[null,null,null,null,null,null,null,null,0,false,1,1]
[null,null,null,null,null,null,null,null,0,false,{"$f":"IF(AND(H1799<>\"Completed\",H1799<>\"Canceled\"), 1, 0)","v":1},1]
[null,null,null,null,null,null,null,null,{"$f":"IF(H1800=\"Completed\",1,0)","v":0},false,1,{"$f":"SUM(I1800,K1800)","v":1}]
[null,null,null,null,null,null,null,null,0,false,1,1]
[null,null,null,null,null,null,null,null,0,false,1,1]
[null,null,null,null,null,null,null,null,0,false,1,1]
[null,null,null,null,null,null,null,null,0,false,1,1]
[null,null,null,null,null,null,null,null,0,false,1,1]
[null,null,null,null,null,null,null,null,0,false,1,1]
[null,null,null,null,null,null,null,null,0,false,1,1]
[null,null,null,null,null,null,null,null,0,false,1,1]
[null,null,null,null,null,null,null,null,0,false,1,1]
[null,null,null,null,null,null,null,null,0,false,1,1]
[null,null,null,null,null,null,null,null,0,false,1,1]
[null,null,null,null,null,null,null,null,0,false,1,1]
[null,null,null,null,null,null,null,null,0,false,1,1]
[null,null,null,null,null,null,null,null,0,false,1,1]
[null,null,null,null,null,null,null,null,0,false,1,1]
[null,null,null,null,null,null,null,null,0,false,1,1]
[null,null,null,null,null,null,null,null,0,false,1,1]
[null,null,null,null,null,null,null,null,0,false,1,1]
[null,null,null,null,null,null,null,null,0,false,1,1]
[null,null,null,null,null,null,null,null,0,false,1,1]
[null,null,null,null,null,null,null,null,0,false,1,1]
[null,null,null,null,null,null,null,null,0,false,1,1]
[null,null,null,null,null,null,null,null,0,false,1,1]
[null,null,null,null,null,null,null,null,0,false,1,1]
[null,null,null,null,null,null,null,null,0,false,1,1]
[null,null,null,null,null,null,null,null,0,false,1,1]
[null,null,null,null,null,null,null,null,0,false,1,1]
[null,null,null,null,null,null,null,null,0,false,1,1]
[null,null,null,null,null,null,null,null,0,false,1,1]
[null,null,null,null,null,null,null,null,0,false,1,1]
[null,null,null,null,null,null,null,null,0,false,1,1]
[null,null,null,null,null,null,null,null,0,false,1,1]
[null,null,null,null,null,null,null,null,0,false,1,1]
[null,null,null,null,null,null,null,null,0,false,1,1]
[null,null,null,null,null,null,null,null,0,false,1,1]
[null,null,null,null,null,null,null,null,0,false,1,1]
[null,null,null,null,null,null,null,null,0,false,1,1]
[null,null,null,null,null,null,null,null,0,false,1,1]
[null,null,null,null,null,null,null,null,0,false,1,1]
[null,null,null,null,null,null,null,null,0,false,1,1]
[null,null,null,null,null,null,null,null,0,false,1,1]
[null,null,null,null,null,null,null,null,0,false,1,1]
[null,null,null,null,null,null,null,null,0,false,1,1]
[null,null,null,null,null,null,null,null,0,false,1,1]
[null,null,null,null,null,null,null,null,0,false,1,1]
[null,null,null,null,null,null,null,null,0,false,1,1]
[null,null,null,null,null,null,null,null,0,false,1,1]
[null,null,null,null,null,null,null,null,0,false,1,1]
[null,null,null,null,null,null,null,null,0,false,1,1]
[null,null,null,null,null,null,null,null,0,false,1,1]
[null,null,null,null,null,null,null,null,0,false,1,1]
[null,null,null,null,null,null,null,null,0,false,1,1]
[null,null,null,null,null,null,null,null,0,false,1,1]
[null,null,null,null,null,null,null,null,0,false,1,1]
[null,null,null,null,null,null,null,null,0,{"$f":"AND(AND($H1855<>\"Completed\",$A1855<TODAY()),$H1855<>\"\")","v":false},1,1]
[null,null,null,null,null,null,null,null,0,false,1,1]
[null,null,null,null,null,null,null,null,0,false,1,1]
[null,null,null,null,null,null,null,null,0,false,1,1]
[null,null,null,null,null,null,null,null,0,false,1,1]
[null,null,null,null,null,null,null,null,0,false,1,1]
[null,null,null,null,null,null,null,null,0,false,1,1]
[null,null,null,null,null,null,null,null,0,false,1,1]
[null,null,null,null,null,null,null,null,0,false,{"$f":"IF(AND(H1863<>\"Completed\",H1863<>\"Canceled\"), 1, 0)","v":1},1]
[null,null,null,null,null,null,null,null,{"$f":"IF(H1864=\"Completed\",1,0)","v":0},false,1,{"$f":"SUM(I1864,K1864)","v":1}]
[null,null,null,null,null,null,null,null,0,false,1,1]
[null,null,null,null,null,null,null,null,0,false,1,1]
[null,null,null,null,null,null,null,null,0,false,1,1]
[null,null,null,null,null,null,null,null,0,false,1,1]
[null,null,null,null,null,null,null,null,0,false,1,1]
[null,null,null,null,null,null,null,null,0,false,1,1]
[null,null,null,null,null,null,null,null,0,false,1,1]
[null,null,null,null,null,null,null,null,0,false,1,1]
[null,null,null,null,null,null,null,null,0,false,1,1]
[null,null,null,null,null,null,null,null,0,false,1,1]
[null,null,null,null,null,null,null,null,0,false,1,1]
[null,null,null,null,null,null,null,null,0,false,1,1]
[null,null,null,null,null,null,null,null,0,false,1,1]
[null,null,null,null,null,null,null,null,0,false,1,1]
[null,null,null,null,null,null,null,null,0,false,1,1]
[null,null,null,null,null,null,null,null,0,false,1,1]
[null,null,null,null,null,null,null,null,0,false,1,1]
[null,null,null,null,null,null,null,null,0,false,1,1]
[null,null,null,null,null,null,null,null,0,false,1,1]
[null,null,null,null,null,null,null,null,0,false,1,1]
[null,null,null,null,null,null,null,null,0,false,1,1]
[null,null,null,null,null,null,null,null,0,false,1,1]
[null,null,null,null,null,null,null,null,0,false,1,1]
[null,null,null,null,null,null,null,null,0,false,1,1]
[null,null,null,null,null,null,null,null,0,false,1,1]
[null,null,null,null,null,null,null,null,0,false,1,1]
[null,null,null,null,null,null,null,null,0,false,1,1]
[null,null,null,null,null,null,null,null,0,false,1,1]
[null,null,null,null,null,null,null,null,0,false,1,1]
[null,null,null,null,null,null,null,null,0,false,1,1]
[null,null,null,null,null,null,null,null,0,false,1,1]
[null,null,null,null,null,null,null,null,0,false,1,1]
[null,null,null,null,null,null,null,null,0,false,1,1]
[null,null,null,null,null,null,null,null,0,false,1,1]
[null,null,null,null,null,null,null,null,0,false,1,1]
[null,null,null,null,null,null,null,null,0,false,1,1]
[null,null,null,null,null,null,null,null,0,false,1,1]
[null,null,null,null,null,null,null,null,0,false,1,1]
[null,null,null,null,null,null,null,null,0,false,1,1]
[null,null,null,null,null,null,null,null,0,false,1,1]
[null,null,null,null,null,null,null,null,0,false,1,1]
[null,null,null,null,null,null,null,null,0,false,1,1]
[null,null,null,null,null,null,null,null,0,false,1,1]
[null,null,null,null,null,null,null,null,0,false,1,1]
[null,null,null,null,null,null,null,null,0,false,1,1]
[null,null,null,null,null,null,null,null,0,false,1,1]
[null,null,null,null,null,null,null,null,0,false,1,1]
[null,null,null,null,null,null,null,null,0,false,1,1]
[null,null,null,null,null,null,null,null,0,false,1,1]
[null,null,null,null,null,null,null,null,0,false,1,1]
[null,null,null,null,null,null,null,null,0,false,1,1]
[null,null,null,null,null,null,null,null,0,false,1,1]
[null,null,null,null,null,null,null,null,0,false,1,1]
[null,null,null,null,null,null,null,null,0,false,1,1]
[null,null,null,null,null,null,null,null,0,{"$f":"AND(AND($H1919<>\"Completed\",$A1919<TODAY()),$H1919<>\"\")","v":false},1,1]
[null,null,null,null,null,null,null,null,0,false,1,1]
[null,null,null,null,null,null,null,null,0,false,1,1]
[null,null,null,null,null,null,null,null,0,false,1,1]
[null,null,null,null,null,null,null,null,0,false,1,1]
[null,null,null,null,null,null,null,null,0,false,1,1]
[null,null,null,null,null,null,null,null,0,false,1,1]
[null,null,null,null,null,null,null,null,0,false,1,1]
[null,null,null,null,null,null,null,null,0,false,{"$f":"IF(AND(H1927<>\"Completed\",H1927<>\"Canceled\"), 1, 0)","v":1},1]
[null,null,null,null,null,null,null,null,{"$f":"IF(H1928=\"Completed\",1,0)","v":0},false,1,{"$f":"SUM(I1928,K1928)","v":1}]
[null,null,null,null,null,null,null,null,0,false,1,1]
[null,null,null,null,null,null,null,null,0,false,1,1]
[null,null,null,null,null,null,null,null,0,false,1,1]
[null,null,null,null,null,null,null,null,0,false,1,1]
[null,null,null,null,null,null,null,null,0,false,1,1]
[null,null,null,null,null,null,null,null,0,false,1,1]
[null,null,null,null,null,null,null,null,0,false,1,1]
[null,null,null,null,null,null,null,null,0,false,1,1]
[null,null,null,null,null,null,null,null,0,false,1,1]
[null,null,null,null,null,null,null,null,0,false,1,1]
[null,null,null,null,null,null,null,null,0,false,1,1]
[null,null,null,null,null,null,null,null,0,false,1,1]
[null,null,null,null,null,null,null,null,0,false,1,1]
[null,null,null,null,null,null,null,null,0,false,1,1]
[null,null,null,null,null,null,null,null,0,false,1,1]
[null,null,null,null,null,null,null,null,0,false,1,1]
[null,null,null,null,null,null,null,null,0,false,1,1]
[null,null,null,null,null,null,null,null,0,false,1,1]
[null,null,null,null,null,null,null,null,0,false,1,1]
[null,null,null,null,null,null,null,null,0,false,1,1]
[null,null,null,null,null,null,null,null,0,false,1,1]
[null,null,null,null,null,null,null,null,0,false,1,1]
[null,null,null,null,null,null,null,null,0,false,1,1]
[null,null,null,null,null,null,null,null,0,false,1,1]
[null,null,null,null,null,null,null,null,0,false,1,1]
[null,null,null,null,null,null,null,null,0,false,1,1]
[null,null,null,null,null,null,null,null,0,false,1,1]
[null,null,null,null,null,null,null,null,0,false,1,1]
[null,null,null,null,null,null,null,null,0,false,1,1]
[null,null,null,null,null,null,null,null,0,false,1,1]
[null,null,null,null,null,null,null,null,0,false,1,1]
[null,null,null,null,null,null,null,null,0,false,1,1]
[null,null,null,null,null,null,null,null,0,false,1,1]
[null,null,null,null,null,null,null,null,0,false,1,1]
[null,null,null,null,null,null,null,null,0,false,1,1]
[null,null,null,null,null,null,null,null,0,false,1,1]
[null,null,null,null,null,null,null,null,0,false,1,1]
[null,null,null,null,null,null,null,null,0,false,1,1]
[null,null,null,null,null,null,null,null,0,false,1,1]
[null,null,null,null,null,null,null,null,0,false,1,1]
[null,null,null,null,null,null,null,null,0,false,1,1]
[null,null,null,null,null,null,null,null,0,false,1,1]
[null,null,null,null,null,null,null,null,0,false,1,1]
[null,null,null,null,null,null,null,null,0,false,1,1]
[null,null,null,null,null,null,null,null,0,false,1,1]
[null,null,null,null,null,null,null,null,0,false,1,1]
[null,null,null,null,null,null,null,null,0,false,1,1]
[null,null,null,null,null,null,null,null,0,false,1,1]
[null,null,null,null,null,null,null,null,0,false,1,1]
[null,null,null,null,null,null,null,null,0,false,1,1]
[null,null,null,null,null,null,null,null,0,false,1,1]
[null,null,null,null,null,null,null,null,0,false,1,1]
[null,null,null,null,null,null,null,null,0,false,1,1]
[null,null,null,null,null,null,null,null,0,false,1,1]
[null,null,null,null,null,null,null,null,0,{"$f":"AND(AND($H1983<>\"Completed\",$A1983<TODAY()),$H1983<>\"\")","v":false},1,1]
[null,null,null,null,null,null,null,null,0,false,1,1]
[null,null,null,null,null,null,null,null,0,false,1,1]
[null,null,null,null,null,null,null,null,0,false,1,1]
[null,null,null,null,null,null,null,null,0,false,1,1]
[null,null,null,null,null,null,null,null,0,false,1,1]
[null,null,null,null,null,null,null,null,0,false,1,1]
[null,null,null,null,null,null,null,null,0,false,1,1]
[null,null,null,null,null,null,null,null,0,false,{"$f":"IF(AND(H1991<>\"Completed\",H1991<>\"Canceled\"), 1, 0)","v":1},1]
[null,null,null,null,null,null,null,null,{"$f":"IF(H1992=\"Completed\",1,0)","v":0},false,1,{"$f":"SUM(I1992,K1992)","v":1}]
[null,null,null,null,null,null,null,null,0,false,1,1]
[null,null,null,null,null,null,null,null,0,false,1,1]
[null,null,null,null,null,null,null,null,0,false,1,1]
[null,null,null,null,null,null,null,null,0,false,1,1]
[null,null,null,null,null,null,null,null,0,false,1,1]
[null,null,null,null,null,null,null,null,0,false,1,1]
[null,null,null,null,null,null,null,null,0,false,1,1]
[null,null,null,null,null,null,null,null,0,false,1,1]
[null,null,null,null,null,null,null,null,0,false,1,1]
[null,null,null,null,null,null,null,null,0,false,1,1]
[null,null,null,null,null,null,null,null,0,false,1,1]
[null,null,null,null,null,null,null,null,0,false,1,1]
[null,null,null,null,null,null,null,null,0,false,1,1]
[null,null,null,null,null,null,null,null,0,false,1,1]
[null,null,null,null,null,null,null,null,0,false,1,1]
[null,null,null,null,null,null,null,null,0,false,1,1]
[null,null,null,null,null,null,null,null,0,false,1,1]
[null,null,null,null,null,null,null,null,0,false,1,1]
[null,null,null,null,null,null,null,null,0,false,1,1]
[null,null,null,null,null,null,null,null,0,false,1,1]
[null,null,null,null,null,null,null,null,0,false,1,1]
[null,null,null,null,null,null,null,null,0,false,1,1]
[null,null,null,null,null,null,null,null,0,false,1,1]
[null,null,null,null,null,null,null,null,0,false,1,1]
[null,null,null,null,null,null,null,null,0,false,1,1]
[null,null,null,null,null,null,null,null,0,false,1,1]
[null,null,null,null,null,null,null,null,0,false,1,1]
[null,null,null,null,null,null,null,null,0,false,1,1]
[null,null,null,null,null,null,null,null,0,false,1,1]
[null,null,null,null,null,null,null,null,0,false,1,1]
[null,null,null,null,null,null,null,null,0,false,1,1]
[null,null,null,null,null,null,null,null,0,false,1,1]
[null,null,null,null,null,null,null,null,0,false,1,1]
[null,null,null,null,null,null,null,null,0,false,1,1]
[null,null,null,null,null,null,null,null,0,false,1,1]
[null,null,null,null,null,null,null,null,0,false,1,1]
[null,null,null,null,null,null,null,null,0,false,1,1]
[null,null,null,null,null,null,null,null,0,false,1,1]
[null,null,null,null,null,null,null,null,0,false,1,1]
[null,null,null,null,null,null,null,null,0,false,1,1]
[null,null,null,null,null,null,null,null,0,false,1,1]
[null,null,null,null,null,null,null,null,0,false,1,1]
[null,null,null,null,null,null,null,null,0,false,1,1]
[null,null,null,null,null,null,null,null,0,false,1,1]
[null,null,null,null,null,null,null,null,0,false,1,1]
[null,null,null,null,null,null,null,null,0,false,1,1]
[null,null,null,null,null,null,null,null,0,false,1,1]
[null,null,null,null,null,null,null,null,0,false,1,1]
[null,null,null,null,null,null,null,null,0,false,1,1]
[null,null,null,null,null,null,null,null,0,false,1,1]
[null,null,null,null,null,null,null,null,0,false,1,1]
[null,null,null,null,null,null,null,null,0,false,1,1]
[null,null,null,null,null,null,null,null,0,false,1,1]
[null,null,null,null,null,null,null,null,0,false,1,1]
[null,null,null,null,null,null,null,null,0,{"$f":"AND(AND($H2047<>\"Completed\",$A2047<TODAY()),$H2047<>\"\")","v":false},1,1]
[null,null,null,null,null,null,null,null,0,false,1,1]
[null,null,null,null,null,null,null,null,0,false,1,1]
[null,null,null,null,null,null,null,null,0,false,1,1]
[null,null,null,null,null,null,null,null,0,false,1,1]
[null,null,null,null,null,null,null,null,0,false,1,1]
[null,null,null,null,null,null,null,null,0,false,1,1]
[null,null,null,null,null,null,null,null,0,false,1,1]
[null,null,null,null,null,null,null,null,0,false,{"$f":"IF(AND(H2055<>\"Completed\",H2055<>\"Canceled\"), 1, 0)","v":1},1]
[null,null,null,null,null,null,null,null,{"$f":"IF(H2056=\"Completed\",1,0)","v":0},false,1,{"$f":"SUM(I2056,K2056)","v":1}]
[null,null,null,null,null,null,null,null,0,false,1,1]
[null,null,null,null,null,null,null,null,0,false,1,1]
[null,null,null,null,null,null,null,null,0,false,1,1]
[null,null,null,null,null,null,null,null,0,false,1,1]
[null,null,null,null,null,null,null,null,0,false,1,1]
[null,null,null,null,null,null,null,null,0,false,1,1]
[null,null,null,null,null,null,null,null,0,false,1,1]
[null,null,null,null,null,null,null,null,0,false,1,1]
[null,null,null,null,null,null,null,null,0,false,1,1]
[null,null,null,null,null,null,null,null,0,false,1,1]
[null,null,null,null,null,null,null,null,0,false,1,1]
[null,null,null,null,null,null,null,null,0,false,1,1]
[null,null,null,null,null,null,null,null,0,false,1,1]
[null,null,null,null,null,null,null,null,0,false,1,1]
[null,null,null,null,null,null,null,null,0,false,1,1]
[null,null,null,null,null,null,null,null,0,false,1,1]
[null,null,null,null,null,null,null,null,0,false,1,1]
[null,null,null,null,null,null,null,null,0,false,1,1]
[null,null,null,null,null,null,null,null,0,false,1,1]
[null,null,null,null,null,null,null,null,0,false,1,1]
[null,null,null,null,null,null,null,null,0,false,1,1]
[null,null,null,null,null,null,null,null,0,false,1,1]
[null,null,null,null,null,null,null,null,0,false,1,1]
[null,null,null,null,null,null,null,null,0,false,1,1]
[null,null,null,null,null,null,null,null,0,false,1,1]
[null,null,null,null,null,null,null,null,0,false,1,1]
[null,null,null,null,null,null,null,null,0,false,1,1]
[null,null,null,null,null,null,null,null,0,false,1,1]
[null,null,null,null,null,null,null,null,0,false,1,1]
[null,null,null,null,null,null,null,null,0,false,1,1]
[null,null,null,null,null,null,null,null,0,false,1,1]
[null,null,null,null,null,null,null,null,0,false,1,1]
[null,null,null,null,null,null,null,null,0,false,1,1]
[null,null,null,null,null,null,null,null,0,false,1,1]
[null,null,null,null,null,null,null,null,0,false,1,1]
[null,null,null,null,null,null,null,null,0,false,1,1]
[null,null,null,null,null,null,null,null,0,false,1,1]
[null,null,null,null,null,null,null,null,0,false,1,1]
[null,null,null,null,null,null,null,null,0,false,1,1]
[null,null,null,null,null,null,null,null,0,false,1,1]
[null,null,null,null,null,null,null,null,0,false,1,1]
[null,null,null,null,null,null,null,null,0,false,1,1]
[null,null,null,null,null,null,null,null,0,false,1,1]
[null,null,null,null,null,null,null,null,0,false,1,1]
[null,null,null,null,null,null,null,null,0,false,1,1]
[null,null,null,null,null,null,null,null,0,false,1,1]
[null,null,null,null,null,null,null,null,0,false,1,1]
[null,null,null,null,null,null,null,null,0,false,1,1]
[null,null,null,null,null,null,null,null,0,false,1,1]
[null,null,null,null,null,null,null,null,0,false,1,1]
[null,null,null,null,null,null,null,null,0,false,1,1]
[null,null,null,null,null,null,null,null,0,false,1,1]
[null,null,null,null,null,null,null,null,0,false,1,1]
[null,null,null,null,null,null,null,null,0,false,1,1]
[null,null,null,null,null,null,null,null,0,{"$f":"AND(AND($H2111<>\"Completed\",$A2111<TODAY()),$H2111<>\"\")","v":false},1,1]
[null,null,null,null,null,null,null,null,0,false,1,1]
[null,null,null,null,null,null,null,null,0,false,1,1]
[null,null,null,null,null,null,null,null,0,false,1,1]
[null,null,null,null,null,null,null,null,0,false,1,1]
[null,null,null,null,null,null,null,null,0,false,1,1]
[null,null,null,null,null,null,null,null,0,false,1,1]
[null,null,null,null,null,null,null,null,0,false,1,1]
[null,null,null,null,null,null,null,null,0,false,{"$f":"IF(AND(H2119<>\"Completed\",H2119<>\"Canceled\"), 1, 0)","v":1},1]
[null,null,null,null,null,null,null,null,{"$f":"IF(H2120=\"Completed\",1,0)","v":0},false,1,{"$f":"SUM(I2120,K2120)","v":1}]
[null,null,null,null,null,null,null,null,0,false,1,1]
[null,null,null,null,null,null,null,null,0,false,1,1]
[null,null,null,null,null,null,null,null,0,false,1,1]
[null,null,null,null,null,null,null,null,0,false,1,1]
[null,null,null,null,null,null,null,null,0,false,1,1]
[null,null,null,null,null,null,null,null,0,false,1,1]
[null,null,null,null,null,null,null,null,0,false,1,1]
[null,null,null,null,null,null,null,null,0,false,1,1]
[null,null,null,null,null,null,null,null,0,false,1,1]
[null,null,null,null,null,null,null,null,0,false,1,1]
[null,null,null,null,null,null,null,null,0,false,1,1]
[null,null,null,null,null,null,null,null,0,false,1,1]
[null,null,null,null,null,null,null,null,0,false,1,1]
[null,null,null,null,null,null,null,null,0,false,1,1]
[null,null,null,null,null,null,null,null,0,false,1,1]
[null,null,null,null,null,null,null,null,0,false,1,1]
[null,null,null,null,null,null,null,null,0,false,1,1]
[null,null,null,null,null,null,null,null,0,false,1,1]
[null,null,null,null,null,null,null,null,0,false,1,1]
[null,null,null,null,null,null,null,null,0,false,1,1]
[null,null,null,null,null,null,null,null,0,false,1,1]
[null,null,null,null,null,null,null,null,0,false,1,1]
[null,null,null,null,null,null,null,null,0,false,1,1]
[null,null,null,null,null,null,null,null,0,false,1,1]
[null,null,null,null,null,null,null,null,0,false,1,1]
[null,null,null,null,null,null,null,null,0,false,1,1]
[null,null,null,null,null,null,null,null,0,false,1,1]
[null,null,null,null,null,null,null,null,0,false,1,1]
[null,null,null,null,null,null,null,null,0,false,1,1]
[null,null,null,null,null,null,null,null,0,false,1,1]
[null,null,null,null,null,null,null,null,0,false,1,1]
[null,null,null,null,null,null,null,null,0,false,1,1]
[null,null,null,null,null,null,null,null,0,false,1,1]
[null,null,null,null,null,null,null,null,0,false,1,1]
[null,null,null,null,null,null,null,null,0,false,1,1]
[null,null,null,null,null,null,null,null,0,false,1,1]
[null,null,null,null,null,null,null,null,0,false,1,1]
[null,null,null,null,null,null,null,null,0,false,1,1]
[null,null,null,null,null,null,null,null,0,false,1,1]
[null,null,null,null,null,null,null,null,0,false,1,1]
[null,null,null,null,null,null,null,null,0,false,1,1]
[null,null,null,null,null,null,null,null,0,false,1,1]
[null,null,null,null,null,null,null,null,0,false,1,1]
[null,null,null,null,null,null,null,null,0,false,1,1]
[null,null,null,null,null,null,null,null,0,false,1,1]
[null,null,null,null,null,null,null,null,0,false,1,1]
[null,null,null,null,null,null,null,null,0,false,1,1]
[null,null,null,null,null,null,null,null,0,false,1,1]
[null,null,null,null,null,null,null,null,0,false,1,1]
[null,null,null,null,null,null,null,null,0,false,1,1]
[null,null,null,null,null,null,null,null,0,false,1,1]
[null,null,null,null,null,null,null,null,0,false,1,1]
[null,null,null,null,null,null,null,null,0,false,1,1]
[null,null,null,null,null,null,null,null,0,false,1,1]
[null,null,null,null,null,null,null,null,0,{"$f":"AND(AND($H2175<>\"Completed\",$A2175<TODAY()),$H2175<>\"\")","v":false},1,1]
[null,null,null,null,null,null,null,null,0,false,1,1]
[null,null,null,null,null,null,null,null,0,false,1,1]
[null,null,null,null,null,null,null,null,0,false,1,1]
[null,null,null,null,null,null,null,null,0,false,1,1]
[null,null,null,null,null,null,null,null,0,false,1,1]
[null,null,null,null,null,null,null,null,0,false,1,1]
[null,null,null,null,null,null,null,null,0,false,1,1]
[null,null,null,null,null,null,null,null,0,false,{"$f":"IF(AND(H2183<>\"Completed\",H2183<>\"Canceled\"), 1, 0)","v":1},1]
[null,null,null,null,null,null,null,null,{"$f":"IF(H2184=\"Completed\",1,0)","v":0},false,1,{"$f":"SUM(I2184,K2184)","v":1}]
[null,null,null,null,null,null,null,null,0,false,1,1]
[null,null,null,null,null,null,null,null,0,false,1,1]
[null,null,null,null,null,null,null,null,0,false,1,1]
[null,null,null,null,null,null,null,null,0,false,1,1]
[null,null,null,null,null,null,null,null,0,false,1,1]
[null,null,null,null,null,null,null,null,0,false,1,1]
[null,null,null,null,null,null,null,null,0,false,1,1]
[null,null,null,null,null,null,null,null,0,false,1,1]
[null,null,null,null,null,null,null,null,0,false,1,1]
[null,null,null,null,null,null,null,null,0,false,1,1]
[null,null,null,null,null,null,null,null,0,false,1,1]
[null,null,null,null,null,null,null,null,0,false,1,1]
[null,null,null,null,null,null,null,null,0,false,1,1]
[null,null,null,null,null,null,null,null,0,false,1,1]
[null,null,null,null,null,null,null,null,0,false,1,1]
[null,null,null,null,null,null,null,null,0,false,1,1]
[null,null,null,null,null,null,null,null,0,false,1,1]
[null,null,null,null,null,null,null,null,0,false,1,1]
[null,null,null,null,null,null,null,null,0,false,1,1]
[null,null,null,null,null,null,null,null,0,false,1,1]
[null,null,null,null,null,null,null,null,0,false,1,1]
[null,null,null,null,null,null,null,null,0,false,1,1]
[null,null,null,null,null,null,null,null,0,false,1,1]
[null,null,null,null,null,null,null,null,0,false,1,1]
[null,null,null,null,null,null,null,null,0,false,1,1]
[null,null,null,null,null,null,null,null,0,false,1,1]
[null,null,null,null,null,null,null,null,0,false,1,1]
[null,null,null,null,null,null,null,null,0,false,1,1]
[null,null,null,null,null,null,null,null,0,false,1,1]
[null,null,null,null,null,null,null,null,0,false,1,1]
[null,null,null,null,null,null,null,null,0,false,1,1]
[null,null,null,null,null,null,null,null,0,false,1,1]
[null,null,null,null,null,null,null,null,0,false,1,1]
[null,null,null,null,null,null,null,null,0,false,1,1]
[null,null,null,null,null,null,null,null,0,false,1,1]
[null,null,null,null,null,null,null,null,0,false,1,1]
[null,null,null,null,null,null,null,null,0,false,1,1]
[null,null,null,null,null,null,null,null,0,false,1,1]
[null,null,null,null,null,null,null,null,0,false,1,1]
[null,null,null,null,null,null,null,null,0,false,1,1]
[null,null,null,null,null,null,null,null,0,false,1,1]
[null,null,null,null,null,null,null,null,0,false,1,1]
[null,null,null,null,null,null,null,null,0,false,1,1]
[null,null,null,null,null,null,null,null,0,false,1,1]
[null,null,null,null,null,null,null,null,0,false,1,1]
[null,null,null,null,null,null,null,null,0,false,1,1]
[null,null,null,null,null,null,null,null,0,false,1,1]
[null,null,null,null,null,null,null,null,0,false,1,1]
[null,null,null,null,null,null,null,null,0,false,1,1]
[null,null,null,null,null,null,null,null,0,false,1,1]
[null,null,null,null,null,null,null,null,0,false,1,1]
[null,null,null,null,null,null,null,null,0,false,1,1]
[null,null,null,null,null,null,null,null,0,false,1,1]
[null,null,null,null,null,null,null,null,0,false,1,1]
[null,null,null,null,null,null,null,null,0,{"$f":"AND(AND($H2239<>\"Completed\",$A2239<TODAY()),$H2239<>\"\")","v":false},1,1]
[null,null,null,null,null,null,null,null,0,false,1,1]
[null,null,null,null,null,null,null,null,0,false,1,1]
[null,null,null,null,null,null,null,null,0,false,1,1]
[null,null,null,null,null,null,null,null,0,false,1,1]
[null,null,null,null,null,null,null,null,0,false,1,1]
[null,null,null,null,null,null,null,null,0,false,1,1]
[null,null,null,null,null,null,null,null,0,false,1,1]
[null,null,null,null,null,null,null,null,0,false,{"$f":"IF(AND(H2247<>\"Completed\",H2247<>\"Canceled\"), 1, 0)","v":1},1]
[null,null,null,null,null,null,null,null,{"$f":"IF(H2248=\"Completed\",1,0)","v":0},false,1,{"$f":"SUM(I2248,K2248)","v":1}]
[null,null,null,null,null,null,null,null,0,false,1,1]
[null,null,null,null,null,null,null,null,0,false,1,1]
[null,null,null,null,null,null,null,null,0,false,1,1]
[null,null,null,null,null,null,null,null,0,false,1,1]
[null,null,null,null,null,null,null,null,0,false,1,1]
[null,null,null,null,null,null,null,null,0,false,1,1]
[null,null,null,null,null,null,null,null,0,false,1,1]
[null,null,null,null,null,null,null,null,0,false,1,1]
[null,null,null,null,null,null,null,null,0,false,1,1]
[null,null,null,null,null,null,null,null,0,false,1,1]
[null,null,null,null,null,null,null,null,0,false,1,1]
[null,null,null,null,null,null,null,null,0,false,1,1]
[null,null,null,null,null,null,null,null,0,false,1,1]
[null,null,null,null,null,null,null,null,0,false,1,1]
[null,null,null,null,null,null,null,null,0,false,1,1]
[null,null,null,null,null,null,null,null,0,false,1,1]
[null,null,null,null,null,null,null,null,0,false,1,1]
[null,null,null,null,null,null,null,null,0,false,1,1]
[null,null,null,null,null,null,null,null,0,false,1,1]
[null,null,null,null,null,null,null,null,0,false,1,1]
[null,null,null,null,null,null,null,null,0,false,1,1]
[null,null,null,null,null,null,null,null,0,false,1,1]
[null,null,null,null,null,null,null,null,0,false,1,1]
[null,null,null,null,null,null,null,null,0,false,1,1]
[null,null,null,null,null,null,null,null,0,false,1,1]
[null,null,null,null,null,null,null,null,0,false,1,1]
[null,null,null,null,null,null,null,null,0,false,1,1]
[null,null,null,null,null,null,null,null,0,false,1,1]
[null,null,null,null,null,null,null,null,0,false,1,1]
[null,null,null,null,null,null,null,null,0,false,1,1]
[null,null,null,null,null,null,null,null,0,false,1,1]
[null,null,null,null,null,null,null,null,0,false,1,1]
[null,null,null,null,null,null,null,null,0,false,1,1]
[null,null,null,null,null,null,null,null,0,false,1,1]
[null,null,null,null,null,null,null,null,0,false,1,1]
[null,null,null,null,null,null,null,null,0,false,1,1]
[null,null,null,null,null,null,null,null,0,false,1,1]
[null,null,null,null,null,null,null,null,0,false,1,1]
[null,null,null,null,null,null,null,null,0,false,1,1]
[null,null,null,null,null,null,null,null,0,false,1,1]
[null,null,null,null,null,null,null,null,0,false,1,1]
[null,null,null,null,null,null,null,null,0,false,1,1]
[null,null,null,null,null,null,null,null,0,false,1,1]
[null,null,null,null,null,null,null,null,0,false,1,1]
[null,null,null,null,null,null,null,null,0,false,1,1]
[null,null,null,null,null,null,null,null,0,false,1,1]
[null,null,null,null,null,null,null,null,0,false,1,1]
[null,null,null,null,null,null,null,null,0,false,1,1]
[null,null,null,null,null,null,null,null,0,false,1,1]
[null,null,null,null,null,null,null,null,0,false,1,1]
[null,null,null,null,null,null,null,null,0,false,1,1]
[null,null,null,null,null,null,null,null,0,false,1,1]
[null,null,null,null,null,null,null,null,0,false,1,1]
[null,null,null,null,null,null,null,null,0,false,1,1]
[null,null,null,null,null,null,null,null,0,{"$f":"AND(AND($H2303<>\"Completed\",$A2303<TODAY()),$H2303<>\"\")","v":false},1,1]
[null,null,null,null,null,null,null,null,0,false,1,1]
[null,null,null,null,null,null,null,null,0,false,1,1]
[null,null,null,null,null,null,null,null,0,false,1,1]
[null,null,null,null,null,null,null,null,0,false,1,1]
[null,null,null,null,null,null,null,null,0,false,1,1]
[null,null,null,null,null,null,null,null,0,false,1,1]
[null,null,null,null,null,null,null,null,0,false,1,1]
[null,null,null,null,null,null,null,null,0,false,{"$f":"IF(AND(H2311<>\"Completed\",H2311<>\"Canceled\"), 1, 0)","v":1},1]
[null,null,null,null,null,null,null,null,{"$f":"IF(H2312=\"Completed\",1,0)","v":0},false,1,{"$f":"SUM(I2312,K2312)","v":1}]
[null,null,null,null,null,null,null,null,0,false,1,1]
[null,null,null,null,null,null,null,null,0,false,1,1]
[null,null,null,null,null,null,null,null,0,false,1,1]
[null,null,null,null,null,null,null,null,0,false,1,1]
[null,null,null,null,null,null,null,null,0,false,1,1]
[null,null,null,null,null,null,null,null,0,false,1,1]
[null,null,null,null,null,null,null,null,0,false,1,1]
[null,null,null,null,null,null,null,null,0,false,1,1]
[null,null,null,null,null,null,null,null,0,false,1,1]
[null,null,null,null,null,null,null,null,0,false,1,1]
[null,null,null,null,null,null,null,null,0,false,1,1]
[null,null,null,null,null,null,null,null,0,false,1,1]
[null,null,null,null,null,null,null,null,0,false,1,1]
[null,null,null,null,null,null,null,null,0,false,1,1]
[null,null,null,null,null,null,null,null,0,false,1,1]
[null,null,null,null,null,null,null,null,0,false,1,1]
[null,null,null,null,null,null,null,null,0,false,1,1]
[null,null,null,null,null,null,null,null,0,false,1,1]
[null,null,null,null,null,null,null,null,0,false,1,1]
[null,null,null,null,null,null,null,null,0,false,1,1]
[null,null,null,null,null,null,null,null,0,false,1,1]
[null,null,null,null,null,null,null,null,0,false,1,1]
[null,null,null,null,null,null,null,null,0,false,1,1]
[null,null,null,null,null,null,null,null,0,false,1,1]
[null,null,null,null,null,null,null,null,0,false,1,1]
[null,null,null,null,null,null,null,null,0,false,1,1]
[null,null,null,null,null,null,null,null,0,false,1,1]
[null,null,null,null,null,null,null,null,0,false,1,1]
[null,null,null,null,null,null,null,null,0,false,1,1]
[null,null,null,null,null,null,null,null,0,false,1,1]
[null,null,null,null,null,null,null,null,0,false,1,1]
[null,null,null,null,null,null,null,null,0,false,1,1]
[null,null,null,null,null,null,null,null,0,false,1,1]
[null,null,null,null,null,null,null,null,0,false,1,1]
[null,null,null,null,null,null,null,null,0,false,1,1]
[null,null,null,null,null,null,null,null,0,false,1,1]
[null,null,null,null,null,null,null,null,0,false,1,1]
[null,null,null,null,null,null,null,null,0,false,1,1]
[null,null,null,null,null,null,null,null,0,false,1,1]
[null,null,null,null,null,null,null,null,0,false,1,1]
[null,null,null,null,null,null,null,null,0,false,1,1]
[null,null,null,null,null,null,null,null,0,false,1,1]
[null,null,null,null,null,null,null,null,0,false,1,1]
[null,null,null,null,null,null,null,null,0,false,1,1]
[null,null,null,null,null,null,null,null,0,false,1,1]
[null,null,null,null,null,null,null,null,0,false,1,1]
[null,null,null,null,null,null,null,null,0,false,1,1]
[null,null,null,null,null,null,null,null,0,false,1,1]
[null,null,null,null,null,null,null,null,0,false,1,1]
[null,null,null,null,null,null,null,null,0,false,1,1]
[null,null,null,null,null,null,null,null,0,false,1,1]
[null,null,null,null,null,null,null,null,0,false,1,1]
[null,null,null,null,null,null,null,null,0,false,1,1]
[null,null,null,null,null,null,null,null,0,false,1,1]
[null,null,null,null,null,null,null,null,0,{"$f":"AND(AND($H2367<>\"Completed\",$A2367<TODAY()),$H2367<>\"\")","v":false},1,1]
[null,null,null,null,null,null,null,null,0,false,1,1]
[null,null,null,null,null,null,null,null,0,false,1,1]
[null,null,null,null,null,null,null,null,0,false,1,1]
[null,null,null,null,null,null,null,null,0,false,1,1]
[null,null,null,null,null,null,null,null,0,false,1,1]
[null,null,null,null,null,null,null,null,0,false,1,1]
[null,null,null,null,null,null,null,null,0,false,1,1]
[null,null,null,null,null,null,null,null,0,false,{"$f":"IF(AND(H2375<>\"Completed\",H2375<>\"Canceled\"), 1, 0)","v":1},1]
[null,null,null,null,null,null,null,null,{"$f":"IF(H2376=\"Completed\",1,0)","v":0},false,1,{"$f":"SUM(I2376,K2376)","v":1}]
[null,null,null,null,null,null,null,null,0,false,1,1]
[null,null,null,null,null,null,null,null,0,false,1,1]
[null,null,null,null,null,null,null,null,0,false,1,1]
[null,null,null,null,null,null,null,null,0,false,1,1]
[null,null,null,null,null,null,null,null,0,false,1,1]
[null,null,null,null,null,null,null,null,0,false,1,1]
[null,null,null,null,null,null,null,null,0,false,1,1]
[null,null,null,null,null,null,null,null,0,false,1,1]
[null,null,null,null,null,null,null,null,0,false,1,1]
[null,null,null,null,null,null,null,null,0,false,1,1]
[null,null,null,null,null,null,null,null,0,false,1,1]
[null,null,null,null,null,null,null,null,0,false,1,1]
[null,null,null,null,null,null,null,null,0,false,1,1]
[null,null,null,null,null,null,null,null,0,false,1,1]
[null,null,null,null,null,null,null,null,0,false,1,1]
[null,null,null,null,null,null,null,null,0,false,1,1]
[null,null,null,null,null,null,null,null,0,false,1,1]
[null,null,null,null,null,null,null,null,0,false,1,1]
[null,null,null,null,null,null,null,null,0,false,1,1]
[null,null,null,null,null,null,null,null,0,false,1,1]
[null,null,null,null,null,null,null,null,0,false,1,1]
[null,null,null,null,null,null,null,null,0,false,1,1]
[null,null,null,null,null,null,null,null,0,false,1,1]
[null,null,null,null,null,null,null,null,0,false,1,1]
[null,null,null,null,null,null,null,null,0,false,1,1]
[null,null,null,null,null,null,null,null,0,false,1,1]
[null,null,null,null,null,null,null,null,0,false,1,1]
[null,null,null,null,null,null,null,null,0,false,1,1]
[null,null,null,null,null,null,null,null,0,false,1,1]
[null,null,null,null,null,null,null,null,0,false,1,1]
[null,null,null,null,null,null,null,null,0,false,1,1]
[null,null,null,null,null,null,null,null,0,false,1,1]
[null,null,null,null,null,null,null,null,0,false,1,1]
[null,null,null,null,null,null,null,null,0,false,1,1]
[null,null,null,null,null,null,null,null,0,false,1,1]
[null,null,null,null,null,null,null,null,0,false,1,1]
[null,null,null,null,null,null,null,null,0,false,1,1]
[null,null,null,null,null,null,null,null,0,false,1,1]
[null,null,null,null,null,null,null,null,0,false,1,1]
[null,null,null,null,null,null,null,null,0,false,1,1]
[null,null,null,null,null,null,null,null,0,false,1,1]
[null,null,null,null,null,null,null,null,0,false,1,1]
[null,null,null,null,null,null,null,null,0,false,1,1]
[null,null,null,null,null,null,null,null,0,false,1,1]
[null,null,null,null,null,null,null,null,0,false,1,1]
[null,null,null,null,null,null,null,null,0,false,1,1]
[null,null,null,null,null,null,null,null,0,false,1,1]
[null,null,null,null,null,null,null,null,0,false,1,1]
[null,null,null,null,null,null,null,null,0,false,1,1]
[null,null,null,null,null,null,null,null,0,false,1,1]
[null,null,null,null,null,null,null,null,0,false,1,1]
[null,null,null,null,null,null,null,null,0,false,1,1]
[null,null,null,null,null,null,null,null,0,false,1,1]
[null,null,null,null,null,null,null,null,0,false,1,1]
[null,null,null,null,null,null,null,null,0,{"$f":"AND(AND($H2431<>\"Completed\",$A2431<TODAY()),$H2431<>\"\")","v":false},1,1]
[null,null,null,null,null,null,null,null,0,false,1,1]
[null,null,null,null,null,null,null,null,0,false,1,1]
[null,null,null,null,null,null,null,null,0,false,1,1]
[null,null,null,null,null,null,null,null,0,false,1,1]
[null,null,null,null,null,null,null,null,0,false,1,1]
[null,null,null,null,null,null,null,null,0,false,1,1]
[null,null,null,null,null,null,null,null,0,false,1,1]
[null,null,null,null,null,null,null,null,0,false,{"$f":"IF(AND(H2439<>\"Completed\",H2439<>\"Canceled\"), 1, 0)","v":1},1]
[null,null,null,null,null,null,null,null,{"$f":"IF(H2440=\"Completed\",1,0)","v":0},false,1,{"$f":"SUM(I2440,K2440)","v":1}]
[null,null,null,null,null,null,null,null,0,false,1,1]
[null,null,null,null,null,null,null,null,0,false,1,1]
[null,null,null,null,null,null,null,null,0,false,1,1]
[null,null,null,null,null,null,null,null,0,false,1,1]
[null,null,null,null,null,null,null,null,0,false,1,1]
[null,null,null,null,null,null,null,null,0,false,1,1]
[null,null,null,null,null,null,null,null,0,false,1,1]
[null,null,null,null,null,null,null,null,0,false,1,1]
[null,null,null,null,null,null,null,null,0,false,1,1]
[null,null,null,null,null,null,null,null,0,false,1,1]
[null,null,null,null,null,null,null,null,0,false,1,1]
[null,null,null,null,null,null,null,null,0,false,1,1]
[null,null,null,null,null,null,null,null,0,false,1,1]
[null,null,null,null,null,null,null,null,0,false,1,1]
[null,null,null,null,null,null,null,null,0,false,1,1]
[null,null,null,null,null,null,null,null,0,false,1,1]
[null,null,null,null,null,null,null,null,0,false,1,1]
[null,null,null,null,null,null,null,null,0,false,1,1]
[null,null,null,null,null,null,null,null,0,false,1,1]
[null,null,null,null,null,null,null,null,0,false,1,1]
[null,null,null,null,null,null,null,null,0,false,1,1]
[null,null,null,null,null,null,null,null,0,false,1,1]
[null,null,null,null,null,null,null,null,0,false,1,1]
[null,null,null,null,null,null,null,null,0,false,1,1]
[null,null,null,null,null,null,null,null,0,false,1,1]
[null,null,null,null,null,null,null,null,0,false,1,1]
[null,null,null,null,null,null,null,null,0,false,1,1]
[null,null,null,null,null,null,null,null,0,false,1,1]
[null,null,null,null,null,null,null,null,0,false,1,1]
[null,null,null,null,null,null,null,null,0,false,1,1]
[null,null,null,null,null,null,null,null,0,false,1,1]
[null,null,null,null,null,null,null,null,0,false,1,1]
[null,null,null,null,null,null,null,null,0,false,1,1]
[null,null,null,null,null,null,null,null,0,false,1,1]
[null,null,null,null,null,null,null,null,0,false,1,1]
[null,null,null,null,null,null,null,null,0,false,1,1]
[null,null,null,null,null,null,null,null,0,false,1,1]
[null,null,null,null,null,null,null,null,0,false,1,1]
[null,null,null,null,null,null,null,null,0,false,1,1]
[null,null,null,null,null,null,null,null,0,false,1,1]
[null,null,null,null,null,null,null,null,0,false,1,1]
[null,null,null,null,null,null,null,null,0,false,1,1]
[null,null,null,null,null,null,null,null,0,false,1,1]
[null,null,null,null,null,null,null,null,0,false,1,1]
[null,null,null,null,null,null,null,null,0,false,1,1]
[null,null,null,null,null,null,null,null,0,false,1,1]
[null,null,null,null,null,null,null,null,0,false,1,1]
[null,null,null,null,null,null,null,null,0,false,1,1]
[null,null,null,null,null,null,null,null,0,false,1,1]
[null,null,null,null,null,null,null,null,0,false,1,1]
[null,null,null,null,null,null,null,null,0,false,1,1]
[null,null,null,null,null,null,null,null,0,false,1,1]
[null,null,null,null,null,null,null,null,0,false,1,1]
[null,null,null,null,null,null,null,null,0,false,1,1]
[null,null,null,null,null,null,null,null,0,{"$f":"AND(AND($H2495<>\"Completed\",$A2495<TODAY()),$H2495<>\"\")","v":false},1,1]
[null,null,null,null,null,null,null,null,0,false,1,1]
[null,null,null,null,null,null,null,null,0,false,1,1]
[null,null,null,null,null,null,null,null,0,false,1,1]
[null,null,null,null,null,null,null,null,0,false,1,1]
[null,null,null,null,null,null,null,null,0,false,1,1]
[null,null,null,null,null,null,null,null,0,false,1,1]
[null,null,null,null,null,null,null,null,0,false,1,1]
[null,null,null,null,null,null,null,null,0,false,{"$f":"IF(AND(H2503<>\"Completed\",H2503<>\"Canceled\"), 1, 0)","v":1},1]
[null,null,null,null,null,null,null,null,{"$f":"IF(H2504=\"Completed\",1,0)","v":0},false,1,{"$f":"SUM(I2504,K2504)","v":1}]
[null,null,null,null,null,null,null,null,0,false,1,1]
[null,null,null,null,null,null,null,null,0,false,1,1]
[null,null,null,null,null,null,null,null,0,false,1,1]
[null,null,null,null,null,null,null,null,0,false,1,1]
[null,null,null,null,null,null,null,null,0,false,1,1]
[null,null,null,null,null,null,null,null,0,false,1,1]
[null,null,null,null,null,null,null,null,0,false,1,1]
[null,null,null,null,null,null,null,null,0,false,1,1]
[null,null,null,null,null,null,null,null,0,false,1,1]
[null,null,null,null,null,null,null,null,0,false,1,1]
[null,null,null,null,null,null,null,null,0,false,1,1]
[null,null,null,null,null,null,null,null,0,false,1,1]
[null,null,null,null,null,null,null,null,0,false,1,1]
[null,null,null,null,null,null,null,null,0,false,1,1]
[null,null,null,null,null,null,null,null,0,false,1,1]
[null,null,null,null,null,null,null,null,0,false,1,1]
[null,null,null,null,null,null,null,null,0,false,1,1]
[null,null,null,null,null,null,null,null,0,false,1,1]
[null,null,null,null,null,null,null,null,0,false,1,1]
[null,null,null,null,null,null,null,null,0,false,1,1]
[null,null,null,null,null,null,null,null,0,false,1,1]
[null,null,null,null,null,null,null,null,0,false,1,1]
[null,null,null,null,null,null,null,null,0,false,1,1]
[null,null,null,null,null,null,null,null,0,false,1,1]
[null,null,null,null,null,null,null,null,0,false,1,1]
[null,null,null,null,null,null,null,null,0,false,1,1]
[null,null,null,null,null,null,null,null,0,false,1,1]
[null,null,null,null,null,null,null,null,0,false,1,1]
[null,null,null,null,null,null,null,null,0,false,1,1]
[null,null,null,null,null,null,null,null,0,false,1,1]
[null,null,null,null,null,null,null,null,0,false,1,1]
[null,null,null,null,null,null,null,null,0,false,1,1]
[null,null,null,null,null,null,null,null,0,false,1,1]
[null,null,null,null,null,null,null,null,0,false,1,1]
[null,null,null,null,null,null,null,null,0,false,1,1]
[null,null,null,null,null,null,null,null,0,false,1,1]
[null,null,null,null,null,null,null,null,0,false,1,1]
[null,null,null,null,null,null,null,null,0,false,1,1]
[null,null,null,null,null,null,null,null,0,false,1,1]
[null,null,null,null,null,null,null,null,0,false,1,1]
[null,null,null,null,null,null,null,null,0,false,1,1]
[null,null,null,null,null,null,null,null,0,false,1,1]
[null,null,null,null,null,null,null,null,0,false,1,1]
[null,null,null,null,null,null,null,null,0,false,1,1]
[null,null,null,null,null,null,null,null,0,false,1,1]
[null,null,null,null,null,null,null,null,0,false,1,1]
[null,null,null,null,null,null,null,null,0,false,1,1]
[null,null,null,null,null,null,null,null,0,false,1,1]
[null,null,null,null,null,null,null,null,0,false,1,1]
[null,null,null,null,null,null,null,null,0,false,1,1]
[null,null,null,null,null,null,null,null,0,false,1,1]
[null,null,null,null,null,null,null,null,0,false,1,1]
[null,null,null,null,null,null,null,null,0,false,1,1]
[null,null,null,null,null,null,null,null,0,false,1,1]
[null,null,null,null,null,null,null,null,0,{"$f":"AND(AND($H2559<>\"Completed\",$A2559<TODAY()),$H2559<>\"\")","v":false},1,1]
[null,null,null,null,null,null,null,null,0,false,1,1]
[null,null,null,null,null,null,null,null,0,false,1,1]
[null,null,null,null,null,null,null,null,0,false,1,1]
[null,null,null,null,null,null,null,null,0,false,1,1]
[null,null,null,null,null,null,null,null,0,false,1,1]
[null,null,null,null,null,null,null,null,0,false,1,1]
[null,null,null,null,null,null,null,null,0,false,1,1]
[null,null,null,null,null,null,null,null,0,false,{"$f":"IF(AND(H2567<>\"Completed\",H2567<>\"Canceled\"), 1, 0)","v":1},1]
[null,null,null,null,null,null,null,null,{"$f":"IF(H2568=\"Completed\",1,0)","v":0},false,1,{"$f":"SUM(I2568,K2568)","v":1}]
[null,null,null,null,null,null,null,null,0,false,1,1]
[null,null,null,null,null,null,null,null,0,false,1,1]
[null,null,null,null,null,null,null,null,0,false,1,1]
[null,null,null,null,null,null,null,null,0,false,1,1]
[null,null,null,null,null,null,null,null,0,false,1,1]
[null,null,null,null,null,null,null,null,0,false,1,1]
[null,null,null,null,null,null,null,null,0,false,1,1]
[null,null,null,null,null,null,null,null,0,false,1,1]
[null,null,null,null,null,null,null,null,0,false,1,1]
[null,null,null,null,null,null,null,null,0,false,1,1]
[null,null,null,null,null,null,null,null,0,false,1,1]
[null,null,null,null,null,null,null,null,0,false,1,1]
[null,null,null,null,null,null,null,null,0,false,1,1]
[null,null,null,null,null,null,null,null,0,false,1,1]
[null,null,null,null,null,null,null,null,0,false,1,1]
[null,null,null,null,null,null,null,null,0,false,1,1]
[null,null,null,null,null,null,null,null,0,false,1,1]
[null,null,null,null,null,null,null,null,0,false,1,1]
[null,null,null,null,null,null,null,null,0,false,1,1]
[null,null,null,null,null,null,null,null,0,false,1,1]
[null,null,null,null,null,null,null,null,0,false,1,1]
[null,null,null,null,null,null,null,null,0,false,1,1]
[null,null,null,null,null,null,null,null,0,false,1,1]
[null,null,null,null,null,null,null,null,0,false,1,1]
[null,null,null,null,null,null,null,null,0,false,1,1]
[null,null,null,null,null,null,null,null,0,false,1,1]
[null,null,null,null,null,null,null,null,0,false,1,1]
[null,null,null,null,null,null,null,null,0,false,1,1]
[null,null,null,null,null,null,null,null,0,false,1,1]
[null,null,null,null,null,null,null,null,0,false,1,1]
[null,null,null,null,null,null,null,null,0,false,1,1]
[null,null,null,null,null,null,null,null,0,false,1,1]
[null,null,null,null,null,null,null,null,0,false,1,1]
[null,null,null,null,null,null,null,null,0,false,1,1]
[null,null,null,null,null,null,null,null,0,false,1,1]
[null,null,null,null,null,null,null,null,0,false,1,1]
[null,null,null,null,null,null,null,null,0,false,1,1]
[null,null,null,null,null,null,null,null,0,false,1,1]
[null,null,null,null,null,null,null,null,0,false,1,1]
[null,null,null,null,null,null,null,null,0,false,1,1]
[null,null,null,null,null,null,null,null,0,false,1,1]
[null,null,null,null,null,null,null,null,0,false,1,1]
[null,null,null,null,null,null,null,null,0,false,1,1]
[null,null,null,null,null,null,null,null,0,false,1,1]
[null,null,null,null,null,null,null,null,0,false,1,1]
[null,null,null,null,null,null,null,null,0,false,1,1]
[null,null,null,null,null,null,null,null,0,false,1,1]
[null,null,null,null,null,null,null,null,0,false,1,1]
[null,null,null,null,null,null,null,null,0,false,1,1]
[null,null,null,null,null,null,null,null,0,false,1,1]
[null,null,null,null,null,null,null,null,0,false,1,1]
[null,null,null,null,null,null,null,null,0,false,1,1]
[null,null,null,null,null,null,null,null,0,false,1,1]
[null,null,null,null,null,null,null,null,0,false,1,1]
[null,null,null,null,null,null,null,null,0,{"$f":"AND(AND($H2623<>\"Completed\",$A2623<TODAY()),$H2623<>\"\")","v":false},1,1]
[null,null,null,null,null,null,null,null,0,false,1,1]
[null,null,null,null,null,null,null,null,0,false,1,1]
[null,null,null,null,null,null,null,null,0,false,1,1]
[null,null,null,null,null,null,null,null,0,false,1,1]
[null,null,null,null,null,null,null,null,0,false,1,1]
[null,null,null,null,null,null,null,null,0,false,1,1]
[null,null,null,null,null,null,null,null,0,false,1,1]
[null,null,null,null,null,null,null,null,0,false,{"$f":"IF(AND(H2631<>\"Completed\",H2631<>\"Canceled\"), 1, 0)","v":1},1]
[null,null,null,null,null,null,null,null,{"$f":"IF(H2632=\"Completed\",1,0)","v":0},false,1,{"$f":"SUM(I2632,K2632)","v":1}]
[null,null,null,null,null,null,null,null,0,false,1,1]
[null,null,null,null,null,null,null,null,0,false,1,1]
[null,null,null,null,null,null,null,null,0,false,1,1]
[null,null,null,null,null,null,null,null,0,false,1,1]
[null,null,null,null,null,null,null,null,0,false,1,1]
[null,null,null,null,null,null,null,null,0,false,1,1]
[null,null,null,null,null,null,null,null,0,false,1,1]
[null,null,null,null,null,null,null,null,0,false,1,1]
[null,null,null,null,null,null,null,null,0,false,1,1]
[null,null,null,null,null,null,null,null,0,false,1,1]
[null,null,null,null,null,null,null,null,0,false,1,1]
[null,null,null,null,null,null,null,null,0,false,1,1]
[null,null,null,null,null,null,null,null,0,false,1,1]
[null,null,null,null,null,null,null,null,0,false,1,1]
[null,null,null,null,null,null,null,null,0,false,1,1]
[null,null,null,null,null,null,null,null,0,false,1,1]
[null,null,null,null,null,null,null,null,0,false,1,1]
[null,null,null,null,null,null,null,null,0,false,1,1]
[null,null,null,null,null,null,null,null,0,false,1,1]
[null,null,null,null,null,null,null,null,0,false,1,1]
[null,null,null,null,null,null,null,null,0,false,1,1]
[null,null,null,null,null,null,null,null,0,false,1,1]
[null,null,null,null,null,null,null,null,0,false,1,1]
[null,null,null,null,null,null,null,null,0,false,1,1]
[null,null,null,null,null,null,null,null,0,false,1,1]
[null,null,null,null,null,null,null,null,0,false,1,1]
[null,null,null,null,null,null,null,null,0,false,1,1]
[null,null,null,null,null,null,null,null,0,false,1,1]
[null,null,null,null,null,null,null,null,0,false,1,1]
[null,null,null,null,null,null,null,null,0,false,1,1]
[null,null,null,null,null,null,null,null,0,false,1,1]
[null,null,null,null,null,null,null,null,0,false,1,1]
[null,null,null,null,null,null,null,null,0,false,1,1]
[null,null,null,null,null,null,null,null,0,false,1,1]
[null,null,null,null,null,null,null,null,0,false,1,1]
[null,null,null,null,null,null,null,null,0,false,1,1]
[null,null,null,null,null,null,null,null,0,false,1,1]
[null,null,null,null,null,null,null,null,0,false,1,1]
[null,null,null,null,null,null,null,null,0,false,1,1]
[null,null,null,null,null,null,null,null,0,false,1,1]
[null,null,null,null,null,null,null,null,0,false,1,1]
[null,null,null,null,null,null,null,null,0,false,1,1]
[null,null,null,null,null,null,null,null,0,false,1,1]
[null,null,null,null,null,null,null,null,0,false,1,1]
[null,null,null,null,null,null,null,null,0,false,1,1]
[null,null,null,null,null,null,null,null,0,false,1,1]
[null,null,null,null,null,null,null,null,0,false,1,1]
[null,null,null,null,null,null,null,null,0,false,1,1]
[null,null,null,null,null,null,null,null,0,false,1,1]
[null,null,null,null,null,null,null,null,0,false,1,1]
[null,null,null,null,null,null,null,null,0,false,1,1]
[null,null,null,null,null,null,null,null,0,false,1,1]
[null,null,null,null,null,null,null,null,0,false,1,1]
[null,null,null,null,null,null,null,null,0,false,1,1]
[null,null,null,null,null,null,null,null,0,{"$f":"AND(AND($H2687<>\"Completed\",$A2687<TODAY()),$H2687<>\"\")","v":false},1,1]
[null,null,null,null,null,null,null,null,0,false,1,1]
[null,null,null,null,null,null,null,null,0,false,1,1]
[null,null,null,null,null,null,null,null,0,false,1,1]
[null,null,null,null,null,null,null,null,0,false,1,1]
[null,null,null,null,null,null,null,null,0,false,1,1]
[null,null,null,null,null,null,null,null,0,false,1,1]
[null,null,null,null,null,null,null,null,0,false,1,1]
[null,null,null,null,null,null,null,null,0,false,{"$f":"IF(AND(H2695<>\"Completed\",H2695<>\"Canceled\"), 1, 0)","v":1},1]
[null,null,null,null,null,null,null,null,{"$f":"IF(H2696=\"Completed\",1,0)","v":0},false,1,{"$f":"SUM(I2696,K2696)","v":1}]
[null,null,null,null,null,null,null,null,0,false,1,1]
[null,null,null,null,null,null,null,null,0,false,1,1]
[null,null,null,null,null,null,null,null,0,false,1,1]
[null,null,null,null,null,null,null,null,0,false,1,1]
[null,null,null,null,null,null,null,null,0,false,1,1]
[null,null,null,null,null,null,null,null,0,false,1,1]
[null,null,null,null,null,null,null,null,0,false,1,1]
[null,null,null,null,null,null,null,null,0,false,1,1]
[null,null,null,null,null,null,null,null,0,false,1,1]
[null,null,null,null,null,null,null,null,0,false,1,1]
[null,null,null,null,null,null,null,null,0,false,1,1]
[null,null,null,null,null,null,null,null,0,false,1,1]
[null,null,null,null,null,null,null,null,0,false,1,1]
[null,null,null,null,null,null,null,null,0,false,1,1]
[null,null,null,null,null,null,null,null,0,false,1,1]
[null,null,null,null,null,null,null,null,0,false,1,1]
[null,null,null,null,null,null,null,null,0,false,1,1]
[null,null,null,null,null,null,null,null,0,false,1,1]
[null,null,null,null,null,null,null,null,0,false,1,1]
[null,null,null,null,null,null,null,null,0,false,1,1]
[null,null,null,null,null,null,null,null,0,false,1,1]
[null,null,null,null,null,null,null,null,0,false,1,1]
[null,null,null,null,null,null,null,null,0,false,1,1]
[null,null,null,null,null,null,null,null,0,false,1,1]
[null,null,null,null,null,null,null,null,0,false,1,1]
[null,null,null,null,null,null,null,null,0,false,1,1]
[null,null,null,null,null,null,null,null,0,false,1,1]
[null,null,null,null,null,null,null,null,0,false,1,1]
[null,null,null,null,null,null,null,null,0,false,1,1]
[null,null,null,null,null,null,null,null,0,false,1,1]
[null,null,null,null,null,null,null,null,0,false,1,1]
[null,null,null,null,null,null,null,null,0,false,1,1]
[null,null,null,null,null,null,null,null,0,false,1,1]
[null,null,null,null,null,null,null,null,0,false,1,1]
[null,null,null,null,null,null,null,null,0,false,1,1]
[null,null,null,null,null,null,null,null,0,false,1,1]
[null,null,null,null,null,null,null,null,0,false,1,1]
[null,null,null,null,null,null,null,null,0,false,1,1]
[null,null,null,null,null,null,null,null,0,false,1,1]
[null,null,null,null,null,null,null,null,0,false,1,1]
[null,null,null,null,null,null,null,null,0,false,1,1]
[null,null,null,null,null,null,null,null,0,false,1,1]
[null,null,null,null,null,null,null,null,0,false,1,1]
[null,null,null,null,null,null,null,null,0,false,1,1]
[null,null,null,null,null,null,null,null,0,false,1,1]
[null,null,null,null,null,null,null,null,0,false,1,1]
[null,null,null,null,null,null,null,null,0,false,1,1]
[null,null,null,null,null,null,null,null,0,false,1,1]
[null,null,null,null,null,null,null,null,0,false,1,1]
[null,null,null,null,null,null,null,null,0,false,1,1]
[null,null,null,null,null,null,null,null,0,false,1,1]
[null,null,null,null,null,null,null,null,0,false,1,1]
[null,null,null,null,null,null,null,null,0,false,1,1]
[null,null,null,null,null,null,null,null,0,false,1,1]
[null,null,null,null,null,null,null,null,0,{"$f":"AND(AND($H2751<>\"Completed\",$A2751<TODAY()),$H2751<>\"\")","v":false},1,1]
[null,null,null,null,null,null,null,null,0,false,1,1]
[null,null,null,null,null,null,null,null,0,false,1,1]
[null,null,null,null,null,null,null,null,0,false,1,1]
[null,null,null,null,null,null,null,null,0,false,1,1]
[null,null,null,null,null,null,null,null,0,false,1,1]
[null,null,null,null,null,null,null,null,0,false,1,1]
[null,null,null,null,null,null,null,null,0,false,1,1]
[null,null,null,null,null,null,null,null,0,false,{"$f":"IF(AND(H2759<>\"Completed\",H2759<>\"Canceled\"), 1, 0)","v":1},1]
[null,null,null,null,null,null,null,null,{"$f":"IF(H2760=\"Completed\",1,0)","v":0},false,1,{"$f":"SUM(I2760,K2760)","v":1}]
[null,null,null,null,null,null,null,null,0,false,1,1]
[null,null,null,null,null,null,null,null,0,false,1,1]
[null,null,null,null,null,null,null,null,0,false,1,1]
[null,null,null,null,null,null,null,null,0,false,1,1]
[null,null,null,null,null,null,null,null,0,false,1,1]
[null,null,null,null,null,null,null,null,0,false,1,1]
[null,null,null,null,null,null,null,null,0,false,1,1]
[null,null,null,null,null,null,null,null,0,false,1,1]
[null,null,null,null,null,null,null,null,0,false,1,1]
[null,null,null,null,null,null,null,null,0,false,1,1]
[null,null,null,null,null,null,null,null,0,false,1,1]
[null,null,null,null,null,null,null,null,0,false,1,1]
[null,null,null,null,null,null,null,null,0,false,1,1]
[null,null,null,null,null,null,null,null,0,false,1,1]
[null,null,null,null,null,null,null,null,0,false,1,1]
[null,null,null,null,null,null,null,null,0,false,1,1]
[null,null,null,null,null,null,null,null,0,false,1,1]
[null,null,null,null,null,null,null,null,0,false,1,1]
[null,null,null,null,null,null,null,null,0,false,1,1]
[null,null,null,null,null,null,null,null,0,false,1,1]
[null,null,null,null,null,null,null,null,0,false,1,1]
[null,null,null,null,null,null,null,null,0,false,1,1]
[null,null,null,null,null,null,null,null,0,false,1,1]
[null,null,null,null,null,null,null,null,0,false,1,1]
[null,null,null,null,null,null,null,null,0,false,1,1]
[null,null,null,null,null,null,null,null,0,false,1,1]
[null,null,null,null,null,null,null,null,0,false,1,1]
[null,null,null,null,null,null,null,null,0,false,1,1]
[null,null,null,null,null,null,null,null,0,false,1,1]
[null,null,null,null,null,null,null,null,0,false,1,1]
[null,null,null,null,null,null,null,null,0,false,1,1]
[null,null,null,null,null,null,null,null,0,false,1,1]
[null,null,null,null,null,null,null,null,0,false,1,1]
[null,null,null,null,null,null,null,null,0,false,1,1]
[null,null,null,null,null,null,null,null,0,false,1,1]
[null,null,null,null,null,null,null,null,0,false,1,1]
[null,null,null,null,null,null,null,null,0,false,1,1]
[null,null,null,null,null,null,null,null,0,false,1,1]
[null,null,null,null,null,null,null,null,0,false,1,1]
[null,null,null,null,null,null,null,null,0,false,1,1]
[null,null,null,null,null,null,null,null,0,false,1,1]
[null,null,null,null,null,null,null,null,0,false,1,1]
[null,null,null,null,null,null,null,null,0,false,1,1]
[null,null,null,null,null,null,null,null,0,false,1,1]
[null,null,null,null,null,null,null,null,0,false,1,1]
[null,null,null,null,null,null,null,null,0,false,1,1]
[null,null,null,null,null,null,null,null,0,false,1,1]
[null,null,null,null,null,null,null,null,0,false,1,1]
[null,null,null,null,null,null,null,null,0,false,1,1]
[null,null,null,null,null,null,null,null,0,false,1,1]
[null,null,null,null,null,null,null,null,0,false,1,1]
[null,null,null,null,null,null,null,null,0,false,1,1]
[null,null,null,null,null,null,null,null,0,false,1,1]
[null,null,null,null,null,null,null,null,0,false,1,1]
[null,null,null,null,null,null,null,null,0,{"$f":"AND(AND($H2815<>\"Completed\",$A2815<TODAY()),$H2815<>\"\")","v":false},1,1]
[null,null,null,null,null,null,null,null,0,false,1,1]
[null,null,null,null,null,null,null,null,0,false,1,1]
[null,null,null,null,null,null,null,null,0,false,1,1]
[null,null,null,null,null,null,null,null,0,false,1,1]
[null,null,null,null,null,null,null,null,0,false,1,1]
[null,null,null,null,null,null,null,null,0,false,1,1]
[null,null,null,null,null,null,null,null,0,false,1,1]
[null,null,null,null,null,null,null,null,0,false,{"$f":"IF(AND(H2823<>\"Completed\",H2823<>\"Canceled\"), 1, 0)","v":1},1]
[null,null,null,null,null,null,null,null,{"$f":"IF(H2824=\"Completed\",1,0)","v":0},false,1,{"$f":"SUM(I2824,K2824)","v":1}]
[null,null,null,null,null,null,null,null,0,false,1,1]
[null,null,null,null,null,null,null,null,0,false,1,1]
[null,null,null,null,null,null,null,null,0,false,1,1]
[null,null,null,null,null,null,null,null,0,false,1,1]
[null,null,null,null,null,null,null,null,0,false,1,1]
[null,null,null,null,null,null,null,null,0,false,1,1]
[null,null,null,null,null,null,null,null,0,false,1,1]
[null,null,null,null,null,null,null,null,0,false,1,1]
[null,null,null,null,null,null,null,null,0,false,1,1]
[null,null,null,null,null,null,null,null,0,false,1,1]
[null,null,null,null,null,null,null,null,0,false,1,1]
[null,null,null,null,null,null,null,null,0,false,1,1]
[null,null,null,null,null,null,null,null,0,false,1,1]
[null,null,null,null,null,null,null,null,0,false,1,1]
[null,null,null,null,null,null,null,null,0,false,1,1]
[null,null,null,null,null,null,null,null,0,false,1,1]
[null,null,null,null,null,null,null,null,0,false,1,1]
[null,null,null,null,null,null,null,null,0,false,1,1]
[null,null,null,null,null,null,null,null,0,false,1,1]
[null,null,null,null,null,null,null,null,0,false,1,1]
[null,null,null,null,null,null,null,null,0,false,1,1]
[null,null,null,null,null,null,null,null,0,false,1,1]
[null,null,null,null,null,null,null,null,0,false,1,1]
[null,null,null,null,null,null,null,null,0,false,1,1]
[null,null,null,null,null,null,null,null,0,false,1,1]
[null,null,null,null,null,null,null,null,0,false,1,1]
[null,null,null,null,null,null,null,null,0,false,1,1]
[null,null,null,null,null,null,null,null,0,false,1,1]
[null,null,null,null,null,null,null,null,0,false,1,1]
[null,null,null,null,null,null,null,null,0,false,1,1]
[null,null,null,null,null,null,null,null,0,false,1,1]
[null,null,null,null,null,null,null,null,0,false,1,1]
[null,null,null,null,null,null,null,null,0,false,1,1]
[null,null,null,null,null,null,null,null,0,false,1,1]
[null,null,null,null,null,null,null,null,0,false,1,1]
[null,null,null,null,null,null,null,null,0,false,1,1]
[null,null,null,null,null,null,null,null,0,false,1,1]
[null,null,null,null,null,null,null,null,0,false,1,1]
[null,null,null,null,null,null,null,null,0,false,1,1]
[null,null,null,null,null,null,null,null,0,false,1,1]
[null,null,null,null,null,null,null,null,0,false,1,1]
[null,null,null,null,null,null,null,null,0,false,1,1]
[null,null,null,null,null,null,null,null,0,false,1,1]
[null,null,null,null,null,null,null,null,0,false,1,1]
[null,null,null,null,null,null,null,null,0,false,1,1]
[null,null,null,null,null,null,null,null,0,false,1,1]
[null,null,null,null,null,null,null,null,0,false,1,1]
[null,null,null,null,null,null,null,null,0,false,1,1]
[null,null,null,null,null,null,null,null,0,false,1,1]
[null,null,null,null,null,null,null,null,0,false,1,1]
[null,null,null,null,null,null,null,null,0,false,1,1]
[null,null,null,null,null,null,null,null,0,false,1,1]
[null,null,null,null,null,null,null,null,0,false,1,1]
[null,null,null,null,null,null,null,null,0,false,1,1]
[null,null,null,null,null,null,null,null,0,{"$f":"AND(AND($H2879<>\"Completed\",$A2879<TODAY()),$H2879<>\"\")","v":false},1,1]
[null,null,null,null,null,null,null,null,0,false,1,1]
[null,null,null,null,null,null,null,null,0,false,1,1]
[null,null,null,null,null,null,null,null,0,false,1,1]
[null,null,null,null,null,null,null,null,0,false,1,1]
[null,null,null,null,null,null,null,null,0,false,1,1]
[null,null,null,null,null,null,null,null,0,false,1,1]
[null,null,null,null,null,null,null,null,0,false,1,1]
[null,null,null,null,null,null,null,null,0,false,{"$f":"IF(AND(H2887<>\"Completed\",H2887<>\"Canceled\"), 1, 0)","v":1},1]
[null,null,null,null,null,null,null,null,{"$f":"IF(H2888=\"Completed\",1,0)","v":0},false,1,{"$f":"SUM(I2888,K2888)","v":1}]
[null,null,null,null,null,null,null,null,0,false,1,1]
[null,null,null,null,null,null,null,null,0,false,1,1]
[null,null,null,null,null,null,null,null,0,false,1,1]
[null,null,null,null,null,null,null,null,0,false,1,1]
[null,null,null,null,null,null,null,null,0,false,1,1]
[null,null,null,null,null,null,null,null,0,false,1,1]
[null,null,null,null,null,null,null,null,0,false,1,1]
[null,null,null,null,null,null,null,null,0,false,1,1]
[null,null,null,null,null,null,null,null,0,false,1,1]
[null,null,null,null,null,null,null,null,0,false,1,1]
[null,null,null,null,null,null,null,null,0,false,1,1]
[null,null,null,null,null,null,null,null,0,false,1,1]
[null,null,null,null,null,null,null,null,0,false,1,1]
[null,null,null,null,null,null,null,null,0,false,1,1]
[null,null,null,null,null,null,null,null,0,false,1,1]
[null,null,null,null,null,null,null,null,0,false,1,1]
[null,null,null,null,null,null,null,null,0,false,1,1]
[null,null,null,null,null,null,null,null,0,false,1,1]
[null,null,null,null,null,null,null,null,0,false,1,1]
[null,null,null,null,null,null,null,null,0,false,1,1]
[null,null,null,null,null,null,null,null,0,false,1,1]
[null,null,null,null,null,null,null,null,0,false,1,1]
[null,null,null,null,null,null,null,null,0,false,1,1]
[null,null,null,null,null,null,null,null,0,false,1,1]
[null,null,null,null,null,null,null,null,0,false,1,1]
[null,null,null,null,null,null,null,null,0,false,1,1]
[null,null,null,null,null,null,null,null,0,false,1,1]
[null,null,null,null,null,null,null,null,0,false,1,1]
[null,null,null,null,null,null,null,null,0,false,1,1]
[null,null,null,null,null,null,null,null,0,false,1,1]
[null,null,null,null,null,null,null,null,0,false,1,1]
[null,null,null,null,null,null,null,null,0,false,1,1]
[null,null,null,null,null,null,null,null,0,false,1,1]
[null,null,null,null,null,null,null,null,0,false,1,1]
[null,null,null,null,null,null,null,null,0,false,1,1]
[null,null,null,null,null,null,null,null,0,false,1,1]
[null,null,null,null,null,null,null,null,0,false,1,1]
[null,null,null,null,null,null,null,null,0,false,1,1]
[null,null,null,null,null,null,null,null,0,false,1,1]
[null,null,null,null,null,null,null,null,0,false,1,1]
[null,null,null,null,null,null,null,null,0,false,1,1]
[null,null,null,null,null,null,null,null,0,false,1,1]
[null,null,null,null,null,null,null,null,0,false,1,1]
[null,null,null,null,null,null,null,null,0,false,1,1]
[null,null,null,null,null,null,null,null,0,false,1,1]
[null,null,null,null,null,null,null,null,0,false,1,1]
[null,null,null,null,null,null,null,null,0,false,1,1]
[null,null,null,null,null,null,null,null,0,false,1,1]
[null,null,null,null,null,null,null,null,0,false,1,1]
[null,null,null,null,null,null,null,null,0,false,1,1]
[null,null,null,null,null,null,null,null,0,false,1,1]
[null,null,null,null,null,null,null,null,0,false,1,1]
[null,null,null,null,null,null,null,null,0,false,1,1]
[null,null,null,null,null,null,null,null,0,false,1,1]
[null,null,null,null,null,null,null,null,0,{"$f":"AND(AND($H2943<>\"Completed\",$A2943<TODAY()),$H2943<>\"\")","v":false},1,1]
[null,null,null,null,null,null,null,null,0,false,1,1]
[null,null,null,null,null,null,null,null,0,false,1,1]
[null,null,null,null,null,null,null,null,0,false,1,1]
[null,null,null,null,null,null,null,null,0,false,1,1]
[null,null,null,null,null,null,null,null,0,false,1,1]
[null,null,null,null,null,null,null,null,0,false,1,1]
[null,null,null,null,null,null,null,null,0,false,1,1]
[null,null,null,null,null,null,null,null,0,false,{"$f":"IF(AND(H2951<>\"Completed\",H2951<>\"Canceled\"), 1, 0)","v":1},1]
[null,null,null,null,null,null,null,null,{"$f":"IF(H2952=\"Completed\",1,0)","v":0},false,1,{"$f":"SUM(I2952,K2952)","v":1}]
[null,null,null,null,null,null,null,null,0,false,1,1]
[null,null,null,null,null,null,null,null,0,false,1,1]
[null,null,null,null,null,null,null,null,0,false,1,1]
[null,null,null,null,null,null,null,null,0,false,1,1]
[null,null,null,null,null,null,null,null,0,false,1,1]
[null,null,null,null,null,null,null,null,0,false,1,1]
[null,null,null,null,null,null,null,null,0,false,1,1]
[null,null,null,null,null,null,null,null,0,false,1,1]
[null,null,null,null,null,null,null,null,0,false,1,1]
[null,null,null,null,null,null,null,null,0,false,1,1]
[null,null,null,null,null,null,null,null,0,false,1,1]
[null,null,null,null,null,null,null,null,0,false,1,1]
[null,null,null,null,null,null,null,null,0,false,1,1]
[null,null,null,null,null,null,null,null,0,false,1,1]
[null,null,null,null,null,null,null,null,0,false,1,1]
[null,null,null,null,null,null,null,null,0,false,1,1]
[null,null,null,null,null,null,null,null,0,false,1,1]
[null,null,null,null,null,null,null,null,0,false,1,1]
[null,null,null,null,null,null,null,null,0,false,1,1]
[null,null,null,null,null,null,null,null,0,false,1,1]
[null,null,null,null,null,null,null,null,0,false,1,1]
[null,null,null,null,null,null,null,null,0,false,1,1]
[null,null,null,null,null,null,null,null,0,false,1,1]
[null,null,null,null,null,null,null,null,0,false,1,1]
[null,null,null,null,null,null,null,null,0,false,1,1]
[null,null,null,null,null,null,null,null,0,false,1,1]
[null,null,null,null,null,null,null,null,0,false,1,1]
[null,null,null,null,null,null,null,null,0,false,1,1]
[null,null,null,null,null,null,null,null,0,false,1,1]
[null,null,null,null,null,null,null,null,0,false,1,1]
[null,null,null,null,null,null,null,null,0,false,1,1]
[null,null,null,null,null,null,null,null,0,false,1,1]
[null,null,null,null,null,null,null,null,0,false,1,1]
[null,null,null,null,null,null,null,null,0,false,1,1]
[null,null,null,null,null,null,null,null,0,false,1,1]
[null,null,null,null,null,null,null,null,0,false,1,1]
[null,null,null,null,null,null,null,null,0,false,1,1]
[null,null,null,null,null,null,null,null,0,false,1,1]
[null,null,null,null,null,null,null,null,0,false,1,1]
[null,null,null,null,null,null,null,null,0,false,1,1]
[null,null,null,null,null,null,null,null,0,false,1,1]
[null,null,null,null,null,null,null,null,0,false,1,1]
[null,null,null,null,null,null,null,null,0,false,1,1]
[null,null,null,null,null,null,null,null,0,false,1,1]
[null,null,null,null,null,null,null,null,0,false,1,1]
[null,null,null,null,null,null,null,null,0,false,1,1]
[null,null,null,null,null,null,null,null,0,false,1,1]
[null,null,null,null,null,null,null,null,0,false,1,1]
[null,null,null,null,null,null,null,null,0,false,1,1]
[null,null,null,null,null,null,null,null,0,false,1,1]
[null,null,null,null,null,null,null,null,0,false,1,1]
[null,null,null,null,null,null,null,null,0,false,1,1]
[null,null,null,null,null,null,null,null,0,false,1,1]
[null,null,null,null,null,null,null,null,0,false,1,1]
[null,null,null,null,null,null,null,null,0,{"$f":"AND(AND($H3007<>\"Completed\",$A3007<TODAY()),$H3007<>\"\")","v":false},1,1]
[null,null,null,null,null,null,null,null,0,false,1,1]
[null,null,null,null,null,null,null,null,0,false,1,1]
[null,null,null,null,null,null,null,null,0,false,1,1]
[null,null,null,null,null,null,null,null,0,false,1,1]
[null,null,null,null,null,null,null,null,0,false,1,1]
[null,null,null,null,null,null,null,null,0,false,1,1]
[null,null,null,null,null,null,null,null,0,false,1,1]
[null,null,null,null,null,null,null,null,0,false,{"$f":"IF(AND(H3015<>\"Completed\",H3015<>\"Canceled\"), 1, 0)","v":1},1]
[null,null,null,null,null,null,null,null,{"$f":"IF(H3016=\"Completed\",1,0)","v":0},false,1,{"$f":"SUM(I3016,K3016)","v":1}]
[null,null,null,null,null,null,null,null,0,false,1,1]
[null,null,null,null,null,null,null,null,0,false,1,1]
[null,null,null,null,null,null,null,null,0,false,1,1]
[null,null,null,null,null,null,null,null,0,false,1,1]
[null,null,null,null,null,null,null,null,0,false,1,1]
[null,null,null,null,null,null,null,null,0,false,1,1]
[null,null,null,null,null,null,null,null,0,false,1,1]
[null,null,null,null,null,null,null,null,0,false,1,1]
[null,null,null,null,null,null,null,null,0,false,1,1]
[null,null,null,null,null,null,null,null,0,false,1,1]
[null,null,null,null,null,null,null,null,0,false,1,1]
[null,null,null,null,null,null,null,null,0,false,1,1]
[null,null,null,null,null,null,null,null,0,false,1,1]
[null,null,null,null,null,null,null,null,0,false,1,1]
[null,null,null,null,null,null,null,null,0,false,1,1]
[null,null,null,null,null,null,null,null,0,false,1,1]
[null,null,null,null,null,null,null,null,0,false,1,1]
[null,null,null,null,null,null,null,null,0,false,1,1]
[null,null,null,null,null,null,null,null,0,false,1,1]
[null,null,null,null,null,null,null,null,0,false,1,1]
[null,null,null,null,null,null,null,null,0,false,1,1]
[null,null,null,null,null,null,null,null,0,false,1,1]
[null,null,null,null,null,null,null,null,0,false,1,1]
[null,null,null,null,null,null,null,null,0,false,1,1]
[null,null,null,null,null,null,null,null,0,false,1,1]
[null,null,null,null,null,null,null,null,0,false,1,1]
[null,null,null,null,null,null,null,null,0,false,1,1]
[null,null,null,null,null,null,null,null,0,false,1,1]
[null,null,null,null,null,null,null,null,0,false,1,1]
[null,null,null,null,null,null,null,null,0,false,1,1]
[null,null,null,null,null,null,null,null,0,false,1,1]
[null,null,null,null,null,null,null,null,0,false,1,1]
[null,null,null,null,null,null,null,null,0,false,1,1]
[null,null,null,null,null,null,null,null,0,false,1,1]
[null,null,null,null,null,null,null,null,0,false,1,1]
[null,null,null,null,null,null,null,null,0,false,1,1]
[null,null,null,null,null,null,null,null,0,false,1,1]
[null,null,null,null,null,null,null,null,0,false,1,1]
[null,null,null,null,null,null,null,null,0,false,1,1]
[null,null,null,null,null,null,null,null,0,false,1,1]
[null,null,null,null,null,null,null,null,0,false,1,1]
[null,null,null,null,null,null,null,null,0,false,1,1]
[null,null,null,null,null,null,null,null,0,false,1,1]
[null,null,null,null,null,null,null,null,0,false,1,1]
[null,null,null,null,null,null,null,null,0,false,1,1]
[null,null,null,null,null,null,null,null,0,false,1,1]
[null,null,null,null,null,null,null,null,0,false,1,1]
[null,null,null,null,null,null,null,null,0,false,1,1]
[null,null,null,null,null,null,null,null,0,false,1,1]
[null,null,null,null,null,null,null,null,0,false,1,1]
[null,null,null,null,null,null,null,null,0,false,1,1]
[null,null,null,null,null,null,null,null,0,false,1,1]
[null,null,null,null,null,null,null,null,0,false,1,1]
[null,null,null,null,null,null,null,null,0,false,1,1]
[null,null,null,null,null,null,null,null,0,{"$f":"AND(AND($H3071<>\"Completed\",$A3071<TODAY()),$H3071<>\"\")","v":false},1,1]
[null,null,null,null,null,null,null,null,0,false,1,1]
[null,null,null,null,null,null,null,null,0,false,1,1]
[null,null,null,null,null,null,null,null,0,false,1,1]
[null,null,null,null,null,null,null,null,0,false,1,1]
[null,null,null,null,null,null,null,null,0,false,1,1]
[null,null,null,null,null,null,null,null,0,false,1,1]
[null,null,null,null,null,null,null,null,0,false,1,1]
[null,null,null,null,null,null,null,null,0,false,{"$f":"IF(AND(H3079<>\"Completed\",H3079<>\"Canceled\"), 1, 0)","v":1},1]
[null,null,null,null,null,null,null,null,{"$f":"IF(H3080=\"Completed\",1,0)","v":0},false,1,{"$f":"SUM(I3080,K3080)","v":1}]
[null,null,null,null,null,null,null,null,0,false,1,1]
[null,null,null,null,null,null,null,null,0,false,1,1]
[null,null,null,null,null,null,null,null,0,false,1,1]
[null,null,null,null,null,null,null,null,0,false,1,1]
[null,null,null,null,null,null,null,null,0,false,1,1]
[null,null,null,null,null,null,null,null,0,false,1,1]
[null,null,null,null,null,null,null,null,0,false,1,1]
[null,null,null,null,null,null,null,null,0,false,1,1]
[null,null,null,null,null,null,null,null,0,false,1,1]
[null,null,null,null,null,null,null,null,0,false,1,1]
[null,null,null,null,null,null,null,null,0,false,1,1]
[null,null,null,null,null,null,null,null,0,false,1,1]
[null,null,null,null,null,null,null,null,0,false,1,1]
[null,null,null,null,null,null,null,null,0,false,1,1]
[null,null,null,null,null,null,null,null,0,false,1,1]
[null,null,null,null,null,null,null,null,0,false,1,1]
[null,null,null,null,null,null,null,null,0,false,1,1]
[null,null,null,null,null,null,null,null,0,false,1,1]
[null,null,null,null,null,null,null,null,0,false,1,1]
[null,null,null,null,null,null,null,null,0,false,1,1]
[null,null,null,null,null,null,null,null,0,false,1,1]
[null,null,null,null,null,null,null,null,0,false,1,1]
[null,null,null,null,null,null,null,null,0,false,1,1]
[null,null,null,null,null,null,null,null,0,false,1,1]
[null,null,null,null,null,null,null,null,0,false,1,1]
[null,null,null,null,null,null,null,null,0,false,1,1]
[null,null,null,null,null,null,null,null,0,false,1,1]
[null,null,null,null,null,null,null,null,0,false,1,1]
[null,null,null,null,null,null,null,null,0,false,1,1]
[null,null,null,null,null,null,null,null,0,false,1,1]
[null,null,null,null,null,null,null,null,0,false,1,1]
[null,null,null,null,null,null,null,null,0,false,1,1]
[null,null,null,null,null,null,null,null,0,false,1,1]
[null,null,null,null,null,null,null,null,0,false,1,1]
[null,null,null,null,null,null,null,null,0,false,1,1]
[null,null,null,null,null,null,null,null,0,false,1,1]
[null,null,null,null,null,null,null,null,0,false,1,1]
[null,null,null,null,null,null,null,null,0,false,1,1]
[null,null,null,null,null,null,null,null,0,false,1,1]
[null,null,null,null,null,null,null,null,0,false,1,1]
[null,null,null,null,null,null,null,null,0,false,1,1]
[null,null,null,null,null,null,null,null,0,false,1,1]
[null,null,null,null,null,null,null,null,0,false,1,1]
[null,null,null,null,null,null,null,null,0,false,1,1]
[null,null,null,null,null,null,null,null,0,false,1,1]
[null,null,null,null,null,null,null,null,0,false,1,1]
[null,null,null,null,null,null,null,null,0,false,1,1]
[null,null,null,null,null,null,null,null,0,false,1,1]
[null,null,null,null,null,null,null,null,0,false,1,1]
[null,null,null,null,null,null,null,null,0,false,1,1]
[null,null,null,null,null,null,null,null,0,false,1,1]
[null,null,null,null,null,null,null,null,0,false,1,1]
[null,null,null,null,null,null,null,null,0,false,1,1]
[null,null,null,null,null,null,null,null,0,false,1,1]
[null,null,null,null,null,null,null,null,0,{"$f":"AND(AND($H3135<>\"Completed\",$A3135<TODAY()),$H3135<>\"\")","v":false},1,1]
[null,null,null,null,null,null,null,null,0,false,1,1]
[null,null,null,null,null,null,null,null,0,false,1,1]
[null,null,null,null,null,null,null,null,0,false,1,1]
[null,null,null,null,null,null,null,null,0,false,1,1]
[null,null,null,null,null,null,null,null,0,false,1,1]
[null,null,null,null,null,null,null,null,0,false,1,1]
[null,null,null,null,null,null,null,null,0,false,1,1]
[null,null,null,null,null,null,null,null,0,false,{"$f":"IF(AND(H3143<>\"Completed\",H3143<>\"Canceled\"), 1, 0)","v":1},1]
[null,null,null,null,null,null,null,null,{"$f":"IF(H3144=\"Completed\",1,0)","v":0},false,1,{"$f":"SUM(I3144,K3144)","v":1}]
[null,null,null,null,null,null,null,null,0,false,1,1]
[null,null,null,null,null,null,null,null,0,false,1,1]
[null,null,null,null,null,null,null,null,0,false,1,1]
[null,null,null,null,null,null,null,null,0,false,1,1]
[null,null,null,null,null,null,null,null,0,false,1,1]
[null,null,null,null,null,null,null,null,0,false,1,1]
[null,null,null,null,null,null,null,null,0,false,1,1]
[null,null,null,null,null,null,null,null,0,false,1,1]
[null,null,null,null,null,null,null,null,0,false,1,1]
[null,null,null,null,null,null,null,null,0,false,1,1]
[null,null,null,null,null,null,null,null,0,false,1,1]
[null,null,null,null,null,null,null,null,0,false,1,1]
[null,null,null,null,null,null,null,null,0,false,1,1]
[null,null,null,null,null,null,null,null,0,false,1,1]
[null,null,null,null,null,null,null,null,0,false,1,1]
[null,null,null,null,null,null,null,null,0,false,1,1]
[null,null,null,null,null,null,null,null,0,false,1,1]
[null,null,null,null,null,null,null,null,0,false,1,1]
[null,null,null,null,null,null,null,null,0,false,1,1]
[null,null,null,null,null,null,null,null,0,false,1,1]
[null,null,null,null,null,null,null,null,0,false,1,1]
[null,null,null,null,null,null,null,null,0,false,1,1]
[null,null,null,null,null,null,null,null,0,false,1,1]
[null,null,null,null,null,null,null,null,0,false,1,1]
[null,null,null,null,null,null,null,null,0,false,1,1]
[null,null,null,null,null,null,null,null,0,false,1,1]
[null,null,null,null,null,null,null,null,0,false,1,1]
[null,null,null,null,null,null,null,null,0,false,1,1]
[null,null,null,null,null,null,null,null,0,false,1,1]
[null,null,null,null,null,null,null,null,0,false,1,1]
[null,null,null,null,null,null,null,null,0,false,1,1]
[null,null,null,null,null,null,null,null,0,false,1,1]
[null,null,null,null,null,null,null,null,0,false,1,1]
[null,null,null,null,null,null,null,null,0,false,1,1]
[null,null,null,null,null,null,null,null,0,false,1,1]
[null,null,null,null,null,null,null,null,0,false,1,1]
[null,null,null,null,null,null,null,null,0,false,1,1]
[null,null,null,null,null,null,null,null,0,false,1,1]
[null,null,null,null,null,null,null,null,0,false,1,1]
[null,null,null,null,null,null,null,null,0,false,1,1]
[null,null,null,null,null,null,null,null,0,false,1,1]
[null,null,null,null,null,null,null,null,0,false,1,1]
[null,null,null,null,null,null,null,null,0,false,1,1]
[null,null,null,null,null,null,null,null,0,false,1,1]
[null,null,null,null,null,null,null,null,0,false,1,1]
[null,null,null,null,null,null,null,null,0,false,1,1]
[null,null,null,null,null,null,null,null,0,false,1,1]
[null,null,null,null,null,null,null,null,0,false,1,1]
[null,null,null,null,null,null,null,null,0,false,1,1]
[null,null,null,null,null,null,null,null,0,false,1,1]
[null,null,null,null,null,null,null,null,0,false,1,1]
[null,null,null,null,null,null,null,null,0,false,1,1]
[null,null,null,null,null,null,null,null,0,false,1,1]
[null,null,null,null,null,null,null,null,0,false,1,1]
[null,null,null,null,null,null,null,null,0,{"$f":"AND(AND($H3199<>\"Completed\",$A3199<TODAY()),$H3199<>\"\")","v":false},1,1]
[null,null,null,null,null,null,null,null,0,false,1,1]
[null,null,null,null,null,null,null,null,0,false,1,1]
[null,null,null,null,null,null,null,null,0,false,1,1]
[null,null,null,null,null,null,null,null,0,false,1,1]
[null,null,null,null,null,null,null,null,0,false,1,1]
[null,null,null,null,null,null,null,null,0,false,1,1]
[null,null,null,null,null,null,null,null,0,false,1,1]
[null,null,null,null,null,null,null,null,0,false,{"$f":"IF(AND(H3207<>\"Completed\",H3207<>\"Canceled\"), 1, 0)","v":1},1]
[null,null,null,null,null,null,null,null,{"$f":"IF(H3208=\"Completed\",1,0)","v":0},false,1,{"$f":"SUM(I3208,K3208)","v":1}]
[null,null,null,null,null,null,null,null,0,false,1,1]
[null,null,null,null,null,null,null,null,0,false,1,1]
[null,null,null,null,null,null,null,null,0,false,1,1]
[null,null,null,null,null,null,null,null,0,false,1,1]
[null,null,null,null,null,null,null,null,0,false,1,1]
[null,null,null,null,null,null,null,null,0,false,1,1]
[null,null,null,null,null,null,null,null,0,false,1,1]
[null,null,null,null,null,null,null,null,0,false,1,1]
[null,null,null,null,null,null,null,null,0,false,1,1]
[null,null,null,null,null,null,null,null,0,false,1,1]
[null,null,null,null,null,null,null,null,0,false,1,1]
[null,null,null,null,null,null,null,null,0,false,1,1]
[null,null,null,null,null,null,null,null,0,false,1,1]
[null,null,null,null,null,null,null,null,0,false,1,1]
[null,null,null,null,null,null,null,null,0,false,1,1]
[null,null,null,null,null,null,null,null,0,false,1,1]
[null,null,null,null,null,null,null,null,0,false,1,1]
[null,null,null,null,null,null,null,null,0,false,1,1]
[null,null,null,null,null,null,null,null,0,false,1,1]
[null,null,null,null,null,null,null,null,0,false,1,1]
[null,null,null,null,null,null,null,null,0,false,1,1]
[null,null,null,null,null,null,null,null,0,false,1,1]
[null,null,null,null,null,null,null,null,0,false,1,1]
[null,null,null,null,null,null,null,null,0,false,1,1]
[null,null,null,null,null,null,null,null,0,false,1,1]
[null,null,null,null,null,null,null,null,0,false,1,1]
[null,null,null,null,null,null,null,null,0,false,1,1]
[null,null,null,null,null,null,null,null,0,false,1,1]
[null,null,null,null,null,null,null,null,0,false,1,1]
[null,null,null,null,null,null,null,null,0,false,1,1]
[null,null,null,null,null,null,null,null,0,false,1,1]
[null,null,null,null,null,null,null,null,0,false,1,1]
[null,null,null,null,null,null,null,null,0,false,1,1]
[null,null,null,null,null,null,null,null,0,false,1,1]
[null,null,null,null,null,null,null,null,0,false,1,1]
[null,null,null,null,null,null,null,null,0,false,1,1]
[null,null,null,null,null,null,null,null,0,false,1,1]
[null,null,null,null,null,null,null,null,0,false,1,1]
[null,null,null,null,null,null,null,null,0,false,1,1]
[null,null,null,null,null,null,null,null,0,false,1,1]
[null,null,null,null,null,null,null,null,0,false,1,1]
[null,null,null,null,null,null,null,null,0,false,1,1]
[null,null,null,null,null,null,null,null,0,false,1,1]
[null,null,null,null,null,null,null,null,0,false,1,1]
[null,null,null,null,null,null,null,null,0,false,1,1]
[null,null,null,null,null,null,null,null,0,false,1,1]
[null,null,null,null,null,null,null,null,0,false,1,1]
[null,null,null,null,null,null,null,null,0,false,1,1]
[null,null,null,null,null,null,null,null,0,false,1,1]
[null,null,null,null,null,null,null,null,0,false,1,1]
[null,null,null,null,null,null,null,null,0,false,1,1]
[null,null,null,null,null,null,null,null,0,false,1,1]
[null,null,null,null,null,null,null,null,0,false,1,1]
[null,null,null,null,null,null,null,null,0,false,1,1]
[null,null,null,null,null,null,null,null,0,{"$f":"AND(AND($H3263<>\"Completed\",$A3263<TODAY()),$H3263<>\"\")","v":false},1,1]
[null,null,null,null,null,null,null,null,0,false,1,1]
[null,null,null,null,null,null,null,null,0,false,1,1]
[null,null,null,null,null,null,null,null,0,false,1,1]
[null,null,null,null,null,null,null,null,0,false,1,1]
[null,null,null,null,null,null,null,null,0,false,1,1]
[null,null,null,null,null,null,null,null,0,false,1,1]
[null,null,null,null,null,null,null,null,0,false,1,1]
[null,null,null,null,null,null,null,null,0,false,{"$f":"IF(AND(H3271<>\"Completed\",H3271<>\"Canceled\"), 1, 0)","v":1},1]
[null,null,null,null,null,null,null,null,{"$f":"IF(H3272=\"Completed\",1,0)","v":0},false,1,{"$f":"SUM(I3272,K3272)","v":1}]
[null,null,null,null,null,null,null,null,0,false,1,1]
[null,null,null,null,null,null,null,null,0,false,1,1]
[null,null,null,null,null,null,null,null,0,false,1,1]
[null,null,null,null,null,null,null,null,0,false,1,1]
[null,null,null,null,null,null,null,null,0,false,1,1]
[null,null,null,null,null,null,null,null,0,false,1,1]
[null,null,null,null,null,null,null,null,0,false,1,1]
[null,null,null,null,null,null,null,null,0,false,1,1]
[null,null,null,null,null,null,null,null,0,false,1,1]
[null,null,null,null,null,null,null,null,0,false,1,1]
[null,null,null,null,null,null,null,null,0,false,1,1]
[null,null,null,null,null,null,null,null,0,false,1,1]
[null,null,null,null,null,null,null,null,0,false,1,1]
[null,null,null,null,null,null,null,null,0,false,1,1]
[null,null,null,null,null,null,null,null,0,false,1,1]
[null,null,null,null,null,null,null,null,0,false,1,1]
[null,null,null,null,null,null,null,null,0,false,1,1]
[null,null,null,null,null,null,null,null,0,false,1,1]
[null,null,null,null,null,null,null,null,0,false,1,1]
[null,null,null,null,null,null,null,null,0,false,1,1]
[null,null,null,null,null,null,null,null,0,false,1,1]
[null,null,null,null,null,null,null,null,0,false,1,1]
[null,null,null,null,null,null,null,null,0,false,1,1]
[null,null,null,null,null,null,null,null,0,false,1,1]
[null,null,null,null,null,null,null,null,0,false,1,1]
[null,null,null,null,null,null,null,null,0,false,1,1]
[null,null,null,null,null,null,null,null,0,false,1,1]
[null,null,null,null,null,null,null,null,0,false,1,1]
[null,null,null,null,null,null,null,null,0,false,1,1]
[null,null,null,null,null,null,null,null,0,false,1,1]
[null,null,null,null,null,null,null,null,0,false,1,1]
[null,null,null,null,null,null,null,null,0,false,1,1]
[null,null,null,null,null,null,null,null,0,false,1,1]
[null,null,null,null,null,null,null,null,0,false,1,1]
[null,null,null,null,null,null,null,null,0,false,1,1]
[null,null,null,null,null,null,null,null,0,false,1,1]
[null,null,null,null,null,null,null,null,0,false,1,1]
[null,null,null,null,null,null,null,null,0,false,1,1]
[null,null,null,null,null,null,null,null,0,false,1,1]
[null,null,null,null,null,null,null,null,0,false,1,1]
[null,null,null,null,null,null,null,null,0,false,1,1]
[null,null,null,null,null,null,null,null,0,false,1,1]
[null,null,null,null,null,null,null,null,0,false,1,1]
[null,null,null,null,null,null,null,null,0,false,1,1]
[null,null,null,null,null,null,null,null,0,false,1,1]
[null,null,null,null,null,null,null,null,0,false,1,1]
[null,null,null,null,null,null,null,null,0,false,1,1]
[null,null,null,null,null,null,null,null,0,false,1,1]
[null,null,null,null,null,null,null,null,0,false,1,1]
[null,null,null,null,null,null,null,null,0,false,1,1]
[null,null,null,null,null,null,null,null,0,false,1,1]
[null,null,null,null,null,null,null,null,0,false,1,1]
[null,null,null,null,null,null,null,null,0,false,1,1]
[null,null,null,null,null,null,null,null,0,false,1,1]
[null,null,null,null,null,null,null,null,0,{"$f":"AND(AND($H3327<>\"Completed\",$A3327<TODAY()),$H3327<>\"\")","v":false},1,1]
[null,null,null,null,null,null,null,null,0,false,1,1]
[null,null,null,null,null,null,null,null,0,false,1,1]
[null,null,null,null,null,null,null,null,0,false,1,1]
[null,null,null,null,null,null,null,null,0,false,1,1]
[null,null,null,null,null,null,null,null,0,false,1,1]
[null,null,null,null,null,null,null,null,0,false,1,1]
[null,null,null,null,null,null,null,null,0,false,1,1]
[null,null,null,null,null,null,null,null,0,false,{"$f":"IF(AND(H3335<>\"Completed\",H3335<>\"Canceled\"), 1, 0)","v":1},1]
[null,null,null,null,null,null,null,null,{"$f":"IF(H3336=\"Completed\",1,0)","v":0},false,1,{"$f":"SUM(I3336,K3336)","v":1}]
[null,null,null,null,null,null,null,null,0,false,1,1]
[null,null,null,null,null,null,null,null,0,false,1,1]
[null,null,null,null,null,null,null,null,0,false,1,1]
[null,null,null,null,null,null,null,null,0,false,1,1]
[null,null,null,null,null,null,null,null,0,false,1,1]
[null,null,null,null,null,null,null,null,0,false,1,1]
[null,null,null,null,null,null,null,null,0,false,1,1]
[null,null,null,null,null,null,null,null,0,false,1,1]
[null,null,null,null,null,null,null,null,0,false,1,1]
[null,null,null,null,null,null,null,null,0,false,1,1]
[null,null,null,null,null,null,null,null,0,false,1,1]
[null,null,null,null,null,null,null,null,0,false,1,1]
[null,null,null,null,null,null,null,null,0,false,1,1]
[null,null,null,null,null,null,null,null,0,false,1,1]
[null,null,null,null,null,null,null,null,0,false,1,1]
[null,null,null,null,null,null,null,null,0,false,1,1]
[null,null,null,null,null,null,null,null,0,false,1,1]
[null,null,null,null,null,null,null,null,0,false,1,1]
[null,null,null,null,null,null,null,null,0,false,1,1]
[null,null,null,null,null,null,null,null,0,false,1,1]
[null,null,null,null,null,null,null,null,0,false,1,1]
[null,null,null,null,null,null,null,null,0,false,1,1]
[null,null,null,null,null,null,null,null,0,false,1,1]
[null,null,null,null,null,null,null,null,0,false,1,1]
[null,null,null,null,null,null,null,null,0,false,1,1]
[null,null,null,null,null,null,null,null,0,false,1,1]
[null,null,null,null,null,null,null,null,0,false,1,1]
[null,null,null,null,null,null,null,null,0,false,1,1]
[null,null,null,null,null,null,null,null,0,false,1,1]
[null,null,null,null,null,null,null,null,0,false,1,1]
[null,null,null,null,null,null,null,null,0,false,1,1]
[null,null,null,null,null,null,null,null,0,false,1,1]
[null,null,null,null,null,null,null,null,0,false,1,1]
[null,null,null,null,null,null,null,null,0,false,1,1]
[null,null,null,null,null,null,null,null,0,false,1,1]
[null,null,null,null,null,null,null,null,0,false,1,1]
[null,null,null,null,null,null,null,null,0,false,1,1]
[null,null,null,null,null,null,null,null,0,false,1,1]
[null,null,null,null,null,null,null,null,0,false,1,1]
[null,null,null,null,null,null,null,null,0,false,1,1]
[null,null,null,null,null,null,null,null,0,false,1,1]
[null,null,null,null,null,null,null,null,0,false,1,1]
[null,null,null,null,null,null,null,null,0,false,1,1]
[null,null,null,null,null,null,null,null,0,false,1,1]
[null,null,null,null,null,null,null,null,0,false,1,1]
[null,null,null,null,null,null,null,null,0,false,1,1]
[null,null,null,null,null,null,null,null,0,false,1,1]
[null,null,null,null,null,null,null,null,0,false,1,1]
[null,null,null,null,null,null,null,null,0,false,1,1]
[null,null,null,null,null,null,null,null,0,false,1,1]
[null,null,null,null,null,null,null,null,0,false,1,1]
[null,null,null,null,null,null,null,null,0,false,1,1]
[null,null,null,null,null,null,null,null,0,false,1,1]
[null,null,null,null,null,null,null,null,0,false,1,1]
[null,null,null,null,null,null,null,null,0,{"$f":"AND(AND($H3391<>\"Completed\",$A3391<TODAY()),$H3391<>\"\")","v":false},1,1]
[null,null,null,null,null,null,null,null,0,false,1,1]
[null,null,null,null,null,null,null,null,0,false,1,1]
[null,null,null,null,null,null,null,null,0,false,1,1]
[null,null,null,null,null,null,null,null,0,false,1,1]
[null,null,null,null,null,null,null,null,0,false,1,1]
[null,null,null,null,null,null,null,null,0,false,1,1]
[null,null,null,null,null,null,null,null,0,false,1,1]
[null,null,null,null,null,null,null,null,0,false,{"$f":"IF(AND(H3399<>\"Completed\",H3399<>\"Canceled\"), 1, 0)","v":1},1]
[null,null,null,null,null,null,null,null,{"$f":"IF(H3400=\"Completed\",1,0)","v":0},false,1,{"$f":"SUM(I3400,K3400)","v":1}]
[null,null,null,null,null,null,null,null,0,false,1,1]
[null,null,null,null,null,null,null,null,0,false,1,1]
[null,null,null,null,null,null,null,null,0,false,1,1]
[null,null,null,null,null,null,null,null,0,false,1,1]
[null,null,null,null,null,null,null,null,0,false,1,1]
[null,null,null,null,null,null,null,null,0,false,1,1]
[null,null,null,null,null,null,null,null,0,false,1,1]
[null,null,null,null,null,null,null,null,0,false,1,1]
[null,null,null,null,null,null,null,null,0,false,1,1]
[null,null,null,null,null,null,null,null,0,false,1,1]
[null,null,null,null,null,null,null,null,0,false,1,1]
[null,null,null,null,null,null,null,null,0,false,1,1]
[null,null,null,null,null,null,null,null,0,false,1,1]
[null,null,null,null,null,null,null,null,0,false,1,1]
[null,null,null,null,null,null,null,null,0,false,1,1]
[null,null,null,null,null,null,null,null,0,false,1,1]
[null,null,null,null,null,null,null,null,0,false,1,1]
[null,null,null,null,null,null,null,null,0,false,1,1]
[null,null,null,null,null,null,null,null,0,false,1,1]
[null,null,null,null,null,null,null,null,0,false,1,1]
[null,null,null,null,null,null,null,null,0,false,1,1]
[null,null,null,null,null,null,null,null,0,false,1,1]
[null,null,null,null,null,null,null,null,0,false,1,1]
[null,null,null,null,null,null,null,null,0,false,1,1]
[null,null,null,null,null,null,null,null,0,false,1,1]
[null,null,null,null,null,null,null,null,0,false,1,1]
[null,null,null,null,null,null,null,null,0,false,1,1]
[null,null,null,null,null,null,null,null,0,false,1,1]
[null,null,null,null,null,null,null,null,0,false,1,1]
[null,null,null,null,null,null,null,null,0,false,1,1]
[null,null,null,null,null,null,null,null,0,false,1,1]
[null,null,null,null,null,null,null,null,0,false,1,1]
[null,null,null,null,null,null,null,null,0,false,1,1]
[null,null,null,null,null,null,null,null,0,false,1,1]
[null,null,null,null,null,null,null,null,0,false,1,1]
[null,null,null,null,null,null,null,null,0,false,1,1]
[null,null,null,null,null,null,null,null,0,false,1,1]
[null,null,null,null,null,null,null,null,0,false,1,1]
[null,null,null,null,null,null,null,null,0,false,1,1]
[null,null,null,null,null,null,null,null,0,false,1,1]
[null,null,null,null,null,null,null,null,0,false,1,1]
[null,null,null,null,null,null,null,null,0,false,1,1]
[null,null,null,null,null,null,null,null,0,false,1,1]
[null,null,null,null,null,null,null,null,0,false,1,1]
[null,null,null,null,null,null,null,null,0,false,1,1]
[null,null,null,null,null,null,null,null,0,false,1,1]
[null,null,null,null,null,null,null,null,0,false,1,1]
[null,null,null,null,null,null,null,null,0,false,1,1]
[null,null,null,null,null,null,null,null,0,false,1,1]
[null,null,null,null,null,null,null,null,0,false,1,1]
[null,null,null,null,null,null,null,null,0,false,1,1]
[null,null,null,null,null,null,null,null,0,false,1,1]
[null,null,null,null,null,null,null,null,0,false,1,1]
[null,null,null,null,null,null,null,null,0,false,1,1]
[null,null,null,null,null,null,null,null,0,{"$f":"AND(AND($H3455<>\"Completed\",$A3455<TODAY()),$H3455<>\"\")","v":false},1,1]
[null,null,null,null,null,null,null,null,0,false,1,1]
[null,null,null,null,null,null,null,null,0,false,1,1]
[null,null,null,null,null,null,null,null,0,false,1,1]
[null,null,null,null,null,null,null,null,0,false,1,1]
[null,null,null,null,null,null,null,null,0,false,1,1]
[null,null,null,null,null,null,null,null,0,false,1,1]
[null,null,null,null,null,null,null,null,0,false,1,1]
[null,null,null,null,null,null,null,null,0,false,{"$f":"IF(AND(H3463<>\"Completed\",H3463<>\"Canceled\"), 1, 0)","v":1},1]
[null,null,null,null,null,null,null,null,{"$f":"IF(H3464=\"Completed\",1,0)","v":0},false,1,{"$f":"SUM(I3464,K3464)","v":1}]
[null,null,null,null,null,null,null,null,0,false,1,1]
[null,null,null,null,null,null,null,null,0,false,1,1]
[null,null,null,null,null,null,null,null,0,false,1,1]
[null,null,null,null,null,null,null,null,0,false,1,1]
[null,null,null,null,null,null,null,null,0,false,1,1]
[null,null,null,null,null,null,null,null,0,false,1,1]
[null,null,null,null,null,null,null,null,0,false,1,1]
[null,null,null,null,null,null,null,null,0,false,1,1]
[null,null,null,null,null,null,null,null,0,false,1,1]
[null,null,null,null,null,null,null,null,0,false,1,1]
[null,null,null,null,null,null,null,null,0,false,1,1]
[null,null,null,null,null,null,null,null,0,false,1,1]
[null,null,null,null,null,null,null,null,0,false,1,1]
[null,null,null,null,null,null,null,null,0,false,1,1]
[null,null,null,null,null,null,null,null,0,false,1,1]
[null,null,null,null,null,null,null,null,0,false,1,1]
[null,null,null,null,null,null,null,null,0,false,1,1]
[null,null,null,null,null,null,null,null,0,false,1,1]
[null,null,null,null,null,null,null,null,0,false,1,1]
[null,null,null,null,null,null,null,null,0,false,1,1]
[null,null,null,null,null,null,null,null,0,false,1,1]
[null,null,null,null,null,null,null,null,0,false,1,1]
[null,null,null,null,null,null,null,null,0,false,1,1]
[null,null,null,null,null,null,null,null,0,false,1,1]
[null,null,null,null,null,null,null,null,0,false,1,1]
[null,null,null,null,null,null,null,null,0,false,1,1]
[null,null,null,null,null,null,null,null,0,false,1,1]
[null,null,null,null,null,null,null,null,0,false,1,1]
[null,null,null,null,null,null,null,null,0,false,1,1]
[null,null,null,null,null,null,null,null,0,false,1,1]
[null,null,null,null,null,null,null,null,0,false,1,1]
[null,null,null,null,null,null,null,null,0,false,1,1]
[null,null,null,null,null,null,null,null,0,false,1,1]
[null,null,null,null,null,null,null,null,0,false,1,1]
[null,null,null,null,null,null,null,null,0,false,1,1]
[null,null,null,null,null,null,null,null,0,false,1,1]
[null,null,null,null,null,null,null,null,0,false,1,1]
[null,null,null,null,null,null,null,null,0,false,1,1]
[null,null,null,null,null,null,null,null,0,false,1,1]
[null,null,null,null,null,null,null,null,0,false,1,1]
[null,null,null,null,null,null,null,null,0,false,1,1]
[null,null,null,null,null,null,null,null,0,false,1,1]
[null,null,null,null,null,null,null,null,0,false,1,1]
[null,null,null,null,null,null,null,null,0,false,1,1]
[null,null,null,null,null,null,null,null,0,false,1,1]
[null,null,null,null,null,null,null,null,0,false,1,1]
[null,null,null,null,null,null,null,null,0,false,1,1]
[null,null,null,null,null,null,null,null,0,false,1,1]
[null,null,null,null,null,null,null,null,0,false,1,1]
[null,null,null,null,null,null,null,null,0,false,1,1]
[null,null,null,null,null,null,null,null,0,false,1,1]
[null,null,null,null,null,null,null,null,0,false,1,1]
[null,null,null,null,null,null,null,null,0,false,1,1]
[null,null,null,null,null,null,null,null,0,false,1,1]
[null,null,null,null,null,null,null,null,0,{"$f":"AND(AND($H3519<>\"Completed\",$A3519<TODAY()),$H3519<>\"\")","v":false},1,1]
[null,null,null,null,null,null,null,null,0,false,1,1]
[null,null,null,null,null,null,null,null,0,false,1,1]
[null,null,null,null,null,null,null,null,0,false,1,1]
[null,null,null,null,null,null,null,null,0,false,1,1]
[null,null,null,null,null,null,null,null,0,false,1,1]
[null,null,null,null,null,null,null,null,0,false,1,1]
[null,null,null,null,null,null,null,null,0,false,1,1]
[null,null,null,null,null,null,null,null,0,false,{"$f":"IF(AND(H3527<>\"Completed\",H3527<>\"Canceled\"), 1, 0)","v":1},1]
[null,null,null,null,null,null,null,null,{"$f":"IF(H3528=\"Completed\",1,0)","v":0},false,1,{"$f":"SUM(I3528,K3528)","v":1}]
[null,null,null,null,null,null,null,null,0,false,1,1]
[null,null,null,null,null,null,null,null,0,false,1,1]
[null,null,null,null,null,null,null,null,0,false,1,1]
[null,null,null,null,null,null,null,null,0,false,1,1]
[null,null,null,null,null,null,null,null,0,false,1,1]
[null,null,null,null,null,null,null,null,0,false,1,1]
[null,null,null,null,null,null,null,null,0,false,1,1]
[null,null,null,null,null,null,null,null,0,false,1,1]
[null,null,null,null,null,null,null,null,0,false,1,1]
[null,null,null,null,null,null,null,null,0,false,1,1]
[null,null,null,null,null,null,null,null,0,false,1,1]
[null,null,null,null,null,null,null,null,0,false,1,1]
[null,null,null,null,null,null,null,null,0,false,1,1]
[null,null,null,null,null,null,null,null,0,false,1,1]
[null,null,null,null,null,null,null,null,0,false,1,1]
[null,null,null,null,null,null,null,null,0,false,1,1]
[null,null,null,null,null,null,null,null,0,false,1,1]
[null,null,null,null,null,null,null,null,0,false,1,1]
[null,null,null,null,null,null,null,null,0,false,1,1]
[null,null,null,null,null,null,null,null,0,false,1,1]
[null,null,null,null,null,null,null,null,0,false,1,1]
[null,null,null,null,null,null,null,null,0,false,1,1]
[null,null,null,null,null,null,null,null,0,false,1,1]
[null,null,null,null,null,null,null,null,0,false,1,1]
[null,null,null,null,null,null,null,null,0,false,1,1]
[null,null,null,null,null,null,null,null,0,false,1,1]
[null,null,null,null,null,null,null,null,0,false,1,1]
[null,null,null,null,null,null,null,null,0,false,1,1]
[null,null,null,null,null,null,null,null,0,false,1,1]
[null,null,null,null,null,null,null,null,0,false,1,1]
[null,null,null,null,null,null,null,null,0,false,1,1]
[null,null,null,null,null,null,null,null,0,false,1,1]
[null,null,null,null,null,null,null,null,0,false,1,1]
[null,null,null,null,null,null,null,null,0,false,1,1]
[null,null,null,null,null,null,null,null,0,false,1,1]
[null,null,null,null,null,null,null,null,0,false,1,1]
[null,null,null,null,null,null,null,null,0,false,1,1]
[null,null,null,null,null,null,null,null,0,false,1,1]
[null,null,null,null,null,null,null,null,0,false,1,1]
[null,null,null,null,null,null,null,null,0,false,1,1]
[null,null,null,null,null,null,null,null,0,false,1,1]
[null,null,null,null,null,null,null,null,0,false,1,1]
[null,null,null,null,null,null,null,null,0,false,1,1]
[null,null,null,null,null,null,null,null,0,false,1,1]
[null,null,null,null,null,null,null,null,0,false,1,1]
[null,null,null,null,null,null,null,null,0,false,1,1]
[null,null,null,null,null,null,null,null,0,false,1,1]
[null,null,null,null,null,null,null,null,0,false,1,1]
[null,null,null,null,null,null,null,null,0,false,1,1]
[null,null,null,null,null,null,null,null,0,false,1,1]
[null,null,null,null,null,null,null,null,0,false,1,1]
[null,null,null,null,null,null,null,null,0,false,1,1]
[null,null,null,null,null,null,null,null,0,false,1,1]
[null,null,null,null,null,null,null,null,0,false,1,1]
[null,null,null,null,null,null,null,null,0,{"$f":"AND(AND($H3583<>\"Completed\",$A3583<TODAY()),$H3583<>\"\")","v":false},1,1]
[null,null,null,null,null,null,null,null,0,false,1,1]
[null,null,null,null,null,null,null,null,0,false,1,1]
[null,null,null,null,null,null,null,null,0,false,1,1]
[null,null,null,null,null,null,null,null,0,false,1,1]
[null,null,null,null,null,null,null,null,0,false,1,1]
[null,null,null,null,null,null,null,null,0,false,1,1]
[null,null,null,null,null,null,null,null,0,false,1,1]
[null,null,null,null,null,null,null,null,0,false,{"$f":"IF(AND(H3591<>\"Completed\",H3591<>\"Canceled\"), 1, 0)","v":1},1]
[null,null,null,null,null,null,null,null,{"$f":"IF(H3592=\"Completed\",1,0)","v":0},false,1,{"$f":"SUM(I3592,K3592)","v":1}]
[null,null,null,null,null,null,null,null,0,false,1,1]
[null,null,null,null,null,null,null,null,0,false,1,1]
[null,null,null,null,null,null,null,null,0,false,1,1]
[null,null,null,null,null,null,null,null,0,false,1,1]
[null,null,null,null,null,null,null,null,0,false,1,1]
[null,null,null,null,null,null,null,null,0,false,1,1]
[null,null,null,null,null,null,null,null,0,false,1,1]
[null,null,null,null,null,null,null,null,0,false,1,1]
[null,null,null,null,null,null,null,null,0,false,1,1]
[null,null,null,null,null,null,null,null,0,false,1,1]
[null,null,null,null,null,null,null,null,0,false,1,1]
[null,null,null,null,null,null,null,null,0,false,1,1]
[null,null,null,null,null,null,null,null,0,false,1,1]
[null,null,null,null,null,null,null,null,0,false,1,1]
[null,null,null,null,null,null,null,null,0,false,1,1]
[null,null,null,null,null,null,null,null,0,false,1,1]
[null,null,null,null,null,null,null,null,0,false,1,1]
[null,null,null,null,null,null,null,null,0,false,1,1]
[null,null,null,null,null,null,null,null,0,false,1,1]
[null,null,null,null,null,null,null,null,0,false,1,1]
[null,null,null,null,null,null,null,null,0,false,1,1]
[null,null,null,null,null,null,null,null,0,false,1,1]
[null,null,null,null,null,null,null,null,0,false,1,1]
[null,null,null,null,null,null,null,null,0,false,1,1]
[null,null,null,null,null,null,null,null,0,false,1,1]
[null,null,null,null,null,null,null,null,0,false,1,1]
[null,null,null,null,null,null,null,null,0,false,1,1]
[null,null,null,null,null,null,null,null,0,false,1,1]
[null,null,null,null,null,null,null,null,0,false,1,1]
[null,null,null,null,null,null,null,null,0,false,1,1]
[null,null,null,null,null,null,null,null,0,false,1,1]
[null,null,null,null,null,null,null,null,0,false,1,1]
[null,null,null,null,null,null,null,null,0,false,1,1]
[null,null,null,null,null,null,null,null,0,false,1,1]
[null,null,null,null,null,null,null,null,0,false,1,1]
[null,null,null,null,null,null,null,null,0,false,1,1]
[null,null,null,null,null,null,null,null,0,false,1,1]
[null,null,null,null,null,null,null,null,0,false,1,1]
[null,null,null,null,null,null,null,null,0,false,1,1]
[null,null,null,null,null,null,null,null,0,false,1,1]
[null,null,null,null,null,null,null,null,0,false,1,1]
[null,null,null,null,null,null,null,null,0,false,1,1]
[null,null,null,null,null,null,null,null,0,false,1,1]
[null,null,null,null,null,null,null,null,0,false,1,1]
[null,null,null,null,null,null,null,null,0,false,1,1]
[null,null,null,null,null,null,null,null,0,false,1,1]
[null,null,null,null,null,null,null,null,0,false,1,1]
[null,null,null,null,null,null,null,null,0,false,1,1]
[null,null,null,null,null,null,null,null,0,false,1,1]
[null,null,null,null,null,null,null,null,0,false,1,1]
[null,null,null,null,null,null,null,null,0,false,1,1]
[null,null,null,null,null,null,null,null,0,false,1,1]
[null,null,null,null,null,null,null,null,0,false,1,1]
[null,null,null,null,null,null,null,null,0,false,1,1]
[null,null,null,null,null,null,null,null,0,{"$f":"AND(AND($H3647<>\"Completed\",$A3647<TODAY()),$H3647<>\"\")","v":false},1,1]
[null,null,null,null,null,null,null,null,0,false,1,1]
[null,null,null,null,null,null,null,null,0,false,1,1]
[null,null,null,null,null,null,null,null,0,false,1,1]
[null,null,null,null,null,null,null,null,0,false,1,1]
[null,null,null,null,null,null,null,null,0,false,1,1]
[null,null,null,null,null,null,null,null,0,false,1,1]
[null,null,null,null,null,null,null,null,0,false,1,1]
[null,null,null,null,null,null,null,null,0,false,{"$f":"IF(AND(H3655<>\"Completed\",H3655<>\"Canceled\"), 1, 0)","v":1},1]
[null,null,null,null,null,null,null,null,{"$f":"IF(H3656=\"Completed\",1,0)","v":0},false,1,{"$f":"SUM(I3656,K3656)","v":1}]
[null,null,null,null,null,null,null,null,0,false,1,1]
[null,null,null,null,null,null,null,null,0,false,1,1]
[null,null,null,null,null,null,null,null,0,false,1,1]
[null,null,null,null,null,null,null,null,0,false,1,1]
[null,null,null,null,null,null,null,null,0,false,1,1]
[null,null,null,null,null,null,null,null,0,false,1,1]
[null,null,null,null,null,null,null,null,0,false,1,1]
[null,null,null,null,null,null,null,null,0,false,1,1]
[null,null,null,null,null,null,null,null,0,false,1,1]
[null,null,null,null,null,null,null,null,0,false,1,1]
[null,null,null,null,null,null,null,null,0,false,1,1]
[null,null,null,null,null,null,null,null,0,false,1,1]
[null,null,null,null,null,null,null,null,0,false,1,1]
[null,null,null,null,null,null,null,null,0,false,1,1]
[null,null,null,null,null,null,null,null,0,false,1,1]
[null,null,null,null,null,null,null,null,0,false,1,1]
[null,null,null,null,null,null,null,null,0,false,1,1]
[null,null,null,null,null,null,null,null,0,false,1,1]
[null,null,null,null,null,null,null,null,0,false,1,1]
[null,null,null,null,null,null,null,null,0,false,1,1]
[null,null,null,null,null,null,null,null,0,false,1,1]
[null,null,null,null,null,null,null,null,0,false,1,1]
[null,null,null,null,null,null,null,null,0,false,1,1]
[null,null,null,null,null,null,null,null,0,false,1,1]
[null,null,null,null,null,null,null,null,0,false,1,1]
[null,null,null,null,null,null,null,null,0,false,1,1]
[null,null,null,null,null,null,null,null,0,false,1,1]
[null,null,null,null,null,null,null,null,0,false,1,1]
[null,null,null,null,null,null,null,null,0,false,1,1]
[null,null,null,null,null,null,null,null,0,false,1,1]
[null,null,null,null,null,null,null,null,0,false,1,1]
[null,null,null,null,null,null,null,null,0,false,1,1]
[null,null,null,null,null,null,null,null,0,false,1,1]
[null,null,null,null,null,null,null,null,0,false,1,1]
[null,null,null,null,null,null,null,null,0,false,1,1]
[null,null,null,null,null,null,null,null,0,false,1,1]
[null,null,null,null,null,null,null,null,0,false,1,1]
[null,null,null,null,null,null,null,null,0,false,1,1]
[null,null,null,null,null,null,null,null,0,false,1,1]
[null,null,null,null,null,null,null,null,0,false,1,1]
[null,null,null,null,null,null,null,null,0,false,1,1]
[null,null,null,null,null,null,null,null,0,false,1,1]
[null,null,null,null,null,null,null,null,0,false,1,1]
[null,null,null,null,null,null,null,null,0,false,1,1]
[null,null,null,null,null,null,null,null,0,false,1,1]
[null,null,null,null,null,null,null,null,0,false,1,1]
[null,null,null,null,null,null,null,null,0,false,1,1]
[null,null,null,null,null,null,null,null,0,false,1,1]
[null,null,null,null,null,null,null,null,0,false,1,1]
[null,null,null,null,null,null,null,null,0,false,1,1]
[null,null,null,null,null,null,null,null,0,false,1,1]
[null,null,null,null,null,null,null,null,0,false,1,1]
[null,null,null,null,null,null,null,null,0,false,1,1]
[null,null,null,null,null,null,null,null,0,false,1,1]
[null,null,null,null,null,null,null,null,0,{"$f":"AND(AND($H3711<>\"Completed\",$A3711<TODAY()),$H3711<>\"\")","v":false},1,1]
[null,null,null,null,null,null,null,null,0,false,1,1]
[null,null,null,null,null,null,null,null,0,false,1,1]
[null,null,null,null,null,null,null,null,0,false,1,1]
[null,null,null,null,null,null,null,null,0,false,1,1]
[null,null,null,null,null,null,null,null,0,false,1,1]
[null,null,null,null,null,null,null,null,0,false,1,1]
[null,null,null,null,null,null,null,null,0,false,1,1]
[null,null,null,null,null,null,null,null,0,false,{"$f":"IF(AND(H3719<>\"Completed\",H3719<>\"Canceled\"), 1, 0)","v":1},1]
[null,null,null,null,null,null,null,null,{"$f":"IF(H3720=\"Completed\",1,0)","v":0},false,1,{"$f":"SUM(I3720,K3720)","v":1}]
[null,null,null,null,null,null,null,null,0,false,1,1]
[null,null,null,null,null,null,null,null,0,false,1,1]
[null,null,null,null,null,null,null,null,0,false,1,1]
[null,null,null,null,null,null,null,null,0,false,1,1]
[null,null,null,null,null,null,null,null,0,false,1,1]
[null,null,null,null,null,null,null,null,0,false,1,1]
[null,null,null,null,null,null,null,null,0,false,1,1]
[null,null,null,null,null,null,null,null,0,false,1,1]
[null,null,null,null,null,null,null,null,0,false,1,1]
[null,null,null,null,null,null,null,null,0,false,1,1]
[null,null,null,null,null,null,null,null,0,false,1,1]
[null,null,null,null,null,null,null,null,0,false,1,1]
[null,null,null,null,null,null,null,null,0,false,1,1]
[null,null,null,null,null,null,null,null,0,false,1,1]
[null,null,null,null,null,null,null,null,0,false,1,1]
[null,null,null,null,null,null,null,null,0,false,1,1]
[null,null,null,null,null,null,null,null,0,false,1,1]
[null,null,null,null,null,null,null,null,0,false,1,1]
[null,null,null,null,null,null,null,null,0,false,1,1]
[null,null,null,null,null,null,null,null,0,false,1,1]
[null,null,null,null,null,null,null,null,0,false,1,1]
[null,null,null,null,null,null,null,null,0,false,1,1]
[null,null,null,null,null,null,null,null,0,false,1,1]
[null,null,null,null,null,null,null,null,0,false,1,1]
[null,null,null,null,null,null,null,null,0,false,1,1]
[null,null,null,null,null,null,null,null,0,false,1,1]
[null,null,null,null,null,null,null,null,0,false,1,1]
[null,null,null,null,null,null,null,null,0,false,1,1]
[null,null,null,null,null,null,null,null,0,false,1,1]
[null,null,null,null,null,null,null,null,0,false,1,1]
[null,null,null,null,null,null,null,null,0,false,1,1]
[null,null,null,null,null,null,null,null,0,false,1,1]
[null,null,null,null,null,null,null,null,0,false,1,1]
[null,null,null,null,null,null,null,null,0,false,1,1]
[null,null,null,null,null,null,null,null,0,false,1,1]
[null,null,null,null,null,null,null,null,0,false,1,1]
[null,null,null,null,null,null,null,null,0,false,1,1]
[null,null,null,null,null,null,null,null,0,false,1,1]
[null,null,null,null,null,null,null,null,0,false,1,1]
[null,null,null,null,null,null,null,null,0,false,1,1]
[null,null,null,null,null,null,null,null,0,false,1,1]
[null,null,null,null,null,null,null,null,0,false,1,1]
[null,null,null,null,null,null,null,null,0,false,1,1]
[null,null,null,null,null,null,null,null,0,false,1,1]
[null,null,null,null,null,null,null,null,0,false,1,1]
[null,null,null,null,null,null,null,null,0,false,1,1]
[null,null,null,null,null,null,null,null,0,false,1,1]
[null,null,null,null,null,null,null,null,0,false,1,1]
[null,null,null,null,null,null,null,null,0,false,1,1]
[null,null,null,null,null,null,null,null,0,false,1,1]
[null,null,null,null,null,null,null,null,0,false,1,1]
[null,null,null,null,null,null,null,null,0,false,1,1]
[null,null,null,null,null,null,null,null,0,false,1,1]
[null,null,null,null,null,null,null,null,0,false,1,1]
[null,null,null,null,null,null,null,null,0,{"$f":"AND(AND($H3775<>\"Completed\",$A3775<TODAY()),$H3775<>\"\")","v":false},1,1]
[null,null,null,null,null,null,null,null,0,false,1,1]
[null,null,null,null,null,null,null,null,0,false,1,1]
[null,null,null,null,null,null,null,null,0,false,1,1]
[null,null,null,null,null,null,null,null,0,false,1,1]
[null,null,null,null,null,null,null,null,0,false,1,1]
[null,null,null,null,null,null,null,null,0,false,1,1]
[null,null,null,null,null,null,null,null,0,false,1,1]
[null,null,null,null,null,null,null,null,0,false,{"$f":"IF(AND(H3783<>\"Completed\",H3783<>\"Canceled\"), 1, 0)","v":1},1]
[null,null,null,null,null,null,null,null,{"$f":"IF(H3784=\"Completed\",1,0)","v":0},false,1,{"$f":"SUM(I3784,K3784)","v":1}]
[null,null,null,null,null,null,null,null,0,false,1,1]
[null,null,null,null,null,null,null,null,0,false,1,1]
[null,null,null,null,null,null,null,null,0,false,1,1]
[null,null,null,null,null,null,null,null,0,false,1,1]
[null,null,null,null,null,null,null,null,0,false,1,1]
[null,null,null,null,null,null,null,null,0,false,1,1]
[null,null,null,null,null,null,null,null,0,false,1,1]
[null,null,null,null,null,null,null,null,0,false,1,1]
[null,null,null,null,null,null,null,null,0,false,1,1]
[null,null,null,null,null,null,null,null,0,false,1,1]
[null,null,null,null,null,null,null,null,0,false,1,1]
[null,null,null,null,null,null,null,null,0,false,1,1]
[null,null,null,null,null,null,null,null,0,false,1,1]
[null,null,null,null,null,null,null,null,0,false,1,1]
[null,null,null,null,null,null,null,null,0,false,1,1]
[null,null,null,null,null,null,null,null,0,false,1,1]
[null,null,null,null,null,null,null,null,0,false,1,1]
[null,null,null,null,null,null,null,null,0,false,1,1]
[null,null,null,null,null,null,null,null,0,false,1,1]
[null,null,null,null,null,null,null,null,0,false,1,1]
[null,null,null,null,null,null,null,null,0,false,1,1]
[null,null,null,null,null,null,null,null,0,false,1,1]
[null,null,null,null,null,null,null,null,0,false,1,1]
[null,null,null,null,null,null,null,null,0,false,1,1]
[null,null,null,null,null,null,null,null,0,false,1,1]
[null,null,null,null,null,null,null,null,0,false,1,1]
[null,null,null,null,null,null,null,null,0,false,1,1]
[null,null,null,null,null,null,null,null,0,false,1,1]
[null,null,null,null,null,null,null,null,0,false,1,1]
[null,null,null,null,null,null,null,null,0,false,1,1]
[null,null,null,null,null,null,null,null,0,false,1,1]
[null,null,null,null,null,null,null,null,0,false,1,1]
[null,null,null,null,null,null,null,null,0,false,1,1]
[null,null,null,null,null,null,null,null,0,false,1,1]
[null,null,null,null,null,null,null,null,0,false,1,1]
[null,null,null,null,null,null,null,null,0,false,1,1]
[null,null,null,null,null,null,null,null,0,false,1,1]
[null,null,null,null,null,null,null,null,0,false,1,1]
[null,null,null,null,null,null,null,null,0,false,1,1]
[null,null,null,null,null,null,null,null,0,false,1,1]
[null,null,null,null,null,null,null,null,0,false,1,1]
[null,null,null,null,null,null,null,null,0,false,1,1]
[null,null,null,null,null,null,null,null,0,false,1,1]
[null,null,null,null,null,null,null,null,0,false,1,1]
[null,null,null,null,null,null,null,null,0,false,1,1]
[null,null,null,null,null,null,null,null,0,false,1,1]
[null,null,null,null,null,null,null,null,0,false,1,1]
[null,null,null,null,null,null,null,null,0,false,1,1]
[null,null,null,null,null,null,null,null,0,false,1,1]
[null,null,null,null,null,null,null,null,0,false,1,1]
[null,null,null,null,null,null,null,null,0,false,1,1]
[null,null,null,null,null,null,null,null,0,false,1,1]
[null,null,null,null,null,null,null,null,0,false,1,1]
[null,null,null,null,null,null,null,null,0,false,1,1]
[null,null,null,null,null,null,null,null,0,{"$f":"AND(AND($H3839<>\"Completed\",$A3839<TODAY()),$H3839<>\"\")","v":false},1,1]
[null,null,null,null,null,null,null,null,0,false,1,1]
[null,null,null,null,null,null,null,null,0,false,1,1]
[null,null,null,null,null,null,null,null,0,false,1,1]
[null,null,null,null,null,null,null,null,0,false,1,1]
[null,null,null,null,null,null,null,null,0,false,1,1]
[null,null,null,null,null,null,null,null,0,false,1,1]
[null,null,null,null,null,null,null,null,0,false,1,1]
[null,null,null,null,null,null,null,null,0,false,{"$f":"IF(AND(H3847<>\"Completed\",H3847<>\"Canceled\"), 1, 0)","v":1},1]
[null,null,null,null,null,null,null,null,{"$f":"IF(H3848=\"Completed\",1,0)","v":0},false,1,{"$f":"SUM(I3848,K3848)","v":1}]
[null,null,null,null,null,null,null,null,0,false,1,1]
[null,null,null,null,null,null,null,null,0,false,1,1]
[null,null,null,null,null,null,null,null,0,false,1,1]
[null,null,null,null,null,null,null,null,0,false,1,1]
[null,null,null,null,null,null,null,null,0,false,1,1]
[null,null,null,null,null,null,null,null,0,false,1,1]
[null,null,null,null,null,null,null,null,0,false,1,1]
[null,null,null,null,null,null,null,null,0,false,1,1]
[null,null,null,null,null,null,null,null,0,false,1,1]
[null,null,null,null,null,null,null,null,0,false,1,1]
[null,null,null,null,null,null,null,null,0,false,1,1]
[null,null,null,null,null,null,null,null,0,false,1,1]
[null,null,null,null,null,null,null,null,0,false,1,1]
[null,null,null,null,null,null,null,null,0,false,1,1]
[null,null,null,null,null,null,null,null,0,false,1,1]
[null,null,null,null,null,null,null,null,0,false,1,1]
[null,null,null,null,null,null,null,null,0,false,1,1]
[null,null,null,null,null,null,null,null,0,false,1,1]
[null,null,null,null,null,null,null,null,0,false,1,1]
[null,null,null,null,null,null,null,null,0,false,1,1]
[null,null,null,null,null,null,null,null,0,false,1,1]
[null,null,null,null,null,null,null,null,0,false,1,1]
[null,null,null,null,null,null,null,null,0,false,1,1]
[null,null,null,null,null,null,null,null,0,false,1,1]
[null,null,null,null,null,null,null,null,0,false,1,1]
[null,null,null,null,null,null,null,null,0,false,1,1]
[null,null,null,null,null,null,null,null,0,false,1,1]
[null,null,null,null,null,null,null,null,0,false,1,1]
[null,null,null,null,null,null,null,null,0,false,1,1]
[null,null,null,null,null,null,null,null,0,false,1,1]
[null,null,null,null,null,null,null,null,0,false,1,1]
[null,null,null,null,null,null,null,null,0,false,1,1]
[null,null,null,null,null,null,null,null,0,false,1,1]
[null,null,null,null,null,null,null,null,0,false,1,1]
[null,null,null,null,null,null,null,null,0,false,1,1]
[null,null,null,null,null,null,null,null,0,false,1,1]
[null,null,null,null,null,null,null,null,0,false,1,1]
[null,null,null,null,null,null,null,null,0,false,1,1]
[null,null,null,null,null,null,null,null,0,false,1,1]
[null,null,null,null,null,null,null,null,0,false,1,1]
[null,null,null,null,null,null,null,null,0,false,1,1]
[null,null,null,null,null,null,null,null,0,false,1,1]
[null,null,null,null,null,null,null,null,0,false,1,1]
[null,null,null,null,null,null,null,null,0,false,1,1]
[null,null,null,null,null,null,null,null,0,false,1,1]
[null,null,null,null,null,null,null,null,0,false,1,1]
[null,null,null,null,null,null,null,null,0,false,1,1]
[null,null,null,null,null,null,null,null,0,false,1,1]
[null,null,null,null,null,null,null,null,0,false,1,1]
[null,null,null,null,null,null,null,null,0,false,1,1]
[null,null,null,null,null,null,null,null,0,false,1,1]
[null,null,null,null,null,null,null,null,0,false,1,1]
[null,null,null,null,null,null,null,null,0,false,1,1]
[null,null,null,null,null,null,null,null,0,false,1,1]
[null,null,null,null,null,null,null,null,0,{"$f":"AND(AND($H3903<>\"Completed\",$A3903<TODAY()),$H3903<>\"\")","v":false},1,1]
[null,null,null,null,null,null,null,null,0,false,1,1]
[null,null,null,null,null,null,null,null,0,false,1,1]
[null,null,null,null,null,null,null,null,0,false,1,1]
[null,null,null,null,null,null,null,null,0,false,1,1]
[null,null,null,null,null,null,null,null,0,false,1,1]
[null,null,null,null,null,null,null,null,0,false,1,1]
[null,null,null,null,null,null,null,null,0,false,1,1]
[null,null,null,null,null,null,null,null,0,false,{"$f":"IF(AND(H3911<>\"Completed\",H3911<>\"Canceled\"), 1, 0)","v":1},1]
[null,null,null,null,null,null,null,null,{"$f":"IF(H3912=\"Completed\",1,0)","v":0},false,1,{"$f":"SUM(I3912,K3912)","v":1}]
[null,null,null,null,null,null,null,null,0,false,1,1]
[null,null,null,null,null,null,null,null,0,false,1,1]
[null,null,null,null,null,null,null,null,0,false,1,1]
[null,null,null,null,null,null,null,null,0,false,1,1]
[null,null,null,null,null,null,null,null,0,false,1,1]
[null,null,null,null,null,null,null,null,0,false,1,1]
[null,null,null,null,null,null,null,null,0,false,1,1]
[null,null,null,null,null,null,null,null,0,false,1,1]
[null,null,null,null,null,null,null,null,0,false,1,1]
[null,null,null,null,null,null,null,null,0,false,1,1]
[null,null,null,null,null,null,null,null,0,false,1,1]
[null,null,null,null,null,null,null,null,0,false,1,1]
[null,null,null,null,null,null,null,null,0,false,1,1]
[null,null,null,null,null,null,null,null,0,false,1,1]
[null,null,null,null,null,null,null,null,0,false,1,1]
[null,null,null,null,null,null,null,null,0,false,1,1]
[null,null,null,null,null,null,null,null,0,false,1,1]
[null,null,null,null,null,null,null,null,0,false,1,1]
[null,null,null,null,null,null,null,null,0,false,1,1]
[null,null,null,null,null,null,null,null,0,false,1,1]
[null,null,null,null,null,null,null,null,0,false,1,1]
[null,null,null,null,null,null,null,null,0,false,1,1]
[null,null,null,null,null,null,null,null,0,false,1,1]
[null,null,null,null,null,null,null,null,0,false,1,1]
[null,null,null,null,null,null,null,null,0,false,1,1]
[null,null,null,null,null,null,null,null,0,false,1,1]
[null,null,null,null,null,null,null,null,0,false,1,1]
[null,null,null,null,null,null,null,null,0,false,1,1]
[null,null,null,null,null,null,null,null,0,false,1,1]
[null,null,null,null,null,null,null,null,0,false,1,1]
[null,null,null,null,null,null,null,null,0,false,1,1]
[null,null,null,null,null,null,null,null,0,false,1,1]
[null,null,null,null,null,null,null,null,0,false,1,1]
[null,null,null,null,null,null,null,null,0,false,1,1]
[null,null,null,null,null,null,null,null,0,false,1,1]
[null,null,null,null,null,null,null,null,0,false,1,1]
[null,null,null,null,null,null,null,null,0,false,1,1]
[null,null,null,null,null,null,null,null,0,false,1,1]
[null,null,null,null,null,null,null,null,0,false,1,1]
[null,null,null,null,null,null,null,null,0,false,1,1]
[null,null,null,null,null,null,null,null,0,false,1,1]
[null,null,null,null,null,null,null,null,0,false,1,1]
[null,null,null,null,null,null,null,null,0,false,1,1]
[null,null,null,null,null,null,null,null,0,false,1,1]
[null,null,null,null,null,null,null,null,0,false,1,1]
[null,null,null,null,null,null,null,null,0,false,1,1]
[null,null,null,null,null,null,null,null,0,false,1,1]
[null,null,null,null,null,null,null,null,0,false,1,1]
[null,null,null,null,null,null,null,null,0,false,1,1]
[null,null,null,null,null,null,null,null,0,false,1,1]
[null,null,null,null,null,null,null,null,0,false,1,1]
[null,null,null,null,null,null,null,null,0,false,1,1]
[null,null,null,null,null,null,null,null,0,false,1,1]
[null,null,null,null,null,null,null,null,0,false,1,1]
[null,null,null,null,null,null,null,null,0,{"$f":"AND(AND($H3967<>\"Completed\",$A3967<TODAY()),$H3967<>\"\")","v":false},1,1]
[null,null,null,null,null,null,null,null,0,false,1,1]
[null,null,null,null,null,null,null,null,0,false,1,1]
[null,null,null,null,null,null,null,null,0,false,1,1]
[null,null,null,null,null,null,null,null,0,false,1,1]
[null,null,null,null,null,null,null,null,0,false,1,1]
[null,null,null,null,null,null,null,null,0,false,1,1]
[null,null,null,null,null,null,null,null,0,false,1,1]
[null,null,null,null,null,null,null,null,0,false,{"$f":"IF(AND(H3975<>\"Completed\",H3975<>\"Canceled\"), 1, 0)","v":1},1]
[null,null,null,null,null,null,null,null,{"$f":"IF(H3976=\"Completed\",1,0)","v":0},false,1,{"$f":"SUM(I3976,K3976)","v":1}]
[null,null,null,null,null,null,null,null,0,false,1,1]
[null,null,null,null,null,null,null,null,0,false,1,1]
[null,null,null,null,null,null,null,null,0,false,1,1]
[null,null,null,null,null,null,null,null,0,false,1,1]
[null,null,null,null,null,null,null,null,0,false,1,1]
[null,null,null,null,null,null,null,null,0,false,1,1]
[null,null,null,null,null,null,null,null,0,false,1,1]
[null,null,null,null,null,null,null,null,0,false,1,1]
[null,null,null,null,null,null,null,null,0,false,1,1]
[null,null,null,null,null,null,null,null,0,false,1,1]
[null,null,null,null,null,null,null,null,0,false,1,1]
[null,null,null,null,null,null,null,null,0,false,1,1]
[null,null,null,null,null,null,null,null,0,false,1,1]
[null,null,null,null,null,null,null,null,0,false,1,1]
[null,null,null,null,null,null,null,null,0,false,1,1]
[null,null,null,null,null,null,null,null,0,false,1,1]
[null,null,null,null,null,null,null,null,0,false,1,1]
[null,null,null,null,null,null,null,null,0,false,1,1]
[null,null,null,null,null,null,null,null,0,false,1,1]
[null,null,null,null,null,null,null,null,0,false,1,1]
[null,null,null,null,null,null,null,null,0,false,1,1]
[null,null,null,null,null,null,null,null,0,false,1,1]
[null,null,null,null,null,null,null,null,0,false,1,1]
[null,null,null,null,null,null,null,null,0,false,1,1]
[null,null,null,null,null,null,null,null,0,false,1,1]
[null,null,null,null,null,null,null,null,0,false,1,1]
[null,null,null,null,null,null,null,null,0,false,1,1]
[null,null,null,null,null,null,null,null,0,false,1,1]
[null,null,null,null,null,null,null,null,0,false,1,1]
[null,null,null,null,null,null,null,null,0,false,1,1]
[null,null,null,null,null,null,null,null,0,false,1,1]
[null,null,null,null,null,null,null,null,0,false,1,1]
[null,null,null,null,null,null,null,null,0,false,1,1]
[null,null,null,null,null,null,null,null,0,false,1,1]
[null,null,null,null,null,null,null,null,0,false,1,1]
[null,null,null,null,null,null,null,null,0,false,1,1]
[null,null,null,null,null,null,null,null,0,false,1,1]
[null,null,null,null,null,null,null,null,0,false,1,1]
[null,null,null,null,null,null,null,null,0,false,1,1]
[null,null,null,null,null,null,null,null,0,false,1,1]
[null,null,null,null,null,null,null,null,0,false,1,1]
[null,null,null,null,null,null,null,null,0,false,1,1]
[null,null,null,null,null,null,null,null,0,false,1,1]
[null,null,null,null,null,null,null,null,0,false,1,1]
[null,null,null,null,null,null,null,null,0,false,1,1]
[null,null,null,null,null,null,null,null,0,false,1,1]
[null,null,null,null,null,null,null,null,0,false,1,1]
[null,null,null,null,null,null,null,null,0,false,1,1]
[null,null,null,null,null,null,null,null,0,false,1,1]
[null,null,null,null,null,null,null,null,0,false,1,1]
[null,null,null,null,null,null,null,null,0,false,1,1]
[null,null,null,null,null,null,null,null,0,false,1,1]
[null,null,null,null,null,null,null,null,0,false,1,1]
[null,null,null,null,null,null,null,null,0,false,1,1]
[null,null,null,null,null,null,null,null,0,{"$f":"AND(AND($H4031<>\"Completed\",$A4031<TODAY()),$H4031<>\"\")","v":false},1,1]
[null,null,null,null,null,null,null,null,0,false,1,1]
[null,null,null,null,null,null,null,null,0,false,1,1]
[null,null,null,null,null,null,null,null,0,false,1,1]
[null,null,null,null,null,null,null,null,0,false,1,1]
[null,null,null,null,null,null,null,null,0,false,1,1]
[null,null,null,null,null,null,null,null,0,false,1,1]
[null,null,null,null,null,null,null,null,0,false,1,1]
[null,null,null,null,null,null,null,null,0,false,{"$f":"IF(AND(H4039<>\"Completed\",H4039<>\"Canceled\"), 1, 0)","v":1},1]
[null,null,null,null,null,null,null,null,{"$f":"IF(H4040=\"Completed\",1,0)","v":0},false,1,{"$f":"SUM(I4040,K4040)","v":1}]
[null,null,null,null,null,null,null,null,0,false,1,1]
[null,null,null,null,null,null,null,null,0,false,1,1]
[null,null,null,null,null,null,null,null,0,false,1,1]
[null,null,null,null,null,null,null,null,0,false,1,1]
[null,null,null,null,null,null,null,null,0,false,1,1]
[null,null,null,null,null,null,null,null,0,false,1,1]
[null,null,null,null,null,null,null,null,0,false,1,1]
[null,null,null,null,null,null,null,null,0,false,1,1]
[null,null,null,null,null,null,null,null,0,false,1,1]
[null,null,null,null,null,null,null,null,0,false,1,1]
[null,null,null,null,null,null,null,null,0,false,1,1]
[null,null,null,null,null,null,null,null,0,false,1,1]
[null,null,null,null,null,null,null,null,0,false,1,1]
[null,null,null,null,null,null,null,null,0,false,1,1]
[null,null,null,null,null,null,null,null,0,false,1,1]
[null,null,null,null,null,null,null,null,0,false,1,1]
[null,null,null,null,null,null,null,null,0,false,1,1]
[null,null,null,null,null,null,null,null,0,false,1,1]
[null,null,null,null,null,null,null,null,0,false,1,1]
[null,null,null,null,null,null,null,null,0,false,1,1]
[null,null,null,null,null,null,null,null,0,false,1,1]
[null,null,null,null,null,null,null,null,0,false,1,1]
[null,null,null,null,null,null,null,null,0,false,1,1]
[null,null,null,null,null,null,null,null,0,false,1,1]
[null,null,null,null,null,null,null,null,0,false,1,1]
[null,null,null,null,null,null,null,null,0,false,1,1]
[null,null,null,null,null,null,null,null,0,false,1,1]
[null,null,null,null,null,null,null,null,0,false,1,1]
[null,null,null,null,null,null,null,null,0,false,1,1]
[null,null,null,null,null,null,null,null,0,false,1,1]
[null,null,null,null,null,null,null,null,0,false,1,1]
[null,null,null,null,null,null,null,null,0,false,1,1]
[null,null,null,null,null,null,null,null,0,false,1,1]
[null,null,null,null,null,null,null,null,0,false,1,1]
[null,null,null,null,null,null,null,null,0,false,1,1]
[null,null,null,null,null,null,null,null,0,false,1,1]
[null,null,null,null,null,null,null,null,0,false,1,1]
[null,null,null,null,null,null,null,null,0,false,1,1]
[null,null,null,null,null,null,null,null,0,false,1,1]
[null,null,null,null,null,null,null,null,0,false,1,1]
[null,null,null,null,null,null,null,null,0,false,1,1]
[null,null,null,null,null,null,null,null,0,false,1,1]
[null,null,null,null,null,null,null,null,0,false,1,1]
[null,null,null,null,null,null,null,null,0,false,1,1]
[null,null,null,null,null,null,null,null,0,false,1,1]
[null,null,null,null,null,null,null,null,0,false,1,1]
[null,null,null,null,null,null,null,null,0,false,1,1]
[null,null,null,null,null,null,null,null,0,false,1,1]
[null,null,null,null,null,null,null,null,0,false,1,1]
[null,null,null,null,null,null,null,null,0,false,1,1]
[null,null,null,null,null,null,null,null,0,false,1,1]
[null,null,null,null,null,null,null,null,0,false,1,1]
[null,null,null,null,null,null,null,null,0,false,1,1]
[null,null,null,null,null,null,null,null,0,false,1,1]
[null,null,null,null,null,null,null,null,0,{"$f":"AND(AND($H4095<>\"Completed\",$A4095<TODAY()),$H4095<>\"\")","v":false},1,1]
[null,null,null,null,null,null,null,null,0,false,1,1]
[null,null,null,null,null,null,null,null,0,false,1,1]
[null,null,null,null,null,null,null,null,0,false,1,1]
[null,null,null,null,null,null,null,null,0,false,1,1]
[null,null,null,null,null,null,null,null,0,false,1,1]
[null,null,null,null,null,null,null,null,0,false,1,1]
[null,null,null,null,null,null,null,null,0,false,1,1]
[null,null,null,null,null,null,null,null,0,false,{"$f":"IF(AND(H4103<>\"Completed\",H4103<>\"Canceled\"), 1, 0)","v":1},1]
[null,null,null,null,null,null,null,null,{"$f":"IF(H4104=\"Completed\",1,0)","v":0},false,1,{"$f":"SUM(I4104,K4104)","v":1}]
[null,null,null,null,null,null,null,null,0,false,1,1]
[null,null,null,null,null,null,null,null,0,false,1,1]
[null,null,null,null,null,null,null,null,0,false,1,1]
[null,null,null,null,null,null,null,null,0,false,1,1]
[null,null,null,null,null,null,null,null,0,false,1,1]
[null,null,null,null,null,null,null,null,0,false,1,1]
[null,null,null,null,null,null,null,null,0,false,1,1]
[null,null,null,null,null,null,null,null,0,false,1,1]
[null,null,null,null,null,null,null,null,0,false,1,1]
[null,null,null,null,null,null,null,null,0,false,1,1]
[null,null,null,null,null,null,null,null,0,false,1,1]
[null,null,null,null,null,null,null,null,0,false,1,1]
[null,null,null,null,null,null,null,null,0,false,1,1]
[null,null,null,null,null,null,null,null,0,false,1,1]
[null,null,null,null,null,null,null,null,0,false,1,1]
[null,null,null,null,null,null,null,null,0,false,1,1]
[null,null,null,null,null,null,null,null,0,false,1,1]
[null,null,null,null,null,null,null,null,0,false,1,1]
[null,null,null,null,null,null,null,null,0,false,1,1]
[null,null,null,null,null,null,null,null,0,false,1,1]
[null,null,null,null,null,null,null,null,0,false,1,1]
[null,null,null,null,null,null,null,null,0,false,1,1]
[null,null,null,null,null,null,null,null,0,false,1,1]
[null,null,null,null,null,null,null,null,0,false,1,1]
[null,null,null,null,null,null,null,null,0,false,1,1]
[null,null,null,null,null,null,null,null,0,false,1,1]
[null,null,null,null,null,null,null,null,0,false,1,1]
[null,null,null,null,null,null,null,null,0,false,1,1]
[null,null,null,null,null,null,null,null,0,false,1,1]
[null,null,null,null,null,null,null,null,0,false,1,1]
[null,null,null,null,null,null,null,null,0,false,1,1]
[null,null,null,null,null,null,null,null,0,false,1,1]
[null,null,null,null,null,null,null,null,0,false,1,1]
[null,null,null,null,null,null,null,null,0,false,1,1]
[null,null,null,null,null,null,null,null,0,false,1,1]
[null,null,null,null,null,null,null,null,0,false,1,1]
[null,null,null,null,null,null,null,null,0,false,1,1]
[null,null,null,null,null,null,null,null,0,false,1,1]
[null,null,null,null,null,null,null,null,0,false,1,1]
[null,null,null,null,null,null,null,null,0,false,1,1]
[null,null,null,null,null,null,null,null,0,false,1,1]
[null,null,null,null,null,null,null,null,0,false,1,1]
[null,null,null,null,null,null,null,null,0,false,1,1]
[null,null,null,null,null,null,null,null,0,false,1,1]
[null,null,null,null,null,null,null,null,0,false,1,1]
[null,null,null,null,null,null,null,null,0,false,1,1]
[null,null,null,null,null,null,null,null,0,false,1,1]
[null,null,null,null,null,null,null,null,0,false,1,1]
[null,null,null,null,null,null,null,null,0,false,1,1]
[null,null,null,null,null,null,null,null,0,false,1,1]
[null,null,null,null,null,null,null,null,0,false,1,1]
[null,null,null,null,null,null,null,null,0,false,1,1]
[null,null,null,null,null,null,null,null,0,false,1,1]
[null,null,null,null,null,null,null,null,0,false,1,1]
[null,null,null,null,null,null,null,null,0,{"$f":"AND(AND($H4159<>\"Completed\",$A4159<TODAY()),$H4159<>\"\")","v":false},1,1]
[null,null,null,null,null,null,null,null,0,false,1,1]
[null,null,null,null,null,null,null,null,0,false,1,1]
[null,null,null,null,null,null,null,null,0,false,1,1]
[null,null,null,null,null,null,null,null,0,false,1,1]
[null,null,null,null,null,null,null,null,0,false,1,1]
[null,null,null,null,null,null,null,null,0,false,1,1]
[null,null,null,null,null,null,null,null,0,false,1,1]
[null,null,null,null,null,null,null,null,0,false,{"$f":"IF(AND(H4167<>\"Completed\",H4167<>\"Canceled\"), 1, 0)","v":1},1]
[null,null,null,null,null,null,null,null,{"$f":"IF(H4168=\"Completed\",1,0)","v":0},false,1,{"$f":"SUM(I4168,K4168)","v":1}]
[null,null,null,null,null,null,null,null,0,false,1,1]
[null,null,null,null,null,null,null,null,0,false,1,1]
[null,null,null,null,null,null,null,null,0,false,1,1]
[null,null,null,null,null,null,null,null,0,false,1,1]
[null,null,null,null,null,null,null,null,0,false,1,1]
[null,null,null,null,null,null,null,null,0,false,1,1]
[null,null,null,null,null,null,null,null,0,false,1,1]
[null,null,null,null,null,null,null,null,0,false,1,1]
[null,null,null,null,null,null,null,null,0,false,1,1]
[null,null,null,null,null,null,null,null,0,false,1,1]
[null,null,null,null,null,null,null,null,0,false,1,1]
[null,null,null,null,null,null,null,null,0,false,1,1]
[null,null,null,null,null,null,null,null,0,false,1,1]
[null,null,null,null,null,null,null,null,0,false,1,1]
[null,null,null,null,null,null,null,null,0,false,1,1]
[null,null,null,null,null,null,null,null,0,false,1,1]
[null,null,null,null,null,null,null,null,0,false,1,1]
[null,null,null,null,null,null,null,null,0,false,1,1]
[null,null,null,null,null,null,null,null,0,false,1,1]
[null,null,null,null,null,null,null,null,0,false,1,1]
[null,null,null,null,null,null,null,null,0,false,1,1]
[null,null,null,null,null,null,null,null,0,false,1,1]
[null,null,null,null,null,null,null,null,0,false,1,1]
[null,null,null,null,null,null,null,null,0,false,1,1]
[null,null,null,null,null,null,null,null,0,false,1,1]
[null,null,null,null,null,null,null,null,0,false,1,1]
[null,null,null,null,null,null,null,null,0,false,1,1]
[null,null,null,null,null,null,null,null,0,false,1,1]
[null,null,null,null,null,null,null,null,0,false,1,1]
[null,null,null,null,null,null,null,null,0,false,1,1]
[null,null,null,null,null,null,null,null,0,false,1,1]
[null,null,null,null,null,null,null,null,0,false,1,1]
[null,null,null,null,null,null,null,null,0,false,1,1]
[null,null,null,null,null,null,null,null,0,false,1,1]
[null,null,null,null,null,null,null,null,0,false,1,1]
[null,null,null,null,null,null,null,null,0,false,1,1]
[null,null,null,null,null,null,null,null,0,false,1,1]
[null,null,null,null,null,null,null,null,0,false,1,1]
[null,null,null,null,null,null,null,null,0,false,1,1]
[null,null,null,null,null,null,null,null,0,false,1,1]
[null,null,null,null,null,null,null,null,0,false,1,1]
[null,null,null,null,null,null,null,null,0,false,1,1]
[null,null,null,null,null,null,null,null,0,false,1,1]
[null,null,null,null,null,null,null,null,0,false,1,1]
[null,null,null,null,null,null,null,null,0,false,1,1]
[null,null,null,null,null,null,null,null,0,false,1,1]
[null,null,null,null,null,null,null,null,0,false,1,1]
[null,null,null,null,null,null,null,null,0,false,1,1]
[null,null,null,null,null,null,null,null,0,false,1,1]
[null,null,null,null,null,null,null,null,0,false,1,1]
[null,null,null,null,null,null,null,null,0,false,1,1]
[null,null,null,null,null,null,null,null,0,false,1,1]
[null,null,null,null,null,null,null,null,0,false,1,1]
[null,null,null,null,null,null,null,null,0,false,1,1]
[null,null,null,null,null,null,null,null,0,{"$f":"AND(AND($H4223<>\"Completed\",$A4223<TODAY()),$H4223<>\"\")","v":false},1,1]
[null,null,null,null,null,null,null,null,0,false,1,1]
[null,null,null,null,null,null,null,null,0,false,1,1]
[null,null,null,null,null,null,null,null,0,false,1,1]
[null,null,null,null,null,null,null,null,0,false,1,1]
[null,null,null,null,null,null,null,null,0,false,1,1]
[null,null,null,null,null,null,null,null,0,false,1,1]
[null,null,null,null,null,null,null,null,0,false,1,1]
[null,null,null,null,null,null,null,null,0,false,{"$f":"IF(AND(H4231<>\"Completed\",H4231<>\"Canceled\"), 1, 0)","v":1},1]
[null,null,null,null,null,null,null,null,{"$f":"IF(H4232=\"Completed\",1,0)","v":0},false,1,{"$f":"SUM(I4232,K4232)","v":1}]
[null,null,null,null,null,null,null,null,0,false,1,1]
[null,null,null,null,null,null,null,null,0,false,1,1]
[null,null,null,null,null,null,null,null,0,false,1,1]
[null,null,null,null,null,null,null,null,0,false,1,1]
[null,null,null,null,null,null,null,null,0,false,1,1]
[null,null,null,null,null,null,null,null,0,false,1,1]
[null,null,null,null,null,null,null,null,0,false,1,1]
[null,null,null,null,null,null,null,null,0,false,1,1]
[null,null,null,null,null,null,null,null,0,false,1,1]
[null,null,null,null,null,null,null,null,0,false,1,1]
[null,null,null,null,null,null,null,null,0,false,1,1]
[null,null,null,null,null,null,null,null,0,false,1,1]
[null,null,null,null,null,null,null,null,0,false,1,1]
[null,null,null,null,null,null,null,null,0,false,1,1]
[null,null,null,null,null,null,null,null,0,false,1,1]
[null,null,null,null,null,null,null,null,0,false,1,1]
[null,null,null,null,null,null,null,null,0,false,1,1]
[null,null,null,null,null,null,null,null,0,false,1,1]
[null,null,null,null,null,null,null,null,0,false,1,1]
[null,null,null,null,null,null,null,null,0,false,1,1]
[null,null,null,null,null,null,null,null,0,false,1,1]
[null,null,null,null,null,null,null,null,0,false,1,1]
[null,null,null,null,null,null,null,null,0,false,1,1]
[null,null,null,null,null,null,null,null,0,false,1,1]
[null,null,null,null,null,null,null,null,0,false,1,1]
[null,null,null,null,null,null,null,null,0,false,1,1]
[null,null,null,null,null,null,null,null,0,false,1,1]
[null,null,null,null,null,null,null,null,0,false,1,1]
[null,null,null,null,null,null,null,null,0,false,1,1]
[null,null,null,null,null,null,null,null,0,false,1,1]
[null,null,null,null,null,null,null,null,0,false,1,1]
[null,null,null,null,null,null,null,null,0,false,1,1]
[null,null,null,null,null,null,null,null,0,false,1,1]
[null,null,null,null,null,null,null,null,0,false,1,1]
[null,null,null,null,null,null,null,null,0,false,1,1]
[null,null,null,null,null,null,null,null,0,false,1,1]
[null,null,null,null,null,null,null,null,0,false,1,1]
[null,null,null,null,null,null,null,null,0,false,1,1]
[null,null,null,null,null,null,null,null,0,false,1,1]
[null,null,null,null,null,null,null,null,0,false,1,1]
[null,null,null,null,null,null,null,null,0,false,1,1]
[null,null,null,null,null,null,null,null,0,false,1,1]
[null,null,null,null,null,null,null,null,0,false,1,1]
[null,null,null,null,null,null,null,null,0,false,1,1]
[null,null,null,null,null,null,null,null,0,false,1,1]
[null,null,null,null,null,null,null,null,0,false,1,1]
[null,null,null,null,null,null,null,null,0,false,1,1]
[null,null,null,null,null,null,null,null,0,false,1,1]
[null,null,null,null,null,null,null,null,0,false,1,1]
[null,null,null,null,null,null,null,null,0,false,1,1]
[null,null,null,null,null,null,null,null,0,false,1,1]
[null,null,null,null,null,null,null,null,0,false,1,1]
[null,null,null,null,null,null,null,null,0,false,1,1]
[null,null,null,null,null,null,null,null,0,false,1,1]
[null,null,null,null,null,null,null,null,0,{"$f":"AND(AND($H4287<>\"Completed\",$A4287<TODAY()),$H4287<>\"\")","v":false},1,1]
[null,null,null,null,null,null,null,null,0,false,1,1]
[null,null,null,null,null,null,null,null,0,false,1,1]
[null,null,null,null,null,null,null,null,0,false,1,1]
[null,null,null,null,null,null,null,null,0,false,1,1]
[null,null,null,null,null,null,null,null,0,false,1,1]
[null,null,null,null,null,null,null,null,0,false,1,1]
[null,null,null,null,null,null,null,null,0,false,1,1]
[null,null,null,null,null,null,null,null,0,false,{"$f":"IF(AND(H4295<>\"Completed\",H4295<>\"Canceled\"), 1, 0)","v":1},1]
[null,null,null,null,null,null,null,null,{"$f":"IF(H4296=\"Completed\",1,0)","v":0},false,1,{"$f":"SUM(I4296,K4296)","v":1}]
[null,null,null,null,null,null,null,null,0,false,1,1]
[null,null,null,null,null,null,null,null,0,false,1,1]
[null,null,null,null,null,null,null,null,0,false,1,1]
[null,null,null,null,null,null,null,null,0,false,1,1]
[null,null,null,null,null,null,null,null,0,false,1,1]
[null,null,null,null,null,null,null,null,0,false,1,1]
[null,null,null,null,null,null,null,null,0,false,1,1]
[null,null,null,null,null,null,null,null,0,false,1,1]
[null,null,null,null,null,null,null,null,0,false,1,1]
[null,null,null,null,null,null,null,null,0,false,1,1]
[null,null,null,null,null,null,null,null,0,false,1,1]
[null,null,null,null,null,null,null,null,0,false,1,1]
[null,null,null,null,null,null,null,null,0,false,1,1]
[null,null,null,null,null,null,null,null,0,false,1,1]
[null,null,null,null,null,null,null,null,0,false,1,1]
[null,null,null,null,null,null,null,null,0,false,1,1]
[null,null,null,null,null,null,null,null,0,false,1,1]
[null,null,null,null,null,null,null,null,0,false,1,1]
[null,null,null,null,null,null,null,null,0,false,1,1]
[null,null,null,null,null,null,null,null,0,false,1,1]
[null,null,null,null,null,null,null,null,0,false,1,1]
[null,null,null,null,null,null,null,null,0,false,1,1]
[null,null,null,null,null,null,null,null,0,false,1,1]
[null,null,null,null,null,null,null,null,0,false,1,1]
[null,null,null,null,null,null,null,null,0,false,1,1]
[null,null,null,null,null,null,null,null,0,false,1,1]
[null,null,null,null,null,null,null,null,0,false,1,1]
[null,null,null,null,null,null,null,null,0,false,1,1]
[null,null,null,null,null,null,null,null,0,false,1,1]
[null,null,null,null,null,null,null,null,0,false,1,1]
[null,null,null,null,null,null,null,null,0,false,1,1]
[null,null,null,null,null,null,null,null,0,false,1,1]
[null,null,null,null,null,null,null,null,0,false,1,1]
[null,null,null,null,null,null,null,null,0,false,1,1]
[null,null,null,null,null,null,null,null,0,false,1,1]
[null,null,null,null,null,null,null,null,0,false,1,1]
[null,null,null,null,null,null,null,null,0,false,1,1]
[null,null,null,null,null,null,null,null,0,false,1,1]
[null,null,null,null,null,null,null,null,0,false,1,1]
[null,null,null,null,null,null,null,null,0,false,1,1]
[null,null,null,null,null,null,null,null,0,false,1,1]
[null,null,null,null,null,null,null,null,0,false,1,1]
[null,null,null,null,null,null,null,null,0,false,1,1]
[null,null,null,null,null,null,null,null,0,false,1,1]
[null,null,null,null,null,null,null,null,0,false,1,1]
[null,null,null,null,null,null,null,null,0,false,1,1]
[null,null,null,null,null,null,null,null,0,false,1,1]
[null,null,null,null,null,null,null,null,0,false,1,1]
[null,null,null,null,null,null,null,null,0,false,1,1]
[null,null,null,null,null,null,null,null,0,false,1,1]
[null,null,null,null,null,null,null,null,0,false,1,1]
[null,null,null,null,null,null,null,null,0,false,1,1]
[null,null,null,null,null,null,null,null,0,false,1,1]
[null,null,null,null,null,null,null,null,0,false,1,1]
[null,null,null,null,null,null,null,null,0,{"$f":"AND(AND($H4351<>\"Completed\",$A4351<TODAY()),$H4351<>\"\")","v":false},1,1]
[null,null,null,null,null,null,null,null,0,false,1,1]
[null,null,null,null,null,null,null,null,0,false,1,1]
[null,null,null,null,null,null,null,null,0,false,1,1]
[null,null,null,null,null,null,null,null,0,false,1,1]
[null,null,null,null,null,null,null,null,0,false,1,1]
[null,null,null,null,null,null,null,null,0,false,1,1]
[null,null,null,null,null,null,null,null,0,false,1,1]
[null,null,null,null,null,null,null,null,0,false,{"$f":"IF(AND(H4359<>\"Completed\",H4359<>\"Canceled\"), 1, 0)","v":1},1]
[null,null,null,null,null,null,null,null,{"$f":"IF(H4360=\"Completed\",1,0)","v":0},false,1,{"$f":"SUM(I4360,K4360)","v":1}]
[null,null,null,null,null,null,null,null,0,false,1,1]
[null,null,null,null,null,null,null,null,0,false,1,1]
[null,null,null,null,null,null,null,null,0,false,1,1]
[null,null,null,null,null,null,null,null,0,false,1,1]
[null,null,null,null,null,null,null,null,0,false,1,1]
[null,null,null,null,null,null,null,null,0,false,1,1]
[null,null,null,null,null,null,null,null,0,false,1,1]
[null,null,null,null,null,null,null,null,0,false,1,1]
[null,null,null,null,null,null,null,null,0,false,1,1]
[null,null,null,null,null,null,null,null,0,false,1,1]
[null,null,null,null,null,null,null,null,0,false,1,1]
[null,null,null,null,null,null,null,null,0,false,1,1]
[null,null,null,null,null,null,null,null,0,false,1,1]
[null,null,null,null,null,null,null,null,0,false,1,1]
[null,null,null,null,null,null,null,null,0,false,1,1]
[null,null,null,null,null,null,null,null,0,false,1,1]
[null,null,null,null,null,null,null,null,0,false,1,1]
[null,null,null,null,null,null,null,null,0,false,1,1]
[null,null,null,null,null,null,null,null,0,false,1,1]
[null,null,null,null,null,null,null,null,0,false,1,1]
[null,null,null,null,null,null,null,null,0,false,1,1]
[null,null,null,null,null,null,null,null,0,false,1,1]
[null,null,null,null,null,null,null,null,0,false,1,1]
[null,null,null,null,null,null,null,null,0,false,1,1]
[null,null,null,null,null,null,null,null,0,false,1,1]
[null,null,null,null,null,null,null,null,0,false,1,1]
[null,null,null,null,null,null,null,null,0,false,1,1]
[null,null,null,null,null,null,null,null,0,false,1,1]
[null,null,null,null,null,null,null,null,0,false,1,1]
[null,null,null,null,null,null,null,null,0,false,1,1]
[null,null,null,null,null,null,null,null,0,false,1,1]
[null,null,null,null,null,null,null,null,0,false,1,1]
[null,null,null,null,null,null,null,null,0,false,1,1]
[null,null,null,null,null,null,null,null,0,false,1,1]
[null,null,null,null,null,null,null,null,0,false,1,1]
[null,null,null,null,null,null,null,null,0,false,1,1]
[null,null,null,null,null,null,null,null,0,false,1,1]
[null,null,null,null,null,null,null,null,0,false,1,1]
[null,null,null,null,null,null,null,null,0,false,1,1]
[null,null,null,null,null,null,null,null,0,false,1,1]
[null,null,null,null,null,null,null,null,0,false,1,1]
[null,null,null,null,null,null,null,null,0,false,1,1]
[null,null,null,null,null,null,null,null,0,false,1,1]
[null,null,null,null,null,null,null,null,0,false,1,1]
[null,null,null,null,null,null,null,null,0,false,1,1]
[null,null,null,null,null,null,null,null,0,false,1,1]
[null,null,null,null,null,null,null,null,0,false,1,1]
[null,null,null,null,null,null,null,null,0,false,1,1]
[null,null,null,null,null,null,null,null,0,false,1,1]
[null,null,null,null,null,null,null,null,0,false,1,1]
[null,null,null,null,null,null,null,null,0,false,1,1]
[null,null,null,null,null,null,null,null,0,false,1,1]
[null,null,null,null,null,null,null,null,0,false,1,1]
[null,null,null,null,null,null,null,null,0,false,1,1]
[null,null,null,null,null,null,null,null,0,{"$f":"AND(AND($H4415<>\"Completed\",$A4415<TODAY()),$H4415<>\"\")","v":false},1,1]
[null,null,null,null,null,null,null,null,0,false,1,1]
[null,null,null,null,null,null,null,null,0,false,1,1]
[null,null,null,null,null,null,null,null,0,false,1,1]
[null,null,null,null,null,null,null,null,0,false,1,1]
[null,null,null,null,null,null,null,null,0,false,1,1]
[null,null,null,null,null,null,null,null,0,false,1,1]
[null,null,null,null,null,null,null,null,0,false,1,1]
[null,null,null,null,null,null,null,null,0,false,{"$f":"IF(AND(H4423<>\"Completed\",H4423<>\"Canceled\"), 1, 0)","v":1},1]
[null,null,null,null,null,null,null,null,{"$f":"IF(H4424=\"Completed\",1,0)","v":0},false,1,{"$f":"SUM(I4424,K4424)","v":1}]
[null,null,null,null,null,null,null,null,0,false,1,1]
[null,null,null,null,null,null,null,null,0,false,1,1]
[null,null,null,null,null,null,null,null,0,false,1,1]
[null,null,null,null,null,null,null,null,0,false,1,1]
[null,null,null,null,null,null,null,null,0,false,1,1]
[null,null,null,null,null,null,null,null,0,false,1,1]
[null,null,null,null,null,null,null,null,0,false,1,1]
[null,null,null,null,null,null,null,null,0,false,1,1]
[null,null,null,null,null,null,null,null,0,false,1,1]
[null,null,null,null,null,null,null,null,0,false,1,1]
[null,null,null,null,null,null,null,null,0,false,1,1]
[null,null,null,null,null,null,null,null,0,false,1,1]
[null,null,null,null,null,null,null,null,0,false,1,1]
[null,null,null,null,null,null,null,null,0,false,1,1]
[null,null,null,null,null,null,null,null,0,false,1,1]
[null,null,null,null,null,null,null,null,0,false,1,1]
[null,null,null,null,null,null,null,null,0,false,1,1]
[null,null,null,null,null,null,null,null,0,false,1,1]
[null,null,null,null,null,null,null,null,0,false,1,1]
[null,null,null,null,null,null,null,null,0,false,1,1]
[null,null,null,null,null,null,null,null,0,false,1,1]
[null,null,null,null,null,null,null,null,0,false,1,1]
[null,null,null,null,null,null,null,null,0,false,1,1]
[null,null,null,null,null,null,null,null,0,false,1,1]
[null,null,null,null,null,null,null,null,0,false,1,1]
[null,null,null,null,null,null,null,null,0,false,1,1]
[null,null,null,null,null,null,null,null,0,false,1,1]
[null,null,null,null,null,null,null,null,0,false,1,1]
[null,null,null,null,null,null,null,null,0,false,1,1]
[null,null,null,null,null,null,null,null,0,false,1,1]
[null,null,null,null,null,null,null,null,0,false,1,1]
[null,null,null,null,null,null,null,null,0,false,1,1]
[null,null,null,null,null,null,null,null,0,false,1,1]
[null,null,null,null,null,null,null,null,0,false,1,1]
[null,null,null,null,null,null,null,null,0,false,1,1]
[null,null,null,null,null,null,null,null,0,false,1,1]
[null,null,null,null,null,null,null,null,0,false,1,1]
[null,null,null,null,null,null,null,null,0,false,1,1]
[null,null,null,null,null,null,null,null,0,false,1,1]
[null,null,null,null,null,null,null,null,0,false,1,1]
[null,null,null,null,null,null,null,null,0,false,1,1]
[null,null,null,null,null,null,null,null,0,false,1,1]
[null,null,null,null,null,null,null,null,0,false,1,1]
[null,null,null,null,null,null,null,null,0,false,1,1]
[null,null,null,null,null,null,null,null,0,false,1,1]
[null,null,null,null,null,null,null,null,0,false,1,1]
[null,null,null,null,null,null,null,null,0,false,1,1]
[null,null,null,null,null,null,null,null,0,false,1,1]
[null,null,null,null,null,null,null,null,0,false,1,1]
[null,null,null,null,null,null,null,null,0,false,1,1]
[null,null,null,null,null,null,null,null,0,false,1,1]
[null,null,null,null,null,null,null,null,0,false,1,1]
[null,null,null,null,null,null,null,null,0,false,1,1]
[null,null,null,null,null,null,null,null,0,false,1,1]
[null,null,null,null,null,null,null,null,0,{"$f":"AND(AND($H4479<>\"Completed\",$A4479<TODAY()),$H4479<>\"\")","v":false},1,1]
[null,null,null,null,null,null,null,null,0,false,1,1]
[null,null,null,null,null,null,null,null,0,false,1,1]
[null,null,null,null,null,null,null,null,0,false,1,1]
[null,null,null,null,null,null,null,null,0,false,1,1]
[null,null,null,null,null,null,null,null,0,false,1,1]
[null,null,null,null,null,null,null,null,0,false,1,1]
[null,null,null,null,null,null,null,null,0,false,1,1]
[null,null,null,null,null,null,null,null,0,false,{"$f":"IF(AND(H4487<>\"Completed\",H4487<>\"Canceled\"), 1, 0)","v":1},1]
[null,null,null,null,null,null,null,null,{"$f":"IF(H4488=\"Completed\",1,0)","v":0},false,1,{"$f":"SUM(I4488,K4488)","v":1}]
[null,null,null,null,null,null,null,null,0,false,1,1]
[null,null,null,null,null,null,null,null,0,false,1,1]
[null,null,null,null,null,null,null,null,0,false,1,1]
[null,null,null,null,null,null,null,null,0,false,1,1]
[null,null,null,null,null,null,null,null,0,false,1,1]
[null,null,null,null,null,null,null,null,0,false,1,1]
[null,null,null,null,null,null,null,null,0,false,1,1]
[null,null,null,null,null,null,null,null,0,false,1,1]
[null,null,null,null,null,null,null,null,0,false,1,1]
[null,null,null,null,null,null,null,null,0,false,1,1]
[null,null,null,null,null,null,null,null,0,false,1,1]
[null,null,null,null,null,null,null,null,0,false,1,1]
[null,null,null,null,null,null,null,null,0,false,1,1]
[null,null,null,null,null,null,null,null,0,false,1,1]
[null,null,null,null,null,null,null,null,0,false,1,1]
[null,null,null,null,null,null,null,null,0,false,1,1]
[null,null,null,null,null,null,null,null,0,false,1,1]
[null,null,null,null,null,null,null,null,0,false,1,1]
[null,null,null,null,null,null,null,null,0,false,1,1]
[null,null,null,null,null,null,null,null,0,false,1,1]
[null,null,null,null,null,null,null,null,0,false,1,1]
[null,null,null,null,null,null,null,null,0,false,1,1]
[null,null,null,null,null,null,null,null,0,false,1,1]
[null,null,null,null,null,null,null,null,0,false,1,1]
[null,null,null,null,null,null,null,null,0,false,1,1]
[null,null,null,null,null,null,null,null,0,false,1,1]
[null,null,null,null,null,null,null,null,0,false,1,1]
[null,null,null,null,null,null,null,null,0,false,1,1]
[null,null,null,null,null,null,null,null,0,false,1,1]
[null,null,null,null,null,null,null,null,0,false,1,1]
[null,null,null,null,null,null,null,null,0,false,1,1]
[null,null,null,null,null,null,null,null,0,false,1,1]
[null,null,null,null,null,null,null,null,0,false,1,1]
[null,null,null,null,null,null,null,null,0,false,1,1]
[null,null,null,null,null,null,null,null,0,false,1,1]
[null,null,null,null,null,null,null,null,0,false,1,1]
[null,null,null,null,null,null,null,null,0,false,1,1]
[null,null,null,null,null,null,null,null,0,false,1,1]
[null,null,null,null,null,null,null,null,0,false,1,1]
[null,null,null,null,null,null,null,null,0,false,1,1]
[null,null,null,null,null,null,null,null,0,false,1,1]
[null,null,null,null,null,null,null,null,0,false,1,1]
[null,null,null,null,null,null,null,null,0,false,1,1]
[null,null,null,null,null,null,null,null,0,false,1,1]
[null,null,null,null,null,null,null,null,0,false,1,1]
[null,null,null,null,null,null,null,null,0,false,1,1]
[null,null,null,null,null,null,null,null,0,false,1,1]
[null,null,null,null,null,null,null,null,0,false,1,1]
[null,null,null,null,null,null,null,null,0,false,1,1]
[null,null,null,null,null,null,null,null,0,false,1,1]
[null,null,null,null,null,null,null,null,0,false,1,1]
[null,null,null,null,null,null,null,null,0,false,1,1]
[null,null,null,null,null,null,null,null,0,false,1,1]
[null,null,null,null,null,null,null,null,0,false,1,1]
[null,null,null,null,null,null,null,null,0,{"$f":"AND(AND($H4543<>\"Completed\",$A4543<TODAY()),$H4543<>\"\")","v":false},1,1]
[null,null,null,null,null,null,null,null,0,false,1,1]
[null,null,null,null,null,null,null,null,0,false,1,1]
[null,null,null,null,null,null,null,null,0,false,1,1]
[null,null,null,null,null,null,null,null,0,false,1,1]
[null,null,null,null,null,null,null,null,0,false,1,1]
[null,null,null,null,null,null,null,null,0,false,1,1]
[null,null,null,null,null,null,null,null,0,false,1,1]
[null,null,null,null,null,null,null,null,0,false,{"$f":"IF(AND(H4551<>\"Completed\",H4551<>\"Canceled\"), 1, 0)","v":1},1]
[null,null,null,null,null,null,null,null,{"$f":"IF(H4552=\"Completed\",1,0)","v":0},false,1,{"$f":"SUM(I4552,K4552)","v":1}]
[null,null,null,null,null,null,null,null,0,false,1,1]
[null,null,null,null,null,null,null,null,0,false,1,1]
[null,null,null,null,null,null,null,null,0,false,1,1]
[null,null,null,null,null,null,null,null,0,false,1,1]
[null,null,null,null,null,null,null,null,0,false,1,1]
[null,null,null,null,null,null,null,null,0,false,1,1]
[null,null,null,null,null,null,null,null,0,false,1,1]
[null,null,null,null,null,null,null,null,0,false,1,1]
[null,null,null,null,null,null,null,null,0,false,1,1]
[null,null,null,null,null,null,null,null,0,false,1,1]
[null,null,null,null,null,null,null,null,0,false,1,1]
[null,null,null,null,null,null,null,null,0,false,1,1]
[null,null,null,null,null,null,null,null,0,false,1,1]
[null,null,null,null,null,null,null,null,0,false,1,1]
[null,null,null,null,null,null,null,null,0,false,1,1]
[null,null,null,null,null,null,null,null,0,false,1,1]
[null,null,null,null,null,null,null,null,0,false,1,1]
[null,null,null,null,null,null,null,null,0,false,1,1]
[null,null,null,null,null,null,null,null,0,false,1,1]
[null,null,null,null,null,null,null,null,0,false,1,1]
[null,null,null,null,null,null,null,null,0,false,1,1]
[null,null,null,null,null,null,null,null,0,false,1,1]
[null,null,null,null,null,null,null,null,0,false,1,1]
[null,null,null,null,null,null,null,null,0,false,1,1]
[null,null,null,null,null,null,null,null,0,false,1,1]
[null,null,null,null,null,null,null,null,0,false,1,1]
[null,null,null,null,null,null,null,null,0,false,1,1]
[null,null,null,null,null,null,null,null,0,false,1,1]
[null,null,null,null,null,null,null,null,0,false,1,1]
[null,null,null,null,null,null,null,null,0,false,1,1]
[null,null,null,null,null,null,null,null,0,false,1,1]
[null,null,null,null,null,null,null,null,0,false,1,1]
[null,null,null,null,null,null,null,null,0,false,1,1]
[null,null,null,null,null,null,null,null,0,false,1,1]
[null,null,null,null,null,null,null,null,0,false,1,1]
[null,null,null,null,null,null,null,null,0,false,1,1]
[null,null,null,null,null,null,null,null,0,false,1,1]
[null,null,null,null,null,null,null,null,0,false,1,1]
[null,null,null,null,null,null,null,null,0,false,1,1]
[null,null,null,null,null,null,null,null,0,false,1,1]
[null,null,null,null,null,null,null,null,0,false,1,1]
[null,null,null,null,null,null,null,null,0,false,1,1]
[null,null,null,null,null,null,null,null,0,false,1,1]
[null,null,null,null,null,null,null,null,0,false,1,1]
[null,null,null,null,null,null,null,null,0,false,1,1]
[null,null,null,null,null,null,null,null,0,false,1,1]
[null,null,null,null,null,null,null,null,0,false,1,1]
[null,null,null,null,null,null,null,null,0,false,1,1]
[null,null,null,null,null,null,null,null,0,false,1,1]
[null,null,null,null,null,null,null,null,0,false,1,1]
[null,null,null,null,null,null,null,null,0,false,1,1]
[null,null,null,null,null,null,null,null,0,false,1,1]
[null,null,null,null,null,null,null,null,0,false,1,1]
[null,null,null,null,null,null,null,null,0,false,1,1]
[null,null,null,null,null,null,null,null,0,{"$f":"AND(AND($H4607<>\"Completed\",$A4607<TODAY()),$H4607<>\"\")","v":false},1,1]
[null,null,null,null,null,null,null,null,0,false,1,1]
[null,null,null,null,null,null,null,null,0,false,1,1]
[null,null,null,null,null,null,null,null,0,false,1,1]
[null,null,null,null,null,null,null,null,0,false,1,1]
[null,null,null,null,null,null,null,null,0,false,1,1]
[null,null,null,null,null,null,null,null,0,false,1,1]
[null,null,null,null,null,null,null,null,0,false,1,1]
[null,null,null,null,null,null,null,null,0,false,{"$f":"IF(AND(H4615<>\"Completed\",H4615<>\"Canceled\"), 1, 0)","v":1},1]
[null,null,null,null,null,null,null,null,{"$f":"IF(H4616=\"Completed\",1,0)","v":0},false,1,{"$f":"SUM(I4616,K4616)","v":1}]
[null,null,null,null,null,null,null,null,0,false,1,1]
[null,null,null,null,null,null,null,null,0,false,1,1]
[null,null,null,null,null,null,null,null,0,false,1,1]
[null,null,null,null,null,null,null,null,0,false,1,1]
[null,null,null,null,null,null,null,null,0,false,1,1]
[null,null,null,null,null,null,null,null,0,false,1,1]
[null,null,null,null,null,null,null,null,0,false,1,1]
[null,null,null,null,null,null,null,null,0,false,1,1]
[null,null,null,null,null,null,null,null,0,false,1,1]
[null,null,null,null,null,null,null,null,0,false,1,1]
[null,null,null,null,null,null,null,null,0,false,1,1]
[null,null,null,null,null,null,null,null,0,false,1,1]
[null,null,null,null,null,null,null,null,0,false,1,1]
[null,null,null,null,null,null,null,null,0,false,1,1]
[null,null,null,null,null,null,null,null,0,false,1,1]
[null,null,null,null,null,null,null,null,0,false,1,1]
[null,null,null,null,null,null,null,null,0,false,1,1]
[null,null,null,null,null,null,null,null,0,false,1,1]
[null,null,null,null,null,null,null,null,0,false,1,1]
[null,null,null,null,null,null,null,null,0,false,1,1]
[null,null,null,null,null,null,null,null,0,false,1,1]
[null,null,null,null,null,null,null,null,0,false,1,1]
[null,null,null,null,null,null,null,null,0,false,1,1]
[null,null,null,null,null,null,null,null,0,false,1,1]
[null,null,null,null,null,null,null,null,0,false,1,1]
[null,null,null,null,null,null,null,null,0,false,1,1]
[null,null,null,null,null,null,null,null,0,false,1,1]
[null,null,null,null,null,null,null,null,0,false,1,1]
[null,null,null,null,null,null,null,null,0,false,1,1]
[null,null,null,null,null,null,null,null,0,false,1,1]
[null,null,null,null,null,null,null,null,0,false,1,1]
[null,null,null,null,null,null,null,null,0,false,1,1]
[null,null,null,null,null,null,null,null,0,false,1,1]
[null,null,null,null,null,null,null,null,0,false,1,1]
[null,null,null,null,null,null,null,null,0,false,1,1]
[null,null,null,null,null,null,null,null,0,false,1,1]
[null,null,null,null,null,null,null,null,0,false,1,1]
[null,null,null,null,null,null,null,null,0,false,1,1]
[null,null,null,null,null,null,null,null,0,false,1,1]
[null,null,null,null,null,null,null,null,0,false,1,1]
[null,null,null,null,null,null,null,null,0,false,1,1]
[null,null,null,null,null,null,null,null,0,false,1,1]
[null,null,null,null,null,null,null,null,0,false,1,1]
[null,null,null,null,null,null,null,null,0,false,1,1]
[null,null,null,null,null,null,null,null,0,false,1,1]
[null,null,null,null,null,null,null,null,0,false,1,1]
[null,null,null,null,null,null,null,null,0,false,1,1]
[null,null,null,null,null,null,null,null,0,false,1,1]
[null,null,null,null,null,null,null,null,0,false,1,1]
[null,null,null,null,null,null,null,null,0,false,1,1]
[null,null,null,null,null,null,null,null,0,false,1,1]
[null,null,null,null,null,null,null,null,0,false,1,1]
[null,null,null,null,null,null,null,null,0,false,1,1]
[null,null,null,null,null,null,null,null,0,false,1,1]
[null,null,null,null,null,null,null,null,0,{"$f":"AND(AND($H4671<>\"Completed\",$A4671<TODAY()),$H4671<>\"\")","v":false},1,1]
[null,null,null,null,null,null,null,null,0,false,1,1]
[null,null,null,null,null,null,null,null,0,false,1,1]
[null,null,null,null,null,null,null,null,0,false,1,1]
[null,null,null,null,null,null,null,null,0,false,1,1]
[null,null,null,null,null,null,null,null,0,false,1,1]
[null,null,null,null,null,null,null,null,0,false,1,1]
[null,null,null,null,null,null,null,null,0,false,1,1]
[null,null,null,null,null,null,null,null,0,false,{"$f":"IF(AND(H4679<>\"Completed\",H4679<>\"Canceled\"), 1, 0)","v":1},1]
[null,null,null,null,null,null,null,null,{"$f":"IF(H4680=\"Completed\",1,0)","v":0},false,1,{"$f":"SUM(I4680,K4680)","v":1}]
[null,null,null,null,null,null,null,null,0,false,1,1]
[null,null,null,null,null,null,null,null,0,false,1,1]
[null,null,null,null,null,null,null,null,0,false,1,1]
[null,null,null,null,null,null,null,null,0,false,1,1]
[null,null,null,null,null,null,null,null,0,false,1,1]
[null,null,null,null,null,null,null,null,0,false,1,1]
[null,null,null,null,null,null,null,null,0,false,1,1]
[null,null,null,null,null,null,null,null,0,false,1,1]
[null,null,null,null,null,null,null,null,0,false,1,1]
[null,null,null,null,null,null,null,null,0,false,1,1]
[null,null,null,null,null,null,null,null,0,false,1,1]
[null,null,null,null,null,null,null,null,0,false,1,1]
[null,null,null,null,null,null,null,null,0,false,1,1]
[null,null,null,null,null,null,null,null,0,false,1,1]
[null,null,null,null,null,null,null,null,0,false,1,1]
[null,null,null,null,null,null,null,null,0,false,1,1]
[null,null,null,null,null,null,null,null,0,false,1,1]
[null,null,null,null,null,null,null,null,0,false,1,1]
[null,null,null,null,null,null,null,null,0,false,1,1]
[null,null,null,null,null,null,null,null,0,false,1,1]
[null,null,null,null,null,null,null,null,0,false,1,1]
[null,null,null,null,null,null,null,null,0,false,1,1]
[null,null,null,null,null,null,null,null,0,false,1,1]
[null,null,null,null,null,null,null,null,0,false,1,1]
[null,null,null,null,null,null,null,null,0,false,1,1]
[null,null,null,null,null,null,null,null,0,false,1,1]
[null,null,null,null,null,null,null,null,0,false,1,1]
[null,null,null,null,null,null,null,null,0,false,1,1]
[null,null,null,null,null,null,null,null,0,false,1,1]
[null,null,null,null,null,null,null,null,0,false,1,1]
[null,null,null,null,null,null,null,null,0,false,1,1]
[null,null,null,null,null,null,null,null,0,false,1,1]
[null,null,null,null,null,null,null,null,0,false,1,1]
[null,null,null,null,null,null,null,null,0,false,1,1]
[null,null,null,null,null,null,null,null,0,false,1,1]
[null,null,null,null,null,null,null,null,0,false,1,1]
[null,null,null,null,null,null,null,null,0,false,1,1]
[null,null,null,null,null,null,null,null,0,false,1,1]
[null,null,null,null,null,null,null,null,0,false,1,1]
[null,null,null,null,null,null,null,null,0,false,1,1]
[null,null,null,null,null,null,null,null,0,false,1,1]
[null,null,null,null,null,null,null,null,0,false,1,1]
[null,null,null,null,null,null,null,null,0,false,1,1]
[null,null,null,null,null,null,null,null,0,false,1,1]
[null,null,null,null,null,null,null,null,0,false,1,1]
[null,null,null,null,null,null,null,null,0,false,1,1]
[null,null,null,null,null,null,null,null,0,false,1,1]
[null,null,null,null,null,null,null,null,0,false,1,1]
[null,null,null,null,null,null,null,null,0,false,1,1]
[null,null,null,null,null,null,null,null,0,false,1,1]
[null,null,null,null,null,null,null,null,0,false,1,1]
[null,null,null,null,null,null,null,null,0,false,1,1]
[null,null,null,null,null,null,null,null,0,false,1,1]
[null,null,null,null,null,null,null,null,0,false,1,1]
[null,null,null,null,null,null,null,null,0,{"$f":"AND(AND($H4735<>\"Completed\",$A4735<TODAY()),$H4735<>\"\")","v":false},1,1]
[null,null,null,null,null,null,null,null,0,false,1,1]
[null,null,null,null,null,null,null,null,0,false,1,1]
[null,null,null,null,null,null,null,null,0,false,1,1]
[null,null,null,null,null,null,null,null,0,false,1,1]
[null,null,null,null,null,null,null,null,0,false,1,1]
[null,null,null,null,null,null,null,null,0,false,1,1]
[null,null,null,null,null,null,null,null,0,false,1,1]
[null,null,null,null,null,null,null,null,0,false,{"$f":"IF(AND(H4743<>\"Completed\",H4743<>\"Canceled\"), 1, 0)","v":1},1]
[null,null,null,null,null,null,null,null,{"$f":"IF(H4744=\"Completed\",1,0)","v":0},false,1,{"$f":"SUM(I4744,K4744)","v":1}]
[null,null,null,null,null,null,null,null,0,false,1,1]
[null,null,null,null,null,null,null,null,0,false,1,1]
[null,null,null,null,null,null,null,null,0,false,1,1]
[null,null,null,null,null,null,null,null,0,false,1,1]
[null,null,null,null,null,null,null,null,0,false,1,1]
[null,null,null,null,null,null,null,null,0,false,1,1]
[null,null,null,null,null,null,null,null,0,false,1,1]
[null,null,null,null,null,null,null,null,0,false,1,1]
[null,null,null,null,null,null,null,null,0,false,1,1]
[null,null,null,null,null,null,null,null,0,false,1,1]
[null,null,null,null,null,null,null,null,0,false,1,1]
[null,null,null,null,null,null,null,null,0,false,1,1]
[null,null,null,null,null,null,null,null,0,false,1,1]
[null,null,null,null,null,null,null,null,0,false,1,1]
[null,null,null,null,null,null,null,null,0,false,1,1]
[null,null,null,null,null,null,null,null,0,false,1,1]
[null,null,null,null,null,null,null,null,0,false,1,1]
[null,null,null,null,null,null,null,null,0,false,1,1]
[null,null,null,null,null,null,null,null,0,false,1,1]
[null,null,null,null,null,null,null,null,0,false,1,1]
[null,null,null,null,null,null,null,null,0,false,1,1]
[null,null,null,null,null,null,null,null,0,false,1,1]
[null,null,null,null,null,null,null,null,0,false,1,1]
[null,null,null,null,null,null,null,null,0,false,1,1]
[null,null,null,null,null,null,null,null,0,false,1,1]
[null,null,null,null,null,null,null,null,0,false,1,1]
[null,null,null,null,null,null,null,null,0,false,1,1]
[null,null,null,null,null,null,null,null,0,false,1,1]
[null,null,null,null,null,null,null,null,0,false,1,1]
[null,null,null,null,null,null,null,null,0,false,1,1]
[null,null,null,null,null,null,null,null,0,false,1,1]
[null,null,null,null,null,null,null,null,0,false,1,1]
[null,null,null,null,null,null,null,null,0,false,1,1]
[null,null,null,null,null,null,null,null,0,false,1,1]
[null,null,null,null,null,null,null,null,0,false,1,1]
[null,null,null,null,null,null,null,null,0,false,1,1]
[null,null,null,null,null,null,null,null,0,false,1,1]
[null,null,null,null,null,null,null,null,0,false,1,1]
[null,null,null,null,null,null,null,null,0,false,1,1]
[null,null,null,null,null,null,null,null,0,false,1,1]
[null,null,null,null,null,null,null,null,0,false,1,1]
[null,null,null,null,null,null,null,null,0,false,1,1]
[null,null,null,null,null,null,null,null,0,false,1,1]
[null,null,null,null,null,null,null,null,0,false,1,1]
[null,null,null,null,null,null,null,null,0,false,1,1]
[null,null,null,null,null,null,null,null,0,false,1,1]
[null,null,null,null,null,null,null,null,0,false,1,1]
[null,null,null,null,null,null,null,null,0,false,1,1]
[null,null,null,null,null,null,null,null,0,false,1,1]
[null,null,null,null,null,null,null,null,0,false,1,1]
[null,null,null,null,null,null,null,null,0,false,1,1]
[null,null,null,null,null,null,null,null,0,false,1,1]
[null,null,null,null,null,null,null,null,0,false,1,1]
[null,null,null,null,null,null,null,null,0,false,1,1]
[null,null,null,null,null,null,null,null,0,{"$f":"AND(AND($H4799<>\"Completed\",$A4799<TODAY()),$H4799<>\"\")","v":false},1,1]
[null,null,null,null,null,null,null,null,0,false,1,1]
[null,null,null,null,null,null,null,null,0,false,1,1]
[null,null,null,null,null,null,null,null,0,false,1,1]
[null,null,null,null,null,null,null,null,0,false,1,1]
[null,null,null,null,null,null,null,null,0,false,1,1]
[null,null,null,null,null,null,null,null,0,false,1,1]
[null,null,null,null,null,null,null,null,0,false,1,1]
[null,null,null,null,null,null,null,null,0,false,{"$f":"IF(AND(H4807<>\"Completed\",H4807<>\"Canceled\"), 1, 0)","v":1},1]
[null,null,null,null,null,null,null,null,{"$f":"IF(H4808=\"Completed\",1,0)","v":0},false,1,{"$f":"SUM(I4808,K4808)","v":1}]
[null,null,null,null,null,null,null,null,0,false,1,1]
[null,null,null,null,null,null,null,null,0,false,1,1]
[null,null,null,null,null,null,null,null,0,false,1,1]
[null,null,null,null,null,null,null,null,0,false,1,1]
[null,null,null,null,null,null,null,null,0,false,1,1]
[null,null,null,null,null,null,null,null,0,false,1,1]
[null,null,null,null,null,null,null,null,0,false,1,1]
[null,null,null,null,null,null,null,null,0,false,1,1]
[null,null,null,null,null,null,null,null,0,false,1,1]
[null,null,null,null,null,null,null,null,0,false,1,1]
[null,null,null,null,null,null,null,null,0,false,1,1]
[null,null,null,null,null,null,null,null,0,false,1,1]
[null,null,null,null,null,null,null,null,0,false,1,1]
[null,null,null,null,null,null,null,null,0,false,1,1]
[null,null,null,null,null,null,null,null,0,false,1,1]
[null,null,null,null,null,null,null,null,0,false,1,1]
[null,null,null,null,null,null,null,null,0,false,1,1]
[null,null,null,null,null,null,null,null,0,false,1,1]
[null,null,null,null,null,null,null,null,0,false,1,1]
[null,null,null,null,null,null,null,null,0,false,1,1]
[null,null,null,null,null,null,null,null,0,false,1,1]
[null,null,null,null,null,null,null,null,0,false,1,1]
[null,null,null,null,null,null,null,null,0,false,1,1]
[null,null,null,null,null,null,null,null,0,false,1,1]
[null,null,null,null,null,null,null,null,0,false,1,1]
[null,null,null,null,null,null,null,null,0,false,1,1]
[null,null,null,null,null,null,null,null,0,false,1,1]
[null,null,null,null,null,null,null,null,0,false,1,1]
[null,null,null,null,null,null,null,null,0,false,1,1]
[null,null,null,null,null,null,null,null,0,false,1,1]
[null,null,null,null,null,null,null,null,0,false,1,1]
[null,null,null,null,null,null,null,null,0,false,1,1]
[null,null,null,null,null,null,null,null,0,false,1,1]
[null,null,null,null,null,null,null,null,0,false,1,1]
[null,null,null,null,null,null,null,null,0,false,1,1]
[null,null,null,null,null,null,null,null,0,false,1,1]
[null,null,null,null,null,null,null,null,0,false,1,1]
[null,null,null,null,null,null,null,null,0,false,1,1]
[null,null,null,null,null,null,null,null,0,false,1,1]
[null,null,null,null,null,null,null,null,0,false,1,1]
[null,null,null,null,null,null,null,null,0,false,1,1]
[null,null,null,null,null,null,null,null,0,false,1,1]
[null,null,null,null,null,null,null,null,0,false,1,1]
[null,null,null,null,null,null,null,null,0,false,1,1]
[null,null,null,null,null,null,null,null,0,false,1,1]
[null,null,null,null,null,null,null,null,0,false,1,1]
[null,null,null,null,null,null,null,null,0,false,1,1]
[null,null,null,null,null,null,null,null,0,false,1,1]
[null,null,null,null,null,null,null,null,0,false,1,1]
[null,null,null,null,null,null,null,null,0,false,1,1]
[null,null,null,null,null,null,null,null,0,false,1,1]
[null,null,null,null,null,null,null,null,0,false,1,1]
[null,null,null,null,null,null,null,null,0,false,1,1]
[null,null,null,null,null,null,null,null,0,false,1,1]
[null,null,null,null,null,null,null,null,0,{"$f":"AND(AND($H4863<>\"Completed\",$A4863<TODAY()),$H4863<>\"\")","v":false},1,1]
[null,null,null,null,null,null,null,null,0,false,1,1]
[null,null,null,null,null,null,null,null,0,false,1,1]
[null,null,null,null,null,null,null,null,0,false,1,1]
[null,null,null,null,null,null,null,null,0,false,1,1]
[null,null,null,null,null,null,null,null,0,false,1,1]
[null,null,null,null,null,null,null,null,0,false,1,1]
[null,null,null,null,null,null,null,null,0,false,1,1]
[null,null,null,null,null,null,null,null,0,false,{"$f":"IF(AND(H4871<>\"Completed\",H4871<>\"Canceled\"), 1, 0)","v":1},1]
[null,null,null,null,null,null,null,null,{"$f":"IF(H4872=\"Completed\",1,0)","v":0},false,1,{"$f":"SUM(I4872,K4872)","v":1}]
[null,null,null,null,null,null,null,null,0,false,1,1]
[null,null,null,null,null,null,null,null,0,false,1,1]
[null,null,null,null,null,null,null,null,0,false,1,1]
[null,null,null,null,null,null,null,null,0,false,1,1]
[null,null,null,null,null,null,null,null,0,false,1,1]
[null,null,null,null,null,null,null,null,0,false,1,1]
[null,null,null,null,null,null,null,null,0,false,1,1]
[null,null,null,null,null,null,null,null,0,false,1,1]
[null,null,null,null,null,null,null,null,0,false,1,1]
[null,null,null,null,null,null,null,null,0,false,1,1]
[null,null,null,null,null,null,null,null,0,false,1,1]
[null,null,null,null,null,null,null,null,0,false,1,1]
[null,null,null,null,null,null,null,null,0,false,1,1]
[null,null,null,null,null,null,null,null,0,false,1,1]
[null,null,null,null,null,null,null,null,0,false,1,1]
[null,null,null,null,null,null,null,null,0,false,1,1]
[null,null,null,null,null,null,null,null,0,false,1,1]
[null,null,null,null,null,null,null,null,0,false,1,1]
[null,null,null,null,null,null,null,null,0,false,1,1]
[null,null,null,null,null,null,null,null,0,false,1,1]
[null,null,null,null,null,null,null,null,0,false,1,1]
[null,null,null,null,null,null,null,null,0,false,1,1]
[null,null,null,null,null,null,null,null,0,false,1,1]
[null,null,null,null,null,null,null,null,0,false,1,1]
[null,null,null,null,null,null,null,null,0,false,1,1]
[null,null,null,null,null,null,null,null,0,false,1,1]
[null,null,null,null,null,null,null,null,0,false,1,1]
[null,null,null,null,null,null,null,null,0,false,1,1]
[null,null,null,null,null,null,null,null,0,false,1,1]
[null,null,null,null,null,null,null,null,0,false,1,1]
[null,null,null,null,null,null,null,null,0,false,1,1]
[null,null,null,null,null,null,null,null,0,false,1,1]
[null,null,null,null,null,null,null,null,0,false,1,1]
[null,null,null,null,null,null,null,null,0,false,1,1]
[null,null,null,null,null,null,null,null,0,false,1,1]
[null,null,null,null,null,null,null,null,0,false,1,1]
[null,null,null,null,null,null,null,null,0,false,1,1]
[null,null,null,null,null,null,null,null,0,false,1,1]
[null,null,null,null,null,null,null,null,0,false,1,1]
[null,null,null,null,null,null,null,null,0,false,1,1]
[null,null,null,null,null,null,null,null,0,false,1,1]
[null,null,null,null,null,null,null,null,0,false,1,1]
[null,null,null,null,null,null,null,null,0,false,1,1]
[null,null,null,null,null,null,null,null,0,false,1,1]
[null,null,null,null,null,null,null,null,0,false,1,1]
[null,null,null,null,null,null,null,null,0,false,1,1]
[null,null,null,null,null,null,null,null,0,false,1,1]
[null,null,null,null,null,null,null,null,0,false,1,1]
[null,null,null,null,null,null,null,null,0,false,1,1]
[null,null,null,null,null,null,null,null,0,false,1,1]
[null,null,null,null,null,null,null,null,0,false,1,1]
[null,null,null,null,null,null,null,null,0,false,1,1]
[null,null,null,null,null,null,null,null,0,false,1,1]
[null,null,null,null,null,null,null,null,0,false,1,1]
[null,null,null,null,null,null,null,null,0,{"$f":"AND(AND($H4927<>\"Completed\",$A4927<TODAY()),$H4927<>\"\")","v":false},1,1]
[null,null,null,null,null,null,null,null,0,false,1,1]
[null,null,null,null,null,null,null,null,0,false,1,1]
[null,null,null,null,null,null,null,null,0,false,1,1]
[null,null,null,null,null,null,null,null,0,false,1,1]
[null,null,null,null,null,null,null,null,0,false,1,1]
[null,null,null,null,null,null,null,null,0,false,1,1]
[null,null,null,null,null,null,null,null,0,false,1,1]
[null,null,null,null,null,null,null,null,0,false,{"$f":"IF(AND(H4935<>\"Completed\",H4935<>\"Canceled\"), 1, 0)","v":1},1]
[null,null,null,null,null,null,null,null,{"$f":"IF(H4936=\"Completed\",1,0)","v":0},false,1,{"$f":"SUM(I4936,K4936)","v":1}]
[null,null,null,null,null,null,null,null,0,false,1,1]
[null,null,null,null,null,null,null,null,0,false,1,1]
[null,null,null,null,null,null,null,null,0,false,1,1]
[null,null,null,null,null,null,null,null,0,false,1,1]
[null,null,null,null,null,null,null,null,0,false,1,1]
[null,null,null,null,null,null,null,null,0,false,1,1]
[null,null,null,null,null,null,null,null,0,false,1,1]
[null,null,null,null,null,null,null,null,0,false,1,1]
[null,null,null,null,null,null,null,null,0,false,1,1]
[null,null,null,null,null,null,null,null,0,false,1,1]
[null,null,null,null,null,null,null,null,0,false,1,1]
[null,null,null,null,null,null,null,null,0,false,1,1]
[null,null,null,null,null,null,null,null,0,false,1,1]
[null,null,null,null,null,null,null,null,0,false,1,1]
[null,null,null,null,null,null,null,null,0,false,1,1]
[null,null,null,null,null,null,null,null,0,false,1,1]
[null,null,null,null,null,null,null,null,0,false,1,1]
[null,null,null,null,null,null,null,null,0,false,1,1]
[null,null,null,null,null,null,null,null,0,false,1,1]
[null,null,null,null,null,null,null,null,0,false,1,1]
[null,null,null,null,null,null,null,null,0,false,1,1]
[null,null,null,null,null,null,null,null,0,false,1,1]
[null,null,null,null,null,null,null,null,0,false,1,1]
[null,null,null,null,null,null,null,null,0,false,1,1]
[null,null,null,null,null,null,null,null,0,false,1,1]
[null,null,null,null,null,null,null,null,0,false,1,1]
[null,null,null,null,null,null,null,null,0,false,1,1]
[null,null,null,null,null,null,null,null,0,false,1,1]
[null,null,null,null,null,null,null,null,0,false,1,1]
[null,null,null,null,null,null,null,null,0,false,1,1]
[null,null,null,null,null,null,null,null,0,false,1,1]
[null,null,null,null,null,null,null,null,0,false,1,1]
[null,null,null,null,null,null,null,null,0,false,1,1]
[null,null,null,null,null,null,null,null,0,false,1,1]
[null,null,null,null,null,null,null,null,0,false,1,1]
[null,null,null,null,null,null,null,null,0,false,1,1]
[null,null,null,null,null,null,null,null,0,false,1,1]
[null,null,null,null,null,null,null,null,0,false,1,1]
[null,null,null,null,null,null,null,null,0,false,1,1]
[null,null,null,null,null,null,null,null,0,false,1,1]
[null,null,null,null,null,null,null,null,0,false,1,1]
[null,null,null,null,null,null,null,null,0,false,1,1]
[null,null,null,null,null,null,null,null,0,false,1,1]
[null,null,null,null,null,null,null,null,0,false,1,1]
[null,null,null,null,null,null,null,null,0,false,1,1]
[null,null,null,null,null,null,null,null,0,false,1,1]
[null,null,null,null,null,null,null,null,0,false,1,1]
[null,null,null,null,null,null,null,null,0,false,1,1]
[null,null,null,null,null,null,null,null,0,false,1,1]
[null,null,null,null,null,null,null,null,0,false,1,1]
[null,null,null,null,null,null,null,null,0,false,1,1]
[null,null,null,null,null,null,null,null,0,false,1,1]
[null,null,null,null,null,null,null,null,0,false,1,1]
[null,null,null,null,null,null,null,null,0,false,1,1]
[null,null,null,null,null,null,null,null,0,{"$f":"AND(AND($H4991<>\"Completed\",$A4991<TODAY()),$H4991<>\"\")","v":false},1,1]
[null,null,null,null,null,null,null,null,0,false,1,1]
[null,null,null,null,null,null,null,null,0,false,1,1]
[null,null,null,null,null,null,null,null,0,false,1,1]
[null,null,null,null,null,null,null,null,0,false,1,1]
[null,null,null,null,null,null,null,null,0,false,1,1]
[null,null,null,null,null,null,null,null,0,false,1,1]
[null,null,null,null,null,null,null,null,0,false,1,1]

{"sheet":"Part 3a-Observation tracking","index":3,"n_rows":13,"n_cols":16,"rows_kept":13,"cut":false,"hidden":false,"merged":[[10,13,10,15],[0,0,0,11],[2,0,2,11],[4,0,4,1],[10,5,10,7],[10,0,10,3],[10,9,10,11],[4,3,4,4]]}
["TPP Tier 1 Grant: Observation Planning Tool"]
["Part 3a. Observation tracking",null,null,null,null,null,null,null,"Time Period:","2024-25 Grant Year (Year 2)"]
["User notes: \n- Double check and, if needed, update the time period for this template (Cell J2). We recommend creating a separate workbook for each grant period. \n- This tab uses the data entered in Parts 1 and 2 to provide you with summary tables that display the number of observations planned and completed so far. \n- Do not manually edit the data in the tables below. These tables should only be updated by adding or editing data entered in Parts 1 and 2 of this tool. \n- If this file is saved as a .xlms (macro-enabled Excel file) it will automatically refresh the tables below. If the file is used without macros enabled (.xlsx) \n   you can refresh manually by right clicking any cell in the table and selecting “Refresh.”  "]
[]
["Table 1a. EBPs you are implementing",null,null,"Table 1b. Observations to be scheduled"]
["","Number of sessions required to observe",null,null,"Number of sessions to schedule"]
["Grand Total",null,null,"Grand Total",0]
[]
[]
[]
["Table 2. Completed by EBP",null,null,null,null,"Table 3. Completed by Facilitator",null,null,null,"Table 4. Completed by setting",null,null,null,"Table 5. Completed by location"]
["","Observations scheduled","Observations completed","Total",null,"","Observations scheduled","Observations completed",null,"","Observations scheduled","Observations completed",null,"","Observations scheduled","Observations completed"]
["Grand Total",null,null,null,null,"Grand Total",null,null,null,"Grand Total",null,null,null,"Grand Total"]

{"sheet":"Part 3b-By EBP and Setting","index":4,"n_rows":8,"n_cols":9,"rows_kept":8,"cut":false,"hidden":false,"merged":[[3,0,3,8],[0,0,0,10],[2,0,2,10]]}
["TPP Tier 1 Grant: Observation Planning Tool"]
["Part 3b. Observation tracking",null,null,null,null,null,null,"Time Period:","2024-25 Grant Year (Year 2)"]
["User notes: \n- Double check and, if needed, update the time period for this template (Cell I2). We recommend creating a separate workbook for each grant period. \n- This tab uses the data entered in Parts 1 and 2 to provide you with summary tables that display the number of observations planned and completed so far. \n- Do not manually edit the data in the tables below. These tables should only be updated by adding or editing data entered in Parts 1 and 2 of this tool. \n- If this file is saved as a .xlms (macro-enabled Excel file) it will automatically refresh the tables below. If the file is used without macros enabled (.xlsx) \n   you can refresh manually by right clicking any cell in the table and selecting “Refresh.” "]
["Table 6. Completed by EBP and setting"]
[null,""]
[null,"Total Observations scheduled","Total Observations completed"]
["EBP"]
["Grand Total"]

{"sheet":"Dropdown data","index":5,"n_rows":73,"n_cols":4,"rows_kept":73,"cut":false,"hidden":true,"merged":[]}
["EBPs","Population ","Setting"]
["2gether","Youth ","After school","Scheduled"]
["Adult Identity Mentoring (Project AIM)","Adults","Alternative school","Canceled"]
["AIM 4 Teen Moms","Families","Community college","Completed"]
["All4You!","LGBTQ youth","Elementary school"]
["All4You2!","Expectant and parenting youth","High school"]
["Children's Aid Society (CAS)-Carrera Program","Sexually active youth","Middle school"]
["Choosing the Best JOURNEY","Youth at-risk of or experiencing homelessness","School-based health clinic"]
["Crossroads","Youth involved in the child welfare system","Community-based organization"]
["Familias Unidas","Youth involved in the juvenile justice system","Faith-based organization"]
["Families Talking Together","Youth with developmental disabilities","Health clinic or medical facility"]
["FLASH (high school)","Youth-serving professionals","Mental health clinic"]
["Get Real (middle School)","Males only","Correctional facility"]
["Generations","Females only","Home-based"]
["Girl2Girl","Nonbinary youth","Residential or group home"]
["Health-E you","Transgender youth","Mobile app"]
["Healthy Futures","Youth of any gender","Texting"]
["Health Improvement Project for Teens","African American or Black youth","Website"]
["Heritage Keepers Abstinence Education I ","American Indian or Alaska Native youth","Rural "]
["HORIZONS","Asian","Suburban"]
["IN·clued","Hispanic or Latino of any race","Urban"]
["It's Your Game: Keep It Real","White"]
["LeadHer","Youth of any race or ethnicity"]
["Linking Families and Teens ","6th grade "]
["Love Notes ","7th grade"]
["Making Proud Choices!","8th grade"]
["Making Proud Choices! Out-of-Home Youth","9th grade"]
["Making Proud Choices! California Edition","10th grade"]
["Me&You","11th grade"]
["MyPEEPS Mobile","12th grade"]
["Motivational Interviewing","Mixed grade"]
["Parenting in 2 Worlds"]
["Peer Group Connection – High School "]
["Plan A"]
["Positive Prevention PLUS – High School"]
["Positive Potential "]
["Possessing Your Power"]
["Power Through Choices"]
["Prime Time"]
["Project IMAGE"]
["Promoting Health Among Teens! Abstinence-Only Intervention"]
["Promoting Health Among Teens! Comprehensive Abstinence and Safer Sex Intervention"]
["Pulse"]
["Raising Healthy Children "]
["Reducing the Risk"]
["Relationship Smarts Plus"]
["Safer Choices"]
["Safer Sex Intervention"]
["Seventeen Days "]
["Sexual Health and Adolescent Risk Prevention "]
["Sisters Saving Sisters"]
["STRIVE"]
["Teen Options to Prevent Pregnancy (T.O.P.P.)"]
["Teen Outreach Program (TOP)"]
["Vision of You"]
["Your Move"]
[]
[]
["¡Cuídate! - INACTIVE"]
["Aban Aya Youth Project - INACTIVE"]
["Assisting in Rehabilitating Kids (ARK) - INACTIVE"]
["Be Proud! Be Responsible! - INACTIVE"]
["Be Proud! Be Responsible! Be Protective! - INACTIVE"]
["Becoming a Responsible Teen (BART) - INACTIVE"]
["Draw the Line/Respect the Line - INACTIVE"]
["FOCUS - INACTIVE"]
["Guy2Guy - INACTIVE"]
["Making a Difference! - INACTIVE"]
["Project TALC - INACTIVE"]
["Respeto/Proteger - INACTIVE"]
["Rikers Health Advocacy Program (RHAP) - INACTIVE"]
["SiHLE - INACTIVE"]
["Teen Health Project - INACTIVE"]